Workbook

Sheet Copyright Notice
G7: Copyright Notice: Permission is granted to use this Excel model for business purposes as long as the copyright message (Copyright © 2022 by Tandem Energy Services Inc.) is maintained on the title page. This material may not be sold, duplicated or shared with companies and/or other utilities without the permission of Tandem Energy Services Inc.

Sheet Controls
B7: R A T E F I L I N G I N P U T S
B8: Bridge Year | C8: =C9-1 -> 2026
B9: Test Year | C9: 2027
B10: Last Rebasing Year | C10: 2022
B13: C U S T O M E R C L A S S
B14: CUSTOMER CLASS | C14: STATUS | D14: BILLED BASED ON | E14: UoM
B15: Residential | C15: Existing | D15: Customer | E15: kWh
B16: General Service < 50 kW | C16: Exisitng | D16: Customer | E16: kWh
B17: General Service > 50 to 4999 kW | C17: Exisitng | D17: Customer | E17: kW
B18: Unmetered Scattered Load | C18: Exisitng | D18: Customer | E18: kWh
B19: Sentinel | C19: Exisitng | D19: Connection | E19: kW
B20: StreetLights | C20: Exisitng | D20: Connection | E20: kW
B21: other
B22: other
B23: other
B24: other

Sheet Monthly Load & Cust Input
B7: T E S T Y E A R | C7: 2027
B9: L O A D & C U S T O M E R F O R E C A S T I N P U T S
B10: Year | C10: Wholesale | D10: =Controls!B15 -> Residential | F10: =Controls!B16 -> General Service < 50 kW | H10: =Controls!B17 -> General Service > 50 to 4999 kW | K10: =Controls!B18 -> Unmetered Scattered Load | N10: =Controls!B19 -> Sentinel | Q10: =Controls!B20 -> StreetLights | U10: Retail | V10: Retail
D11: kWh | E11: Cust # | F11: kWh | G11: Cust # | H11: kWh | I11: kW | J11: Cust # | K11: kWh | L11: kW | M11: Cust # | N11: kWh | O11: kW | P11: Cust # | Q11: kWh | R11: kW | S11: Cust # | U11: kWh | V11: kW
B12: =DATE($C$7 - 11, 1, 1) -> 2016-01-01 | C12: 10989034 | D12: 5380481 | E12: 5071 | F12: 1980839 | G12: 740 | H12: 4061507 | I12: 10667.45298 | J12: 64 | K12: 47034 | L12: 0 | M12: 58 | N12: 9746 | O12: 27.89796748 | P12: 73 | Q12: 112523 | R12: 191.2507286 | S12: 1711 | U12: =D12+F12+H12+K12+N12+Q12 -> 11592130 | V12: =I12+L12+O12+R12 -> 10886.60168
B13: =EDATE(B12, 1) -> 2016-02-01 | C13: 10461168 | D13: 3165291 | E13: 5071 | F13: 2085229 | G13: 740 | H13: 3805200 | I13: 10272.71049 | J13: 64 | K13: 51376 | L13: 0 | M13: 58 | N13: 9746 | O13: 26.86562047 | P13: 73 | Q13: 96491 | R13: 184.1736138 | S13: 1711 | U13: =D13+F13+H13+K13+N13+Q13 -> 9213333 | V13: =I13+L13+O13+R13 -> 10483.74973
B14: =EDATE(B13, 1) -> 2016-03-01 | C14: 9905017 | D14: 5273552 | E14: 5071 | F14: 1961693 | G14: 740 | H14: 4083976 | I14: 10184.95644 | J14: 64 | K14: 46844 | L14: 0 | M14: 58 | N14: 9746 | O14: 26.63612243 | P14: 73 | Q14: 67479 | R14: 182.6003211 | S14: 1711 | U14: 11443290 | V14: 10394.19289
B15: 2016-04-01 | C15: 8448753 | D15: 2292733 | E15: 5071 | F15: 1663294 | G15: 740 | H15: 3209578 | I15: 9002.492083 | J15: 64 | K15: 51401 | L15: 0 | M15: 58 | N15: 9742 | O15: 23.54369237 | P15: 73 | Q15: 57468 | R15: 161.4005867 | S15: 1711 | U15: 7284216 | V15: 9187.436362
B16: 2016-05-01 | C16: 7971052 | D16: 4244123 | E16: 5071 | F16: 1597273 | G16: 740 | H16: 3197153 | I16: 9189.970279 | J16: 64 | K16: 46844 | L16: 0 | M16: 58 | N16: 9746 | O16: 24.03399316 | P16: 73 | Q16: 52637 | R16: 164.7617772 | S16: 1711 | U16: 9147776 | V16: 9378.76605
B17: 2016-06-01 | C17: 8152771 | D17: 1998264 | E17: 5071 | F17: 1651901 | G17: 740 | H17: 3318783 | I17: 9104.361113 | J17: 64 | K17: 46844 | L17: 0 | M17: 58 | N17: 9746 | O17: 23.8101045 | P17: 73 | Q17: 47021 | R17: 163.2269389 | S17: 1711 | U17: 7072559 | V17: 9291.398157
B18: 2016-07-01 | C18: 9080665 | D18: 5045412 | E18: 5071 | F18: 1872943 | G18: 740 | H18: 2819834 | I18: 8354.64423 | J18: 64 | K18: 53444 | L18: 0 | M18: 58 | N18: 9746 | O18: 21.84941367 | P18: 73 | Q18: 49936 | R18: 149.7856891 | S18: 1711 | U18: 9851315 | V18: 8526.279333
B19: 2016-08-01 | C19: 9517733 | D19: 2378647 | E19: 5071 | F19: 1934065 | G19: 740 | H19: 3980143 | I19: 9838.307887 | J19: 64 | K19: 46844 | L19: 0 | M19: 58 | N19: 9746 | O19: 25.72955268 | P19: 73 | Q19: 56685 | R19: 176.3854553 | S19: 1711 | U19: 8406130 | V19: 10040.4229
B20: 2016-09-01 | C20: 8054076 | D20: 4391282 | E20: 5071 | F20: 1669937 | G20: 740 | H20: 3253604 | I20: 9120.718929 | J20: 64 | K20: 46844 | L20: 0 | M20: 58 | N20: 9099 | O20: 23.85288414 | P20: 73 | Q20: 61386 | R20: 163.5202089 | S20: 1711 | U20: 9432152 | V20: 9308.092022
B21: 2016-10-01 | C21: 8074621 | D21: 1915998 | E21: 5071 | F21: 1543262 | G21: 740 | H21: 3749013 | I21: 9009.348652 | J21: 64 | K21: 54550 | L21: 0 | M21: 58 | N21: 8969 | O21: 23.56162395 | P21: 73 | Q21: 71530 | R21: 161.5235142 | S21: 1711 | U21: 7343322 | V21: 9194.433791
B22: 2016-11-01 | C22: 8792790 | D22: 4467898 | E22: 5071 | F22: 1770133 | G22: 740 | H22: 3307471 | I22: 9274.697886 | J22: 64 | K22: 46844 | L22: 0 | M22: 58 | N22: 8969 | O22: 24.25557632 | P22: 73 | Q22: 75753 | R22: 166.2808105 | S22: 1711 | U22: 9677068 | V22: 9465.234273
B23: 2016-12-01 | C23: 10206407 | D23: 4434081 | E23: 5071 | F23: 1996397 | G23: 740 | H23: 3591689 | I23: 9651.417397 | J23: 64 | K23: 46844 | L23: 0 | M23: 58 | N23: 8969 | O23: 25.24078888 | P23: 73 | Q23: 82328 | R23: 173.0348015 | S23: 1711 | U23: 10160308 | V23: 9849.692987
B24: =EDATE(B23, 1) -> 2017-01-01 | C24: 10464420 | D24: 4014145 | E24: 5089 | F24: 1989817 | G24: 741 | H24: 3957976 | I24: 10058.07981 | J24: 63 | K24: 52674 | L24: 0 | M24: 57 | N24: 9050 | O24: 24.85166178 | P24: 71 | Q24: 80978 | R24: 175.1321817 | S24: 1711 | U24: 10104640 | V24: 10258.06365
B25: 2017-02-01 | C25: 9412266 | D25: 4166544 | E25: 5089 | F25: 1874965 | G25: 741 | H25: 3412768 | I25: 9897.52858 | J25: 63 | K25: 46844 | L25: 0 | M25: 57 | N25: 8881 | O25: 24.45496928 | P25: 71 | Q25: 67045 | R25: 172.3366494 | S25: 1711 | U25: 9577047 | V25: 10094.3202
B26: 2017-03-01 | C26: 10449490 | D26: 3723394 | E26: 5089 | F26: 1904911 | G26: 741 | H26: 4063503 | I26: 9505.266057 | J26: 63 | K26: 46844 | L26: 0 | M26: 57 | N26: 8969 | O26: 23.48576087 | P26: 71 | Q26: 67479 | R26: 165.5065394 | S26: 1711 | U26: 9815100 | V26: 9694.258357
B27: 2017-04-01 | C27: 8073164 | D27: 3471719 | E27: 5089 | F27: 1612131 | G27: 741 | H27: 3273899 | I27: 8849.534852 | J27: 63 | K27: 51310 | L27: 0 | M27: 57 | N27: 8965 | O27: 21.86556989 | P27: 71 | Q27: 57468 | R27: 154.0888893 | S27: 1711 | U27: 8475492 | V27: 9025.489311
B28: 2017-05-01 | C28: 7836699 | D28: 2951533 | E28: 5089 | F28: 1540224 | G28: 741 | H28: 3181420 | I28: 8588.320553 | J28: 63 | K28: 46844 | L28: 0 | M28: 57 | N28: 8969 | O28: 21.22015749 | P28: 71 | Q28: 52636 | R28: 149.5406026 | S28: 1711 | U28: 7781626 | V28: 8759.081313
B29: 2017-06-01 | C29: 7883609 | D29: 3103233 | E29: 5089 | F29: 1576499 | G29: 741 | H29: 3002114 | I29: 8671.144599 | J29: 63 | K29: 46844 | L29: 0 | M29: 57 | N29: 9008 | O29: 21.42480045 | P29: 71 | Q29: 47021 | R29: 150.9827423 | S29: 1711 | U29: 7784719 | V29: 8843.552142
B30: 2017-07-01 | C30: 8447553 | D30: 3499110 | E30: 5089 | F30: 2352595 | G30: 741 | H30: 3393839 | I30: 8669.576333 | J30: 63 | K30: 53158 | L30: 0 | M30: 57 | N30: 8863 | O30: 21.42092555 | P30: 71 | Q30: 50038 | R30: 150.9554355 | S30: 1711 | U30: 9357603 | V30: 8841.952694
B31: 2017-08-01 | C31: 8640906 | D31: 3297608 | E31: 5089 | F31: 1277573 | G31: 741 | H31: 3037703 | I31: 8967.252816 | J31: 63 | K31: 46932 | L31: 0 | M31: 57 | N31: 8863 | O31: 22.15642929 | P31: 71 | Q31: 56800 | R31: 156.1386049 | S31: 1711 | U31: 7725479 | V31: 9145.54785
B32: 2017-09-01 | C32: 8076439 | D32: 3060759 | E32: 5089 | F32: 1700222 | G32: 741 | H32: 3297664 | I32: 9090.361694 | J32: 63 | K32: 46932 | L32: 0 | M32: 57 | N32: 8855 | O32: 22.46060864 | P32: 71 | Q32: 61513 | R32: 158.2821877 | S32: 1711 | U32: 8175945 | V32: 9271.10449
B33: 2017-10-01 | C33: 7983759 | D33: 3002121 | E33: 5089 | F33: 1540026 | G33: 741 | H33: 3453723 | I33: 9225.820666 | J33: 63 | K33: 51992 | L33: 0 | M33: 57 | N33: 8744 | O33: 22.7953028 | P33: 71 | Q33: 71675 | R33: 160.6408114 | S33: 1711 | U33: 8128281 | V33: 9409.25678
B34: 2017-11-01 | C34: 9161805 | D34: 3747710 | E34: 5089 | F34: 1766133 | G34: 741 | H34: 3570718 | I34: 9355.496658 | J34: 63 | K34: 46932 | L34: 0 | M34: 57 | N34: 8744.5 | O34: 23.11570828 | P34: 71 | Q34: 79200.5 | R34: 162.8987413 | S34: 1711 | U34: 9219438 | V34: 9541.511107
B35: 2017-12-01 | C35: 10688479 | D35: 5034255 | E35: 5089 | F35: 2133858 | G35: 741 | H35: 3584543 | I35: 9504.677957 | J35: 63 | K35: 46932 | L35: 0 | M35: 57 | N35: 8744.5 | O35: 23.48430778 | P35: 71 | Q35: 79200.5 | R35: 165.4962994 | S35: 1711 | U35: 10887533 | V35: 9693.658564
B36: 2018-01-01 | C36: 11412898 | D36: 4894658 | E36: 5105 | F36: 1503140 | G36: 739 | H36: 2295701 | I36: 5896.057891 | J36: 65 | K36: 51468 | L36: 0 | M36: 57 | N36: 8744 | O36: 14.15141947 | P36: 72 | Q36: 81142 | R36: 101.6281569 | S36: 1711 | U36: 8834853 | V36: 6011.837467
B37: 2018-02-01 | C37: 9438920 | D37: 3943023 | E37: 5105 | F37: 2611672 | G37: 739 | H37: 5103408 | I37: 13031.48552 | J37: 65 | K37: 46932 | L37: 0 | M37: 57 | N37: 8744 | O37: 31.27751141 | P37: 72 | Q37: 67181 | R37: 224.618869 | S37: 1711 | U37: 11780960 | V37: 13287.3819
B38: 2018-03-01 | C38: 9778013 | D38: 3995310 | E38: 5105 | F38: 1895566 | G38: 739 | H38: 3453417 | I38: 9249.257888 | J38: 65 | K38: 46932 | L38: 0 | M38: 57 | N38: 8744 | O38: 22.19960024 | P38: 72 | Q38: 67618 | R38: 159.426018 | S38: 1711 | U38: 9467587 | V38: 9430.883507
B39: 2018-04-01 | C39: 8757348 | D39: 3416049 | E39: 5105 | F39: 1640415 | G39: 739 | H39: 3146207 | I39: 9365.240451 | J39: 65 | K39: 52224 | L39: 0 | M39: 57 | N39: 8857 | O39: 22.47797571 | P39: 72 | Q39: 57584 | R39: 161.4251663 | S39: 1711 | U39: 8321336 | V39: 9549.143593
B40: 2018-05-01 | C40: 7670323 | D40: 2878854 | E40: 5105 | F40: 1567527 | G40: 739 | H40: 3272185 | I40: 9081.591944 | J40: 65 | K40: 46932 | L40: 0 | M40: 57 | N40: 8738.5 | O40: 21.79717693 | P40: 72 | Q40: 52743 | R40: 156.5360225 | S40: 1711 | U40: 7826979.5 | V40: 9259.925144
B41: 2018-06-01 | C41: 7836187 | D41: 3364149 | E41: 5105 | F41: 1675528 | G41: 739 | H41: 3063814 | I41: 8779.95113 | J41: 65 | K41: 46932 | L41: 0 | M41: 57 | N41: 8738.5 | O41: 21.07319393 | P41: 72 | Q41: 47115 | R41: 151.336752 | S41: 1711 | U41: 8206276.5 | V41: 8952.361076
B42: 2018-07-01 | C42: 9698694 | D42: 4353497 | E42: 5105 | F42: 1908291 | G42: 739 | H42: 3095236 | I42: 9480.634767 | J42: 65 | K42: 52344 | L42: 0 | M42: 57 | N42: 8738 | O42: 22.7549393 | P42: 72 | Q42: 50038 | R42: 163.4141752 | S42: 1711 | U42: 9468144 | V42: 9666.803881
B43: 2018-08-01 | C43: 9512830 | D43: 3947340 | E43: 5105 | F43: 1750403 | G43: 739 | H43: 3150895 | I43: 9352.593155 | J43: 65 | K43: 47299 | L43: 0 | M43: 57 | N43: 8738 | O43: 22.44762031 | P43: 72 | Q43: 56800 | R43: 161.2071696 | S43: 1711 | U43: 8961475 | V43: 9536.247945
B44: 2018-09-01 | C44: 8248876 | D44: 3196750 | E44: 5105 | F44: 1683654 | G44: 739 | H44: 3341344 | I44: 11089.9786 | J44: 65 | K44: 46932 | L44: 0 | M44: 57 | N44: 8738 | O44: 26.61760486 | P44: 72 | Q44: 61510 | R44: 191.1538364 | S44: 1711 | U44: 8338928 | V44: 11307.75005
B45: 2018-10-01 | C45: 8273205 | D45: 3379179 | E45: 5105 | F45: 1646524 | G45: 739 | H45: 3173416 | I45: 9678.579647 | J45: 65 | K45: 52518 | L45: 0 | M45: 57 | N45: 8738 | O45: 23.23003658 | P45: 72 | Q45: 64487 | R45: 166.8260775 | S45: 1711 | U45: 8324862 | V45: 9868.635761
B46: 2018-11-01 | C46: 9371732 | D46: 3599861 | E46: 5105 | F46: 1776761 | G46: 739 | H46: 3537218 | I46: 5774.290907 | J46: 65 | K46: 46932 | L46: 0 | M46: 57 | N46: 8738 | O46: 13.85916052 | P46: 72 | Q46: 68294 | R46: 99.52930465 | S46: 1711 | U46: 9037804 | V46: 5887.679372
B47: 2018-12-01 | C47: 10215218 | D47: 4996198 | E47: 5105 | F47: 2002647 | G47: 739 | H47: 3721468 | I47: 10029.56661 | J47: 65 | K47: 46932 | L47: 0 | M47: 57 | N47: 8740 | O47: 24.0724577 | P47: 72 | Q47: 74122 | R47: 172.8759092 | S47: 1711 | U47: 10850107 | V47: 10226.51497
B48: 2019-01-01 | C48: 11356602 | D48: 4581997 | E48: 5113 | F48: 2151453 | G48: 735 | H48: 3799245 | I48: 9569.05984 | J48: 62 | K48: 53001 | L48: 0 | M48: 57 | N48: 8738 | O48: 23.71254944 | P48: 74 | Q48: 81142 | R48: 164.5058117 | S48: 1711 | U48: 10675576 | V48: 9757.278201
B49: 2019-02-01 | C49: 9954781 | D49: 4981734 | E49: 5113 | F49: 2013323 | G49: 735 | H49: 3582665 | I49: 9648.862692 | J49: 62 | K49: 46932 | L49: 0 | M49: 57 | N49: 8820 | O49: 23.9103044 | P49: 74 | Q49: 67181 | R49: 165.8777368 | S49: 1711 | U49: 10700655 | V49: 9838.650733
B50: 2019-03-01 | C50: 10085138 | D50: 4134623 | E50: 5113 | F50: 1866875 | G50: 735 | H50: 3651733 | I50: 9356.709743 | J50: 62 | K50: 46932 | L50: 0 | M50: 57 | N50: 8869 | O50: 23.1863366 | P50: 74 | Q50: 67618 | R50: 160.8552101 | S50: 1711 | U50: 9776650 | V50: 9540.75129
B51: 2019-04-01 | C51: 8524502 | D51: 3330148 | E51: 5113 | F51: 1684303 | G51: 735 | H51: 3300658 | I51: 9133.47744 | J51: 62 | K51: 53641 | L51: 0 | M51: 57 | N51: 8913 | O51: 22.63315717 | P51: 74 | Q51: 57584 | R51: 157.0175279 | S51: 1711 | U51: 8435247 | V51: 9313.128125
B52: 2019-05-01 | C52: 7801649 | D52: 3029653 | E52: 5113 | F52: 1537245 | G52: 735 | H52: 3195093 | I52: 8676.130626 | J52: 62 | K52: 47004 | L52: 0 | M52: 57 | N52: 8926 | O52: 21.49983173 | P52: 74 | Q52: 52743 | R52: 149.1550826 | S52: 1711 | U52: 7870664 | V52: 8846.78554
B53: 2019-06-01 | C53: 7764971 | D53: 3147747 | E53: 5113 | F53: 1563723 | G53: 735 | H53: 3014708 | I53: 8752.600189 | J53: 62 | K53: 48883 | L53: 0 | M53: 57 | N53: 8909 | O53: 21.68932666 | P53: 74 | Q53: 47115 | R53: 150.4697037 | S53: 1711 | U53: 7831085 | V53: 8924.75922
B54: 2019-07-01 | C54: 9557985 | D54: 4193921 | E54: 5113 | F54: 1936401 | G54: 735 | H54: 3235890 | I54: 8722.20844 | J54: 62 | K54: 48418 | L54: 0 | M54: 57 | N54: 8918 | O54: 21.61401457 | P54: 74 | Q54: 50038 | R54: 149.9472261 | S54: 1711 | U54: 9473586 | V54: 8893.76968
B55: 2019-08-01 | C55: 8688391 | D55: 3609189 | E55: 5113 | F55: 1715896 | G55: 735 | H55: 3148340 | I55: 8792.30554 | J55: 62 | K55: 46932 | L55: 0 | M55: 57 | N55: 8867 | O55: 21.78771826 | P55: 74 | Q55: 56800 | R55: 151.1522954 | S55: 1711 | U55: 8586024 | V55: 8965.245553
B56: 2019-09-01 | C56: 7563722 | D56: 2941779 | E56: 5113 | F56: 1511471 | G56: 735 | H56: 3062360 | I56: 8994.165581 | J56: 62 | K56: 48612 | L56: 0 | M56: 57 | N56: 8789 | O56: 22.28793628 | P56: 74 | Q56: 61510 | R56: 154.6225579 | S56: 1711 | U56: 7634521 | V56: 9171.076075
B57: 2019-10-01 | C57: 7908177 | D57: 2989526 | E57: 5113 | F57: 1509053 | G57: 735 | H57: 3225512 | I57: 8973.479583 | J57: 62 | K57: 48066 | L57: 0 | M57: 57 | N57: 8800 | O57: 22.23667547 | P57: 74 | Q57: 64487 | R57: 154.2669361 | S57: 1711 | U57: 7845444 | V57: 9149.983195
B58: 2019-11-01 | C58: 9264874 | D58: 3983942 | E58: 5113 | F58: 1813298 | G58: 735 | H58: 3374380 | I58: 9304.126971 | J58: 62 | K58: 46932 | L58: 0 | M58: 57 | N58: 8791 | O58: 23.05603418 | P58: 74 | Q58: 68294 | R58: 159.9512372 | S58: 1711 | U58: 9295637 | V58: 9487.134243
B59: 2019-12-01 | C59: 10207018 | D59: 4878115 | E59: 5113 | F59: 2000189 | G59: 735 | H59: 3339079 | I59: 9530.1206 | J59: 62 | K59: 46932 | L59: 0 | M59: 57 | N59: 8794 | O59: 23.6160563 | P59: 74 | Q59: 74122 | R59: 163.8363906 | S59: 1711 | U59: 10347231 | V59: 9717.573047
B60: 2020-01-01 | C60: 10475746 | D60: 4584042 | E60: 5107 | F60: 2061243 | G60: 731 | H60: 3734059 | I60: 9636.550715 | J60: 61 | K60: 48129 | L60: 0 | M60: 57 | N60: 8794 | O60: 23.74991656 | P60: 73 | Q60: 73007 | R60: 153.9771542 | S60: 1712 | U60: 10509274 | V60: 9814.277786
B61: 2020-02-01 | C61: 9817627 | D61: 4022462 | E61: 5107 | F61: 1850336 | G61: 731 | H61: 3244366 | I61: 9265.603639 | J61: 61 | K61: 45367 | L61: 0 | M61: 57 | N61: 8497 | O61: 22.83569296 | P61: 73 | Q61: 60519 | R61: 148.0499945 | S61: 1712 | U61: 9231547 | V61: 9436.489327
B62: 2020-03-01 | C62: 9509806 | D62: 4151145 | E62: 5107 | F62: 1866841 | G62: 731 | H62: 3528275 | I62: 9169.014086 | J62: 61 | K62: 50259 | L62: 0 | M62: 57 | N62: 9087 | O62: 22.59764161 | P62: 73 | Q62: 62926 | R62: 146.506643 | S62: 1712 | U62: 9668533 | V62: 9338.118371
B63: 2020-04-01 | C63: 8024763 | D63: 3503149 | E63: 5107 | F63: 1475959 | G63: 731 | H63: 2909967 | I63: 8176.615321 | J63: 61 | K63: 48129 | L63: 0 | M63: 57 | N63: 8715 | O63: 20.15180922 | P63: 73 | Q63: 51811 | R63: 130.6496479 | S63: 1712 | U63: 7997730 | V63: 8327.416778
B64: 2020-05-01 | C64: 7939253 | D64: 3464211 | E64: 5107 | F64: 1432249 | G64: 731 | H64: 3033955 | I64: 8591.145487 | J64: 61 | K64: 46932 | L64: 0 | M64: 57 | N64: 8787 | O64: 21.17344623 | P64: 73 | Q64: 47455 | R64: 137.2731979 | S64: 1712 | U64: 8033589 | V64: 8749.592132
B65: 2020-06-01 | C65: 8515025 | D65: 3891457 | E65: 5107 | F65: 1571019 | G65: 731 | H65: 3028402 | I65: 8809.362663 | J65: 61 | K65: 48486 | L65: 0 | M65: 57 | N65: 8715 | O65: 21.7112569 | P65: 73 | Q65: 42493 | R65: 140.7599704 | S65: 1712 | U65: 8590572 | V65: 8971.833891
B66: 2020-07-01 | C66: 10333884 | D66: 4902806 | E66: 5107 | F66: 1905552 | G66: 731 | H66: 3312112 | I66: 9108.751015 | J66: 61 | K66: 48087 | L66: 0 | M66: 57 | N66: 8722 | O66: 22.44911929 | P66: 73 | Q66: 45128 | R66: 145.5437325 | S66: 1712 | U66: 10222407 | V66: 9276.743867
B67: 2020-08-01 | C67: 9206403 | D67: 4046605 | E67: 5107 | F67: 1766910 | G67: 731 | H67: 3217432 | I67: 9272.580247 | J67: 61 | K67: 46932 | L67: 0 | M67: 57 | N67: 8719 | O67: 22.85288727 | P67: 73 | Q67: 51228 | R67: 148.1614699 | S67: 1712 | U67: 9137826 | V67: 9443.594604
B68: 2020-09-01 | C68: 7627587 | D68: 3049822 | E68: 5107 | F68: 1385420 | G68: 731 | H68: 2960977 | I68: 8999.596967 | J68: 61 | K68: 48595 | L68: 0 | M68: 57 | N68: 8715 | O68: 22.18010192 | P68: 73 | Q68: 55476 | R68: 143.7996199 | S68: 1712 | U68: 7509005 | V68: 9165.576688
B69: 2020-10-01 | C69: 8195562 | D69: 3285840 | E69: 5107 | F69: 1429655 | G69: 731 | H69: 3393255 | I69: 9026.296518 | J69: 61 | K69: 48144 | L69: 0 | M69: 57 | N69: 8727 | O69: 22.24590473 | P69: 73 | Q69: 64645 | R69: 144.2262373 | S69: 1712 | U69: 8230266 | V69: 9192.76866
B70: 2020-11-01 | C70: 8711857 | D70: 3705020 | E70: 5107 | F70: 1792779 | G70: 731 | H70: 3320607 | I70: 9261.291834 | J70: 61 | K70: 46932 | L70: 0 | M70: 57 | N70: 8719 | O70: 22.82506623 | P70: 73 | Q70: 68461 | R70: 147.9810985 | S70: 1712 | U70: 8942518 | V70: 9432.097999
B71: 2020-12-01 | C71: 10055028 | D71: 4261309 | E71: 5107 | F71: 1479104 | G71: 731 | H71: 3392910 | I71: 9242.052451 | J71: 61 | K71: 46932 | L71: 0 | M71: 57 | N71: 8386 | O71: 22.77764949 | P71: 73 | Q71: 74402 | R71: 147.673683 | S71: 1712 | U71: 9263043 | V71: 9412.503784
B72: 2021-01-01 | C72: 10499395.99 | D72: 4824039 | E72: 5136 | F72: 1853585 | G72: 730 | H72: 3595578 | I72: 9147.375892 | J72: 61 | K72: 46932 | L72: 0 | M72: 57 | N72: 8107 | O72: 20.30292572 | P72: 70 | Q72: 73183 | R72: 144.1012533 | S72: 1712 | U72: 10401424 | V72: 9311.780071
B73: 2021-02-01 | C73: 9792629.25 | D73: 4859795 | E73: 5136 | F73: 1846153 | G73: 730 | H73: 3471504 | I73: 9342.021504 | J73: 61 | K73: 54202 | L73: 0 | M73: 57 | N73: 8036 | O73: 20.73494857 | P73: 70 | Q73: 60593 | R73: 147.1675618 | S73: 1712 | U73: 10300283 | V73: 9509.924015
B74: 2021-03-01 | C74: 9788308.27 | D74: 3965051 | E74: 5136 | F74: 1664951 | G74: 730 | H74: 3542376 | I74: 9617.196583 | J74: 61 | K74: 46932 | L74: 0 | M74: 57 | N74: 8036 | O74: 21.34570943 | P74: 70 | Q74: 61183 | R74: 151.5024743 | S74: 1712 | U74: 9288529 | V74: 9790.044767
B75: 2021-04-01 | C75: 7927583.65 | D75: 3328909 | E75: 5136 | F75: 1354707 | G75: 730 | H75: 3148220 | I75: 8657.030007 | J75: 61 | K75: 55424 | L75: 0 | M75: 57 | N75: 8036 | O75: 19.21458561 | P75: 70 | Q75: 51935 | R75: 136.376693 | S75: 1712 | U75: 7947231 | V75: 8812.621286
B76: 2021-05-01 | C76: 8042340 | D76: 3326063 | E76: 5136 | F76: 1357606 | G76: 730 | H76: 3313423 | I76: 8923.268279 | J76: 61 | K76: 47227 | L76: 0 | M76: 57 | N76: 8036 | O76: 19.80551091 | P76: 70 | Q76: 47569 | R76: 140.5708214 | S76: 1712 | U76: 8099924 | V76: 9083.644611
B77: 2021-06-01 | C77: 8737900 | D77: 3589874 | E77: 5136 | F77: 1434344 | G77: 730 | H77: 3246245 | I77: 9085.800312 | J77: 61 | K77: 46943 | L77: 0 | M77: 57 | N77: 8032 | O77: 20.16625653 | P77: 70 | Q77: 42493 | R77: 143.1312354 | S77: 1712 | U77: =D77+F77+H77+K77+N77+Q77 -> 8367931 | V77: =I77+L77+O77+R77 -> 9249.097804
B78: =EDATE(B77, 1) -> 2021-07-01 | C78: 8943567.38 | D78: 4054813 | E78: 5136 | F78: 1626331 | G78: 730 | H78: 3320063 | I78: 9212.781531 | J78: 61 | K78: 46932 | L78: 0 | M78: 57 | N78: 7999 | O78: 20.44809586 | P78: 70 | Q78: 45130 | R78: 145.1316072 | S78: 1712 | U78: 9101268 | V78: 9378.361234
B79: 2021-08-01 | C79: 10027303.54 | D79: 4416678 | E79: 5136 | F79: 1735650 | G79: 730 | H79: 3406617 | I79: 9523.409217 | J79: 61 | K79: 46932 | L79: 0 | M79: 57 | N79: 7917 | O79: 21.13754504 | P79: 70 | Q79: 51228 | R79: 150.0250148 | S79: 1712 | U79: 9665022 | V79: 9694.571777
B80: 2021-09-01 | C80: 8054741.79 | D80: 3206868 | E80: 5136 | F80: 1422603 | G80: 730 | H80: 3326561 | I80: 9269.053951 | J80: 61 | K80: 48969 | L80: 0 | M80: 57 | N80: 7913 | O80: 20.5729945 | P80: 70 | Q80: 55476 | R80: 146.0180829 | S80: 1712 | U80: 8068390 | V80: 9435.645029
B81: 2021-10-01 | C81: 8075869 | D81: 3187100 | E81: 5136 | F81: 1424277 | G81: 730 | H81: 3413828 | I81: 8924.643173 | J81: 61 | K81: 48402 | L81: 0 | M81: 57 | N81: 7919 | O81: 19.80856254 | P81: 70 | Q81: 64645 | R81: 140.5924805 | S81: 1712 | U81: 8146171 | V81: 9085.044216
B82: 2021-11-01 | C82: 9085638.87 | D82: 3791373 | E82: 5136 | F82: 1595985 | G82: 730 | H82: 3511179 | I82: 9443.567197 | J82: 61 | K82: 46932 | L82: 0 | M82: 57 | N82: 7913 | O82: 20.96033284 | P82: 70 | Q82: 68460 | R82: 148.7672404 | S82: 1712 | U82: 9021842 | V82: 9613.29477
B83: 2021-12-01 | C83: 10218754 | D83: 4820637 | E83: 5136 | F83: 1858402 | G83: 730 | H83: 3579369 | I83: 9464.09239 | J83: 61 | K83: 51342 | L83: 0 | M83: 57 | N83: 7919 | O83: 21.00588924 | P83: 70 | Q83: 74403 | R83: 149.0905797 | S83: 1712 | U83: 10392072 | V83: 9634.188859
B84: 2022-01-01 | C84: 11881999.19 | D84: 5302542 | E84: 5214 | F84: 2123175 | G84: 731 | H84: 3846080 | I84: 9204.796669 | J84: 59 | K84: 59717 | L84: 0 | M84: 57 | N84: 7914 | O84: 19.22779468 | P84: 70 | Q84: 73185 | R84: 137.7672318 | S84: 1712 | U84: 11412613 | V84: 9361.791696
B85: 2022-02-01 | C85: 10331689.77 | D85: 4697914 | E85: 5214 | F85: 1910303 | G85: 731 | H85: 3825364 | I85: 10194.55858 | J85: 59 | K85: 46936 | L85: 0 | M85: 57 | N85: 7914 | O85: 21.29529704 | P85: 70 | Q85: 60593 | R85: 152.5808951 | S85: 1712 | U85: 10549024 | V85: 10368.43477
B86: 2022-03-01 | C86: 10474433 | D86: 4089455 | E86: 5214 | F86: 1740554 | G86: 731 | H86: 3866370 | I86: 9670.237393 | J86: 59 | K86: 46932 | L86: 0 | M86: 57 | N86: 7917 | O86: 20.2000485 | P86: 70 | Q86: 61183 | R86: 144.7334345 | S86: 1712 | U86: 9812411 | V86: 9835.170876
B87: 2022-04-01 | C87: 8660849 | D87: 3542625 | E87: 5214 | F87: 1568529 | G87: 731 | H87: 3771562 | I87: 8289.347997 | J87: 59 | K87: 50082 | L87: 0 | M87: 57 | N87: 7913 | O87: 17.3155244 | P87: 70 | Q87: 51935 | R87: 124.065807 | S87: 1712 | U87: 8992646 | V87: 8430.729329
B88: 2022-05-01 | C88: 8371166.64 | D88: 2984006 | E88: 5214 | F88: 1387917 | G88: 731 | H88: 3259779 | I88: 10288.23651 | J88: 59 | K88: 46932 | L88: 0 | M88: 57 | N88: 7923 | O88: 21.4909798 | P88: 70 | Q88: 47569 | R88: 153.9829629 | S88: 1712 | U88: 7734126 | V88: 10463.71046
B89: 2022-06-01 | C89: 8501866.97 | D89: 3601197 | E89: 5214 | F89: 1606807 | G89: 731 | H89: 3564956 | I89: 9101.190645 | J89: 59 | K89: 49098 | L89: 0 | M89: 57 | N89: 7914 | O89: 19.01137324 | P89: 70 | Q89: 41077 | R89: 136.2165712 | S89: 1712 | U89: 8871049 | V89: 9256.41859
B90: 2022-07-01 | C90: 9634858.64 | D90: 4212739 | E90: 5214 | F90: 1653434 | G90: 731 | H90: 3338949 | I90: 8946.371397 | J90: 59 | K90: 53547 | L90: 0 | M90: 57 | N90: 7941 | O90: 18.68797308 | P90: 70 | Q90: 45271 | R90: 133.8994077 | S90: 1712 | U90: 9311881 | V90: 9098.958778
B91: 2022-08-01 | C91: 9874706.47 | D91: 4182300 | E91: 5214 | F91: 1702855 | G91: 731 | H91: 3650662 | I91: 10209.59816 | J91: 59 | K91: 47089 | L91: 0 | M91: 57 | N91: 7941 | O91: 21.32671305 | P91: 70 | Q91: 51389 | R91: 152.8059909 | S91: 1712 | U91: 9642236 | V91: 10383.73087
B92: 2022-09-01 | C92: 8176359.46 | D92: 3393675 | E92: 5214 | F92: 1496443 | G92: 731 | H92: 3542305 | I92: 10366.08848 | J92: 59 | K92: 47089 | L92: 0 | M92: 57 | N92: 7941 | O92: 21.65360388 | P92: 70 | Q92: 55652 | R92: 155.1481651 | S92: 1712 | U92: 8543105 | V92: 10542.89025
B93: 2022-10-01 | C93: 8309018.85 | D93: 3180686 | E93: 5214 | F93: 1417359 | G93: 731 | H93: 3481175 | I93: 9614.993953 | J93: 59 | K93: 48874 | L93: 0 | M93: 57 | N93: 7943 | O93: 20.0846511 | P93: 70 | Q93: 64850 | R93: 143.9066117 | S93: 1712 | U93: 8200887 | V93: 9778.985216
B94: 2022-11-01 | C94: 8944137.61 | D94: 3570227 | E94: 5214 | F94: 1630997 | G94: 731 | H94: 3666404 | I94: 9632.490986 | J94: 59 | K94: 47089 | L94: 0 | M94: 57 | N94: 7865 | O94: 20.12120046 | P94: 70 | Q94: 68677 | R94: 144.168488 | S94: 1712 | U94: 8991259 | V94: 9796.780674
B95: 2022-12-01 | C95: 10328303.78 | D95: 4547705 | E95: 5214 | F95: 1887381 | G95: 731 | H95: 3610704 | I95: 10482.17834 | J95: 59 | K95: 37753 | L95: 0 | M95: 57 | N95: 7865 | O95: 21.89610267 | P95: 70 | Q95: 74638 | R95: 156.88567 | S95: 1712 | U95: 10166046 | V95: 10660.96011
B96: 2023-01-01 | C96: 10715912.02 | D96: 4725819 | E96: 5260 | F96: 2019222 | G96: 732 | H96: 3775213 | I96: 9823.758242 | J96: 61 | K96: 49672 | L96: 0 | M96: 57 | N96: 7865 | O96: 21.03708898 | P96: 70 | Q96: 73415 | R96: 151.9461376 | S96: 1713 | U96: 10651206 | V96: 9996.741468
B97: 2023-02-01 | C97: 10011127.38 | D97: 4058891 | E97: 5260 | F97: 1805802 | G97: 732 | H97: 3301149 | I97: 9833.484286 | J97: 61 | K97: 43948 | L97: 0 | M97: 57 | N97: 7348 | O97: 21.05791682 | P97: 70 | Q97: 56731 | R97: 152.0965723 | S97: 1713 | U97: 9273869 | V97: 10006.63878
B98: 2023-03-01 | C98: 10175938.96 | D98: 4540267 | E98: 5260 | F98: 2068507 | G98: 732 | H98: 4011410 | I98: 9809.709511 | J98: 61 | K98: 50226 | L98: 0 | M98: 57 | N98: 8408 | O98: 21.00700432 | P98: 70 | Q98: 65428 | R98: 151.7288429 | S98: 1713 | U98: 10744246 | V98: 9982.445358
B99: 2023-04-01 | C99: 8467145.31 | D99: 3657901 | E99: 5260 | F99: 1641798 | G99: 732 | H99: 3383217 | I99: 9054.221817 | J99: 61 | K99: 47089 | L99: 0 | M99: 57 | N99: 7901 | O99: 19.38916506 | P99: 70 | Q99: 52100 | R99: 140.0435556 | S99: 1713 | U99: 8790006 | V99: 9213.654538
B100: 2023-05-01 | C100: 8117557.22 | D100: 3078756 | E100: 5260 | F100: 1539212 | G100: 732 | H100: 3459540 | I100: 9403.082259 | J100: 61 | K100: 61285 | L100: 0 | M100: 57 | N100: 7865 | O100: 20.13623232 | P100: 70 | Q100: 47718 | R100: 145.4394535 | S100: 1713 | U100: 8194376 | V100: 9568.657945
B101: 2023-06-01 | C101: 8611148.56 | D101: 3495154 | E101: 5260 | F101: 1621824 | G101: 732 | H101: 3368075 | I101: 9012.566839 | J101: 61 | K101: 47089 | L101: 0 | M101: 57 | N101: 7865 | O101: 19.29996299 | P101: 70 | Q101: 42628 | R101: 139.3992693 | S101: 1713 | U101: 8582635 | V101: 9171.266071
B102: 2023-07-01 | C102: 9912477.23 | D102: 4558087 | E102: 5260 | F102: 1894940 | G102: 732 | H102: 3303342 | I102: 8777.078672 | J102: 61 | K102: 53557 | L102: 0 | M102: 57 | N102: 7865 | O102: 18.79567682 | P102: 70 | Q102: 45271 | R102: 135.7569242 | S102: 1713 | U102: 9863062 | V102: 8931.631274
B103: 2023-08-01 | C103: 9166355.57 | D103: 3412594 | E103: 5260 | F103: 1780898 | G103: 732 | H103: 3485232 | I103: 9276.152468 | J103: 61 | K103: 47089 | L103: 0 | M103: 57 | N103: 7865 | O103: 19.86441849 | P103: 70 | Q103: 51390 | R103: 143.4762037 | S103: 1713 | U103: 8785068 | V103: 9439.49309
B104: 2023-09-01 | C104: 8452338.14 | D104: 3356395 | E104: 5260 | F104: 1618189 | G104: 732 | H104: 3278072 | I104: 9267.01588 | J104: 61 | K104: 48897 | L104: 0 | M104: 57 | N104: 7862 | O104: 19.84485294 | P104: 70 | Q104: 55651 | R104: 143.3348862 | S104: 1713 | U104: 8365066 | V104: 9430.195619
B105: 2023-10-01 | C105: 8306104.55 | D105: 3295097 | E105: 5260 | F105: 1614947 | G105: 732 | H105: 3242088 | I105: 9622.655081 | J105: 61 | K105: 48837 | L105: 0 | M105: 57 | N105: 7868 | O105: 20.60643658 | P105: 70 | Q105: 64850 | R105: 148.8356326 | S105: 1713 | U105: 8273687 | V105: 9792.09715
B106: 2023-11-01 | C106: 9189967.58 | D106: 3702001 | E106: 5260 | F106: 1781784 | G106: 732 | H106: 3353263 | I106: 9121.3217 | J106: 61 | K106: 47082 | L106: 0 | M106: 57 | N106: 7866 | O106: 19.53285611 | P106: 70 | Q106: 68677 | R106: 141.0814036 | S106: 1713 | U106: 8960673 | V106: 9281.935959
B107: 2023-12-01 | C107: 10068806.25 | D107: 4485284 | E107: 5260 | F107: 1931523 | G107: 732 | H107: 3473187 | I107: 9619.806037 | J107: 61 | K107: 47082 | L107: 0 | M107: 57 | N107: 7866 | O107: 20.60033549 | P107: 70 | Q107: 74637 | R107: 148.7915659 | S107: 1713 | U107: 10019579 | V107: 9789.197939
B108: 2024-01-01 | C108: 11069790.16 | D108: 4893554 | E108: 5178 | F108: 2139738 | G108: 735 | H108: 3749332 | I108: 9777.020167 | J108: 60 | K108: 54762 | L108: 0 | M108: 57 | N108: 7866 | O108: 19.72617487 | P108: 70 | Q108: 73414 | R108: 143.1529511 | S108: 1713 | U108: 10918666 | V108: 9939.899293
B109: 2024-02-01 | C109: 9933264.95 | D109: 4194682 | E109: 5178 | F109: 1913857 | G109: 735 | H109: 3580365 | I109: 9795.409257 | J109: 62 | K109: 47082 | L109: 0 | M109: 57 | N109: 7866 | O109: 19.76327681 | P109: 70 | Q109: 62953 | R109: 143.4222 | S109: 1713 | U109: 9806805 | V109: 9958.594733
B110: 2024-03-01 | C110: 9844333.14 | D110: 3995549 | E110: 5178 | F110: 2000832 | G110: 735 | H110: 3762174 | I110: 9871.915737 | J110: 61 | K110: 47185 | L110: 0 | M110: 57 | N110: 7866 | O110: 19.91763674 | P110: 70 | Q110: 60941 | R110: 144.5423909 | S110: 1713 | U110: 9874547 | V110: 10036.37576
B111: 2024-04-01 | C111: 8563614.87 | D111: 3367308 | E111: 5178 | F111: 1721505 | G111: 735 | H111: 3309446 | I111: 9446.999927 | J111: 61 | K111: 56768 | L111: 0 | M111: 57 | N111: 7866 | O111: 19.06032404 | P111: 70 | Q111: 52100 | R111: 138.3208682 | S111: 1713 | U111: 8514993 | V111: 9604.381119
B112: 2024-05-01 | C112: 8212442.87 | D112: 3207194 | E112: 5178 | F112: 1691653 | G112: 735 | H112: 3177237 | I112: 8965.146776 | J112: 61 | K112: 49133 | L112: 0 | M112: 57 | N112: 7866 | O112: 18.08813422 | P112: 70 | Q112: 47719 | R112: 131.2656818 | S112: 1713 | U112: 8180802 | V112: 9114.500592
B113: 2024-06-01 | C113: 8827125.44 | D113: 3759037 | E113: 5178 | F113: 1786546 | G113: 735 | H113: 3198765 | I113: 9439.231274 | J113: 61 | K113: 50930 | L113: 0 | M113: 57 | N113: 7938 | O113: 19.04464996 | P113: 70 | Q113: 42627 | R113: 138.2071214 | S113: 1713 | U113: 8845843 | V113: 9596.483045
B114: 2024-07-01 | C114: 10244421.66 | D114: 4726199 | E114: 5178 | F114: 1903666 | G114: 735 | H114: 3568077 | I114: 9846.544693 | J114: 63 | K114: 56286 | L114: 0 | M114: 57 | N114: 7747 | O114: 19.86644797 | P114: 70 | Q114: 45272 | R114: 144.1709137 | S114: 1713 | U114: 10307247 | V114: 10010.58205
B115: 2024-08-01 | C115: 9562430.39 | D115: 4192907 | E115: 5178 | F115: 1791420 | G115: 735 | H115: 3410867 | I115: 10343.64014 | J115: 63 | K115: 50817 | L115: 0 | M115: 57 | N115: 7747 | O115: 20.86939074 | P115: 70 | Q115: 51389 | R115: 151.4492745 | S115: 1713 | U115: 9505147 | V115: 10515.9588
B116: 2024-09-01 | C116: 8514902.16 | D116: 3413924 | E116: 5178 | F116: 1582319 | G116: 735 | H116: 3359516 | I116: 10220.81675 | J116: 63 | K116: 49848 | L116: 0 | M116: 57 | N116: 7747 | O116: 20.62158154 | P116: 70 | Q116: 55652 | R116: 149.6509218 | S116: 1713 | U116: 8469006 | V116: 10391.08926
B117: 2024-10-01 | C117: 8472948.77 | D117: 3192042 | E117: 5178 | F117: 1585268 | G117: 735 | H117: 3516172 | I117: 10409.91953 | J117: 63 | K117: 56880 | L117: 0 | M117: 57 | N117: 7747 | O117: 21.00311644 | P117: 70 | Q117: 64849 | R117: 152.4197226 | S117: 1713 | U117: 8422958 | V117: 10583.34237
B118: 2024-11-01 | C118: 9017603.88 | D118: 3627717 | E118: 5178 | F118: 1707362 | G118: 735 | H118: 3485816 | I118: 10353.96556 | J118: 63 | K118: 50930 | L118: 0 | M118: 57 | N118: 7747 | O118: 20.89022338 | P118: 70 | Q118: 68677 | R118: 151.600457 | S118: 1713 | U118: 8948249 | V118: 10526.45624
B119: 2024-12-01 | C119: 10867006.92 | D119: 4847459 | E119: 5178 | F119: 2073521 | G119: 735 | H119: 3653361 | I119: 10601.87409 | J119: 64 | K119: 50930 | L119: 0 | M119: 57 | N119: 7747 | O119: 21.39040512 | P119: 70 | Q119: 74637 | R119: 155.2302785 | S119: 1713 | U119: 10707655 | V119: 10778.49478
B120: 2025-01-01 | C120: 11352460 | D120: 4466469.179 | E120: 5284 | F120: 1910551 | G120: 746 | H120: 3366222.243 | I120: 9781.908677 | J120: 64 | K120: 46927.11693 | L120: 0 | M120: 60 | N120: 7138.118493 | O120: 21 | P120: 70 | Q120: 68770.84677 | R120: 146 | S120: 1713 | U120: 9866078.504 | V120: 9948.908677
B121: 2025-02-01 | C121: 10660170 | D121: 6080126 | E121: 5284 | F121: 2355279 | G121: 739 | H121: 4014407 | I121: 9800.306961 | J121: 64 | K121: 58447 | L121: 0 | M121: 60 | N121: 7747 | O121: 21 | P121: 70 | Q121: 73414 | R121: 146 | S121: 1713 | U121: 12589420 | V121: 9967.306961
B122: 2025-03-01 | C122: 10493874 | D122: 3940121 | E122: 5273 | F122: 2134858 | G122: 738 | H122: 3607467 | I122: 9876.851694 | J122: 63 | K122: 50930 | L122: 0 | M122: 60 | N122: 7747 | O122: 21 | P122: 70 | Q122: 60783 | R122: 146 | S122: 1713 | U122: 9801906 | V122: 10043.85169
B123: 2025-04-01 | C123: 8945853 | D123: 4406948 | E123: 5300 | F123: 1993889 | G123: 740 | H123: 3881524 | I123: 9451.723427 | J123: 65 | K123: 51421 | L123: 0 | M123: 60 | N123: 7723 | O123: 21 | P123: 70 | Q123: 61375 | R123: 146 | S123: 1713 | U123: 10402880 | V123: 9618.723427
B124: 2025-05-01 | C124: 8365024 | D124: 3549468 | E124: 5492 | F124: 1682391 | G124: 751 | H124: 3541413 | I124: 8969.629349 | J124: 64 | K124: 55018 | L124: 0 | M124: 60 | N124: 7508 | O124: 21 | P124: 70 | Q124: 52100 | R124: 146 | S124: 1713 | U124: 8887898 | V124: 9136.629349
B125: 2025-06-01 | C125: 9083014 | D125: 3211960 | E125: 5326 | F125: 1597451 | G125: 738 | H125: 3409482 | I125: 9443.95089 | J125: 65 | K125: 50930 | L125: 0 | M125: 60 | N125: 7508 | O125: 21 | P125: 70 | Q125: 47719 | R125: 146 | S125: 1713 | U125: 8325050 | V125: 9610.95089
B126: 2025-07-01 | C126: 10707430 | D126: 3820611 | E126: 5314 | F126: 1691645 | G126: 743 | H126: 3396008 | I126: 9851.467965 | J126: 67 | K126: 50930 | L126: 0 | M126: 60 | N126: 7508 | O126: 21 | P126: 70 | Q126: 47388 | R126: 146 | S126: 1713 | U126: 9014090 | V126: 10018.46797
B127: 2025-08-01 | C127: 9981547 | D127: 4921959 | E127: 5310 | F127: 1944426 | G127: 741 | H127: 3699158 | I127: 10348.81196 | J127: 67 | K127: 56842 | L127: 0 | M127: 60 | N127: 7508 | O127: 21 | P127: 70 | Q127: 50512 | R127: 146 | S127: 1713 | U127: 10680405 | V127: 10515.81196
B128: 2025-09-01 | C128: 8576052 | D128: 4222242 | E128: 5310 | F128: 1774903 | G128: 742 | H128: 3697092 | I128: 10225.92716 | J128: 67 | K128: 50930 | L128: 0 | M128: 60 | N128: 7508 | O128: 21 | P128: 70 | Q128: 51389 | R128: 146 | S128: 1713 | U128: 9804064 | V128: 10392.92716
B129: 2025-10-01 | C129: 8819455 | D129: 3116610 | E129: 5310 | F129: 1541588 | G129: 740 | H129: 3611134 | I129: 10415.12449 | J129: 67 | K129: 50930 | L129: 0 | M129: 60 | N129: 7508 | O129: 21 | P129: 70 | Q129: 55652 | R129: 146 | S129: 1713 | U129: 8383422 | V129: 10582.12449
B130: 2025-11-01 | C130: 10182138 | D130: 3269212 | E130: 5315 | F130: 1567406 | G130: 738 | H130: 3715984 | I130: 10359.14255 | J130: 67 | K130: 56519 | L130: 0 | M130: 60 | N130: 7510 | O130: 21 | P130: 70 | Q130: 64849 | R130: 146 | S130: 1713 | U130: 8681480 | V130: 10526.14255
B131: 2025-12-01 | C131: 12019804 | D131: 4182005 | E131: 5315 | F131: 1745595 | G131: 740 | H131: 3777629 | I131: 10607.17503 | J131: 67 | K131: 50930 | L131: 0 | M131: 60 | N131: 7508 | O131: 21 | P131: 70 | Q131: 68677 | R131: 146 | S131: 1713 | U131: 9832344 | V131: 10774.17503
B134: W H O L E S A L E T O T A L
C135: ="" &$C$7-11 -> 2016 | D135: ="" &$C$7-10 -> 2017 | E135: ="" &$C$7-9 -> 2018 | F135: ="" &$C$7-8 -> 2019 | G135: ="" &$C$7-7 -> 2020 | H135: ="" &$C$7-6 -> 2021 | I135: ="" &$C$7-5 -> 2022 | J135: ="" &$C$7-4 -> 2023 | K135: ="" &$C$7-3 -> 2024 | L135: ="" &$C$7-2 -> 2025
B136: January | C136: =C12 -> 10989034 | D136: =C24 -> 10464420 | E136: =C36 -> 11412898 | F136: =C48 -> 11356602 | G136: =C60 -> 10475746 | H136: =C72 -> 10499395.99 | I136: =C84 -> 11881999.19 | J136: =C96 -> 10715912.02 | K136: =C108 -> 11069790.16 | L136: =C120 -> 11352460
B137: February | C137: 10461168 | D137: 9412266 | E137: 9438920 | F137: 9954781 | G137: 9817627 | H137: 9792629.25 | I137: 10331689.77 | J137: 10011127.38 | K137: 9933264.95 | L137: 10660170
B138: March | C138: 9905017 | D138: 10449490 | E138: 9778013 | F138: 10085138 | G138: 9509806 | H138: 9788308.27 | I138: 10474433 | J138: 10175938.96 | K138: 9844333.14 | L138: 10493874
B139: April | C139: 8448753 | D139: 8073164 | E139: 8757348 | F139: 8524502 | G139: 8024763 | H139: 7927583.65 | I139: 8660849 | J139: 8467145.31 | K139: 8563614.87 | L139: 8945853
B140: May | C140: 7971052 | D140: 7836699 | E140: 7670323 | F140: 7801649 | G140: 7939253 | H140: 8042340 | I140: 8371166.64 | J140: 8117557.22 | K140: 8212442.87 | L140: 8365024
B141: June | C141: 8152771 | D141: 7883609 | E141: 7836187 | F141: 7764971 | G141: 8515025 | H141: 8737900 | I141: 8501866.97 | J141: 8611148.56 | K141: 8827125.44 | L141: 9083014
B142: July | C142: 9080665 | D142: 8447553 | E142: 9698694 | F142: 9557985 | G142: 10333884 | H142: 8943567.38 | I142: 9634858.64 | J142: 9912477.23 | K142: 10244421.66 | L142: 10707430
B143: August | C143: 9517733 | D143: 8640906 | E143: 9512830 | F143: 8688391 | G143: 9206403 | H143: 10027303.54 | I143: 9874706.47 | J143: 9166355.57 | K143: 9562430.39 | L143: 9981547
B144: September | C144: 8054076 | D144: 8076439 | E144: 8248876 | F144: 7563722 | G144: 7627587 | H144: 8054741.79 | I144: 8176359.46 | J144: 8452338.14 | K144: 8514902.16 | L144: 8576052
B145: October | C145: 8074621 | D145: 7983759 | E145: 8273205 | F145: 7908177 | G145: 8195562 | H145: 8075869 | I145: 8309018.85 | J145: 8306104.55 | K145: 8472948.77 | L145: 8819455
B146: November | C146: 8792790 | D146: 9161805 | E146: 9371732 | F146: 9264874 | G146: 8711857 | H146: 9085638.87 | I146: 8944137.61 | J146: 9189967.58 | K146: 9017603.88 | L146: 10182138
B147: December | C147: 10206407 | D147: 10688479 | E147: 10215218 | F147: 10207018 | G147: 10055028 | H147: 10218754 | I147: 10328303.78 | J147: 10068806.25 | K147: 10867006.92 | L147: 12019804
B148: Total | C148: =SUM(C136:C147) -> 109654087 | D148: =SUM(D136:D147) -> 107118589 | E148: 110214244 | F148: 108677810 | G148: 108412541 | H148: 109194031.7 | I148: 113489389.4 | J148: 111194878.8 | K148: =SUM(K136:K147) -> 113129885.2 | L148: =SUM(L136:L147) -> 119186821
B149: Percent Change | D149: =(D148-C148)/C148 -> -0.02312269492 | E149: 0.02889932577 | F149: -0.01394043042 | G149: -0.002440875465 | H149: 0.007208490206 | I149: 0.03933692686 | J149: -0.02021784259 | K149: 0.01740193848 | L149: 0.05353966177
B152: R E T A I L T O T A L
B153: Retail | C153: =C135 -> 2016 | D153: =D135 -> 2017 | E153: 2018 | F153: 2019 | G153: 2020 | H153: 2021 | I153: 2022 | J153: 2023 | K153: =K135 -> 2024 | L153: =L135 -> 2025
B154: =Controls!B15 -> Residential
B155: kWh | C155: =SUM($D$12:$D$23) -> 44987762 | D155: =SUM($D$24:$D$35) -> 43072131 | E155: =SUM($D$36:$D$47) -> 45964868 | F155: =SUM($D$48:$D$59) -> 45802374 | G155: =SUM($D$60:$D$71) -> 46867868 | H155: =SUM($D$72:$D$83) -> 47371200 | I155: =SUM($D$84:$D$95) -> 47305071 | J155: =SUM($D$96:$D$107) -> 46366246 | K155: =SUM($D$108:$D$119) -> 47417572 | L155: =SUM($D$120:$D$131) -> 49187731.18
B156: Cust Count | C156: =AVERAGE($E$12:$E$23) -> 5071 | D156: =AVERAGE($E$24:$E$35) -> 5089 | E156: =AVERAGE($E$36:$E$47) -> 5105 | F156: =AVERAGE($E$48:$E$59) -> 5113 | G156: =AVERAGE($E$60:$E$71) -> 5107 | H156: =AVERAGE($E$72:$E$83) -> 5136 | I156: =AVERAGE($E$84:$E$95) -> 5214 | J156: =AVERAGE($E$96:$E$107) -> 5260 | K156: =AVERAGE($E$108:$E$119) -> 5178 | L156: =AVERAGE($E$120:$E$131) -> 5319.416667
B158: =Controls!B16 -> General Service < 50 kW
B159: kWh | C159: =SUM($F$12:$F$23) -> 21726966 | D159: =SUM($F$24:$F$35) -> 21268954 | E159: =SUM($F$36:$F$47) -> 21662128 | F159: =SUM($F$48:$F$59) -> 21303230 | G159: =SUM($F$60:$F$71) -> 20017067 | H159: =SUM($F$72:$F$83) -> 19174594 | I159: =SUM($F$84:$F$95) -> 20125754 | J159: =SUM($F$96:$F$107) -> 21318646 | K159: =SUM($F$108:$F$119) -> 21897687 | L159: =SUM($F$120:$F$131) -> 21939982
B160: Cust Count | C160: =AVERAGE($G$12:$G$23) -> 740 | D160: =AVERAGE($G$24:$G$35) -> 741 | E160: =AVERAGE($G$36:$G$47) -> 739 | F160: =AVERAGE($G$48:$G$59) -> 735 | G160: =AVERAGE($G$60:$G$71) -> 731 | H160: =AVERAGE($G$72:$G$83) -> 730 | I160: =AVERAGE($G$84:$G$95) -> 731 | J160: =AVERAGE($G$96:$G$107) -> 732 | K160: =AVERAGE($G$108:$G$119) -> 735 | L160: =AVERAGE($G$120:$G$131) -> 741.3333333
B162: =Controls!B17 -> General Service > 50 to 4999 kW
B163: kWh | C163: =SUM($H$12:$H$23) -> 42377951 | D163: =SUM($H$24:$H$35) -> 41229870 | E163: =SUM($H$36:$H$47) -> 40354309 | F163: =SUM($H$48:$H$59) -> 39929663 | G163: =SUM($H$60:$H$71) -> 39076317 | H163: =SUM($H$72:$H$83) -> 40874963 | I163: =SUM($H$84:$H$95) -> 43424310 | J163: =SUM($H$96:$H$107) -> 41433788 | K163: =SUM($H$108:$H$119) -> 41771128 | L163: =SUM($H$120:$H$131) -> 43717520.24
B164: kW | C164: =SUM($I$12:$I$23) -> 113671.0784 | D164: =SUM($I$24:$I$35) -> 110383.0606 | E164: =SUM($I$36:$I$47) -> 110809.2285 | F164: =SUM($I$48:$I$59) -> 109453.2472 | G164: =SUM($I$60:$I$71) -> 108558.8609 | H164: =SUM($I$72:$I$83) -> 110610.24 | I164: =SUM($I$84:$I$95) -> 116000.0891 | J164: =SUM($I$96:$I$107) -> 112620.8528 | K164: =SUM($I$108:$I$119) -> 119072.4839 | L164: =SUM($I$120:$I$131) -> 119132.0201
B165: Cust Count | C165: =AVERAGE($J$12:$J$23) -> 64 | D165: =AVERAGE($J$24:$J$35) -> 63 | E165: =AVERAGE($J$36:$J$47) -> 65 | F165: =AVERAGE($J$48:$J$59) -> 62 | G165: =AVERAGE($J$60:$J$71) -> 61 | H165: =AVERAGE($J$72:$J$83) -> 61 | I165: =AVERAGE($J$84:$J$95) -> 59 | J165: =AVERAGE($J$96:$J$107) -> 61 | K165: =AVERAGE($J$108:$J$119) -> 62.08333333 | L165: =AVERAGE($J$120:$J$131) -> 65.58333333
B167: =Controls!B18 -> Unmetered Scattered Load
B168: kWh | C168: =SUM($K$12:$K$23) -> 585713 | D168: =SUM($K$24:$K$35) -> 584238 | E168: =SUM($K$36:$K$47) -> 584377 | F168: =SUM($K$48:$K$59) -> 582285 | G168: =SUM($K$60:$K$71) -> 572924 | H168: =SUM($K$72:$K$83) -> 587169 | I168: =SUM($K$84:$K$95) -> 581138 | J168: =SUM($K$96:$K$107) -> 591853 | K168: =SUM($K$108:$K$119) -> 621551 | L168: =SUM($K$120:$K$131) -> 630754.1169
B169: kW | C169: =SUM($L$12:$L$23) -> 0 | D169: =SUM($L$24:$L$35) -> 0 | E169: =SUM($L$36:$L$47) -> 0 | F169: =SUM($L$48:$L$59) -> 0 | G169: =SUM($L$60:$L$71) -> 0 | H169: =SUM($L$72:$L$83) -> 0 | I169: =SUM($L$84:$L$95) -> 0 | J169: =SUM($L$96:$L$107) -> 0 | K169: =SUM($L$108:$L$119) -> 0 | L169: =SUM($L$120:$L$131) -> 0
B170: Cust Count | C170: =AVERAGE($M$12:$M$23) -> 58 | D170: =AVERAGE($M$24:$M$35) -> 57 | E170: =AVERAGE($M$36:$M$47) -> 57 | F170: =AVERAGE($M$48:$M$59) -> 57 | G170: =AVERAGE($M$60:$M$71) -> 57 | H170: =AVERAGE($M$72:$M$83) -> 57 | I170: =AVERAGE($M$84:$M$95) -> 57 | J170: =AVERAGE($M$96:$M$107) -> 57 | K170: =AVERAGE($M$108:$M$119) -> 57 | L170: =AVERAGE($M$120:$M$131) -> 60
B172: =Controls!B19 -> Sentinel
B173: kWh | C173: =SUM($N$12:$N$23) -> 113970 | D173: =SUM($N$24:$N$35) -> 106656 | E173: =SUM($N$36:$N$47) -> 104996 | F173: =SUM($N$48:$N$59) -> 106134 | G173: =SUM($N$60:$N$71) -> 104583 | H173: =SUM($N$72:$N$83) -> 95863 | I173: =SUM($N$84:$N$95) -> 94991 | J173: =SUM($N$96:$N$107) -> 94444 | K173: =SUM($N$108:$N$119) -> 93750 | L173: =SUM($N$120:$N$131) -> 90421.11849
B174: kW | C174: =SUM($O$12:$O$23) -> 297.2773401 | D174: =SUM($O$24:$O$35) -> 272.7362021 | E174: =SUM($O$36:$O$47) -> 265.958697 | F174: =SUM($O$48:$O$59) -> 271.2299411 | G174: =SUM($O$60:$O$71) -> 267.5504924 | H174: =SUM($O$72:$O$83) -> 245.5033568 | I174: =SUM($O$84:$O$95) -> 242.3112619 | J174: =SUM($O$96:$O$107) -> 241.1719469 | K174: =SUM($O$108:$O$119) -> 240.2413618 | L174: =SUM($O$120:$O$131) -> 252
B175: Cust Count | C175: =AVERAGE($P$12:$P$23) -> 73 | D175: =AVERAGE($P$24:$P$35) -> 71 | E175: =AVERAGE($P$36:$P$47) -> 72 | F175: =AVERAGE($P$48:$P$59) -> 74 | G175: =AVERAGE($P$60:$P$71) -> 73 | H175: =AVERAGE($P$72:$P$83) -> 70 | I175: =AVERAGE($P$84:$P$95) -> 70 | J175: =AVERAGE($P$96:$P$107) -> 70 | K175: =AVERAGE($P$108:$P$119) -> 70 | L175: =AVERAGE($P$120:$P$131) -> 70
B177: =Controls!B20 -> StreetLights
B178: kWh | C178: =SUM($Q$12:$Q$23) -> 831237 | D178: =SUM($Q$24:$Q$35) -> 771054 | E178: =SUM($Q$36:$Q$47) -> 748634 | F178: =SUM($Q$48:$Q$59) -> 748634 | G178: =SUM($Q$60:$Q$71) -> 697551 | H178: =SUM($Q$72:$Q$83) -> 696298 | I178: =SUM($Q$84:$Q$95) -> 696019 | J178: =SUM($Q$96:$Q$107) -> 698496 | K178: =SUM($Q$108:$Q$119) -> 700230 | L178: =SUM($Q$120:$Q$131) -> 702628.8468
B179: kW | C179: =SUM($R$12:$R$23) -> 2037.944446 | D179: =SUM($R$24:$R$35) -> 1921.999685 | E179: =SUM($R$36:$R$47) -> 1909.977457 | F179: =SUM($R$48:$R$59) -> 1881.657716 | G179: =SUM($R$60:$R$71) -> 1734.602449 | H179: =SUM($R$72:$R$83) -> 1742.475045 | I179: =SUM($R$84:$R$95) -> 1736.161236 | J179: =SUM($R$96:$R$107) -> 1741.930447 | K179: =SUM($R$108:$R$119) -> 1743.432781 | L179: =SUM($R$120:$R$131) -> 1752
B180: Cust Count | C180: =AVERAGE($S$12:$S$23) -> 1711 | D180: =AVERAGE($S$24:$S$35) -> 1711 | E180: =AVERAGE($S$36:$S$47) -> 1711 | F180: =AVERAGE($S$48:$S$59) -> 1711 | G180: =AVERAGE($S$60:$S$71) -> 1712 | H180: =AVERAGE($S$72:$S$83) -> 1712 | I180: =AVERAGE($S$84:$S$95) -> 1712 | J180: =AVERAGE($S$96:$S$107) -> 1713 | K180: =AVERAGE($S$108:$S$119) -> 1713 | L180: =AVERAGE($S$120:$S$131) -> 1713
B182: Total
B183: kWh | C183: =C155+C159+C163+C168+C173+C178 -> 110623599 | D183: =D155+D159+D163+D168+D173+D178 -> 107032903 | E183: 109419312 | F183: 108472320 | G183: 107336310 | H183: 108800087 | I183: 112227283 | J183: 110503473 | K183: 112501918 | L183: 116269037.5
B184: kW | C184: =C156+C160+C164+C169+C174+C179 -> 121817.3002 | D184: 118407.7965 | E184: 118829.1647 | F184: 117454.1349 | G184: 116399.0139 | H184: 118464.2184 | I184: 123923.5616 | J184: 120595.9552 | K184: 126969.158 | L184: 127196.7701
B185: Cust Count | C185: 1906 | D185: 1902 | E185: 1905 | F185: 1904 | G185: 1903 | H185: 1900 | I185: 1898 | J185: 1901 | K185: 1902.083333 | L185: 1908.583333
B187: kWh | D187: =(D183-C183)/C183 -> -0.03245868 | E187: 0.02229603172 | F187: -0.008654706219 | G187: -0.01047281002 | H187: 0.01363729571 | I187: 0.03149993805 | J187: -0.01535999049 | K187: 0.01808490671 | L187: 0.03348493582
B188: kW | D188: -0.0279886658 | E188: 0.003558618764 | F188: -0.01157148389 | G188: -0.008983259867 | H188: 0.01774245746 | I188: 0.04608432189 | J188: -0.02685208835 | K188: 0.05284756733 | L188: 0.001792656597
B189: Cust Count | D189: -0.002098635887 | E189: 0.001577287066 | F189: -0.0005249343832 | G189: -0.000525210084 | H189: -0.001576458224 | I189: -0.001052631579 | J189: 0.00158061117 | K189: 0.0005698755041 | L189: 0.003417305586
B193: C U S T O M E R F O R E C A S T S U M M A R Y
C194: =D10 -> Residential | E194: =F10 -> General Service < 50 kW | G194: =H10 -> General Service > 50 to 4999 kW | I194: =K10 -> Unmetered Scattered Load | K194: =N10 -> Sentinel | M194: =Controls!B20 -> StreetLights
B195: Date | C195: Cust# | D195: Growth Rate | E195: Cust# | F195: Growth Rate | G195: Cust# | H195: Growth Rate | I195: Cust# | J195: Growth Rate | K195: Cust# | L195: Growth Rate | M195: Cust# | N195: Growth Rate
B196: =$C$7-11 -> 2016 | C196: =AVERAGE(E12:E23) -> 5071 | E196: =AVERAGE(G12:G23) -> 740 | G196: =AVERAGE(J12:J23) -> 64 | I196: =AVERAGE(M12:M23) -> 58 | K196: =AVERAGE(P12:P23) -> 73 | M196: =AVERAGE(S12:S23) -> 1711
B197: =$C$7-10 -> 2017 | C197: =AVERAGE(E24:E35) -> 5089 | D197: =C197/C196 -> 1.003549596 | E197: =AVERAGE(G24:G35) -> 741 | F197: 1.001351351 | G197: =AVERAGE(J24:J35) -> 63 | H197: =G197/G196 -> 0.984375 | I197: =AVERAGE(M24:M35) -> 57 | J197: =I197/I196 -> 0.9827586207 | K197: =AVERAGE(P24:P35) -> 71 | L197: =K197/K196 -> 0.9726027397 | M197: =AVERAGE(S24:S35) -> 1711 | N197: 1
B198: =$C$7-9 -> 2018 | C198: =AVERAGE(E36:E47) -> 5105 | D198: 1.003144036 | E198: =AVERAGE(G36:G47) -> 739 | F198: 0.9973009447 | G198: =AVERAGE(J36:J47) -> 65 | H198: 1.031746032 | I198: =AVERAGE(M36:M47) -> 57 | J198: 1 | K198: =AVERAGE(P36:P47) -> 72 | L198: 1.014084507 | M198: =AVERAGE(S36:S47) -> 1711 | N198: 1
B199: =$C$7-8 -> 2019 | C199: =AVERAGE(E48:E59) -> 5113 | D199: 1.001567091 | E199: =AVERAGE(G48:G59) -> 735 | F199: 0.9945872801 | G199: =AVERAGE(J48:J59) -> 62 | H199: 0.9538461538 | I199: =AVERAGE(M48:M59) -> 57 | J199: 1 | K199: =AVERAGE(P48:P59) -> 74 | L199: 1.027777778 | M199: =AVERAGE(S48:S59) -> 1711 | N199: 1
B200: =$C$7-7 -> 2020 | C200: =AVERAGE(E60:E71) -> 5107 | D200: 0.9988265206 | E200: =AVERAGE(G60:G71) -> 731 | F200: 0.9945578231 | G200: =AVERAGE(J60:J71) -> 61 | H200: 0.9838709677 | I200: =AVERAGE(M60:M71) -> 57 | J200: 1 | K200: =AVERAGE(P60:P71) -> 73 | L200: 0.9864864865 | M200: =AVERAGE(S60:S71) -> 1712 | N200: 1.000584454
B201: =$C$7-6 -> 2021 | C201: =AVERAGE(E72:E83) -> 5136 | D201: 1.005678481 | E201: =AVERAGE(G72:G83) -> 730 | F201: 0.9986320109 | G201: =AVERAGE(J72:J83) -> 61 | H201: 1 | I201: =AVERAGE(M72:M83) -> 57 | J201: 1 | K201: =AVERAGE(P72:P83) -> 70 | L201: 0.9589041096 | M201: =AVERAGE(S72:S83) -> 1712 | N201: 1
B202: =$C$7-5 -> 2022 | C202: =AVERAGE(E84:E95) -> 5214 | D202: 1.015186916 | E202: =AVERAGE(G84:G95) -> 731 | F202: 1.001369863 | G202: =AVERAGE(J84:J95) -> 59 | H202: 0.9672131148 | I202: =AVERAGE(M84:M95) -> 57 | J202: 1 | K202: =AVERAGE(P84:P95) -> 70 | L202: 1 | M202: =AVERAGE(S84:S95) -> 1712 | N202: 1
B203: =$C$7-4 -> 2023 | C203: =AVERAGE(E96:E107) -> 5260 | D203: 1.008822401 | E203: =AVERAGE(G96:G107) -> 732 | F203: 1.001367989 | G203: =AVERAGE(J96:J107) -> 61 | H203: 1.033898305 | I203: =AVERAGE(M96:M107) -> 57 | J203: 1 | K203: =AVERAGE(P96:P107) -> 70 | L203: 1 | M203: =AVERAGE(S96:S107) -> 1713 | N203: 1.000584112
B204: =$C$7-3 -> 2024 | C204: =AVERAGE(E108:E119) -> 5178 | D204: 0.9844106464 | E204: =AVERAGE(G108:G119) -> 735 | F204: 1.004098361 | G204: =AVERAGE(J108:J119) -> 62.08333333 | H204: 1.017759563 | I204: =AVERAGE(M108:M119) -> 57 | J204: 1 | K204: =AVERAGE(P108:P119) -> 70 | L204: 1 | M204: =AVERAGE(S108:S119) -> 1713 | N204: 1
B205: =$C$7-2 -> 2025 | C205: =AVERAGE(E120:E131) -> 5319.416667 | D205: 1.02731106 | E205: =AVERAGE(G120:G131) -> 741.3333333 | F205: 1.00861678 | G205: =AVERAGE(J120:J131) -> 65.58333333 | H205: 1.056375839 | I205: =AVERAGE(M120:M131) -> 60 | J205: 1.052631579 | K205: =AVERAGE(P120:P131) -> 70 | L205: 1 | M205: =AVERAGE(S120:S131) -> 1713 | N205: 1
B207: Geomean | D207: =GEOMEAN(IF(D197:D205>0,D197:D205)) -> 1.005328101 | F207: =GEOMEAN(IF(F197:F205>0,F197:F205)) -> 1.00020004 | H207: =GEOMEAN(IF(H197:H205>0,H197:H205)) -> 1.002719081 | J207: =GEOMEAN(IF(J197:J205>0,J197:J205)) -> 1.003773943 | L207: =GEOMEAN(IF(L197:L205>0,L197:L205)) -> 0.9953481647 | N207: =GEOMEAN(IF(N197:N205>0,N197:N205)) -> 1.000129811
B209: =$C$7-1 -> 2026 | C209: =C205*D207 -> 5347.759056 | E209: =E205*F207 -> 741.4816297 | G209: =G205*H207 -> 65.7616597 | I209: =I205*J207 -> 60.22643655 | K209: =K205*L207 -> 69.67437153 | M209: =M205*N207 -> 1713.222366
B210: =$C$7 -> 2027 | C210: =C209*D207 -> 5376.252456 | E210: =E209*F207 -> 741.6299557 | G210: =G209*H207 -> 65.94047096 | I210: =I209*J207 -> 60.45372766 | K210: =K209*L207 -> 69.35025782 | M210: =M209*N207 -> 1713.444762

Sheet Adjustments and Var
B9: A D J U S T E D W H O L E S A L E | K9: V A R I A B L E S U S E D I N R E G R E S S I O N
C10: Unadjusted Wholesale Purchases kWh | D10: MicroFit | E10: Load Adjustments | F10: Load Adjustments | G10: Load Adjustments | H10: Load Adjustments | I10: Revised Wholesale Purchases | K10: HDD (OTT) | L10: CDD (OTT) | M10: NoD in Month | N10: Spring Fall | O10: Cust Count | P10: Covid Intensity
B11: ='Monthly Load & Cust Input'!B12 -> 2016-01-01 | C11: 10989034 | I11: =C11-SUM(D11:H11) -> 10989034 | K11: 804.8 | L11: 0 | M11: 31 | N11: 0 | O11: ='Monthly Load & Cust Input'!E12+'Monthly Load & Cust Input'!G12+'Monthly Load & Cust Input'!J12+'Monthly Load & Cust Input'!M12+'Monthly Load & Cust Input'!P12+5 -> 6011 | P11: 0
B12: ='Monthly Load & Cust Input'!B13 -> 2016-02-01 | C12: 10461168 | I12: =C12-SUM(D12:H12) -> 10461168 | K12: 756.3 | L12: 0 | M12: 29 | N12: 0 | O12: ='Monthly Load & Cust Input'!E13+'Monthly Load & Cust Input'!G13+'Monthly Load & Cust Input'!J13+'Monthly Load & Cust Input'!M13+'Monthly Load & Cust Input'!P13+5 -> 6011 | P12: 0
B13: ='Monthly Load & Cust Input'!B14 -> 2016-03-01 | C13: 9905017 | I13: 9905017 | K13: 591.4 | L13: 0 | M13: 31 | N13: 0 | O13: ='Monthly Load & Cust Input'!E14+'Monthly Load & Cust Input'!G14+'Monthly Load & Cust Input'!J14+'Monthly Load & Cust Input'!M14+'Monthly Load & Cust Input'!P14+5 -> 6011 | P13: 0
B14: ='Monthly Load & Cust Input'!B15 -> 2016-04-01 | C14: 8448753 | I14: 8448753 | K14: 433.8 | L14: 0 | M14: 30 | N14: 1 | O14: ='Monthly Load & Cust Input'!E15+'Monthly Load & Cust Input'!G15+'Monthly Load & Cust Input'!J15+'Monthly Load & Cust Input'!M15+'Monthly Load & Cust Input'!P15+5 -> 6011 | P14: 0
B15: ='Monthly Load & Cust Input'!B16 -> 2016-05-01 | C15: 7971052 | I15: 7971052 | K15: 145.4 | L15: 28.7 | M15: 31 | N15: 1 | O15: ='Monthly Load & Cust Input'!E16+'Monthly Load & Cust Input'!G16+'Monthly Load & Cust Input'!J16+'Monthly Load & Cust Input'!M16+'Monthly Load & Cust Input'!P16+5 -> 6011 | P15: 0
B16: ='Monthly Load & Cust Input'!B17 -> 2016-06-01 | C16: 8152771 | I16: 8152771 | K16: 36.3 | L16: 52 | M16: 30 | N16: 1 | O16: ='Monthly Load & Cust Input'!E17+'Monthly Load & Cust Input'!G17+'Monthly Load & Cust Input'!J17+'Monthly Load & Cust Input'!M17+'Monthly Load & Cust Input'!P17+5 -> 6011 | P16: 0
B17: ='Monthly Load & Cust Input'!B18 -> 2016-07-01 | C17: 9080665 | I17: 9080665 | K17: 3.4 | L17: 112.6 | M17: 31 | N17: 0 | O17: ='Monthly Load & Cust Input'!E18+'Monthly Load & Cust Input'!G18+'Monthly Load & Cust Input'!J18+'Monthly Load & Cust Input'!M18+'Monthly Load & Cust Input'!P18+5 -> 6011 | P17: 0
B18: ='Monthly Load & Cust Input'!B19 -> 2016-08-01 | C18: 9517733 | I18: 9517733 | K18: 1.4 | L18: 124.6 | M18: 31 | N18: 0 | O18: ='Monthly Load & Cust Input'!E19+'Monthly Load & Cust Input'!G19+'Monthly Load & Cust Input'!J19+'Monthly Load & Cust Input'!M19+'Monthly Load & Cust Input'!P19+5 -> 6011 | P18: 0
B19: ='Monthly Load & Cust Input'!B20 -> 2016-09-01 | C19: 8054076 | I19: 8054076 | K19: 75.1 | L19: 24.9 | M19: 30 | N19: 1 | O19: ='Monthly Load & Cust Input'!E20+'Monthly Load & Cust Input'!G20+'Monthly Load & Cust Input'!J20+'Monthly Load & Cust Input'!M20+'Monthly Load & Cust Input'!P20+5 -> 6011 | P19: 0
B20: ='Monthly Load & Cust Input'!B21 -> 2016-10-01 | C20: 8074621 | I20: 8074621 | K20: 291.1 | L20: 0 | M20: 31 | N20: 1 | O20: ='Monthly Load & Cust Input'!E21+'Monthly Load & Cust Input'!G21+'Monthly Load & Cust Input'!J21+'Monthly Load & Cust Input'!M21+'Monthly Load & Cust Input'!P21+5 -> 6011 | P20: 0
B21: ='Monthly Load & Cust Input'!B22 -> 2016-11-01 | C21: 8792790 | I21: 8792790 | K21: 449.5 | L21: 0 | M21: 30 | N21: 1 | O21: ='Monthly Load & Cust Input'!E22+'Monthly Load & Cust Input'!G22+'Monthly Load & Cust Input'!J22+'Monthly Load & Cust Input'!M22+'Monthly Load & Cust Input'!P22+5 -> 6011 | P21: 0
B22: ='Monthly Load & Cust Input'!B23 -> 2016-12-01 | C22: 10206407 | I22: 10206407 | K22: 733.4 | L22: 0 | M22: 31 | N22: 0 | O22: ='Monthly Load & Cust Input'!E23+'Monthly Load & Cust Input'!G23+'Monthly Load & Cust Input'!J23+'Monthly Load & Cust Input'!M23+'Monthly Load & Cust Input'!P23+5 -> 6011 | P22: 0
B23: ='Monthly Load & Cust Input'!B24 -> 2017-01-01 | C23: 10464420 | I23: 10464420 | K23: 732.5 | L23: 0 | M23: 28 | N23: 0 | O23: ='Monthly Load & Cust Input'!E24+'Monthly Load & Cust Input'!G24+'Monthly Load & Cust Input'!J24+'Monthly Load & Cust Input'!M24+'Monthly Load & Cust Input'!P24+5 -> 6026 | P23: 0
B24: ='Monthly Load & Cust Input'!B25 -> 2017-02-01 | C24: 9412266 | I24: 9412266 | K24: 662.1 | L24: 0 | M24: 28 | N24: 0 | O24: ='Monthly Load & Cust Input'!E25+'Monthly Load & Cust Input'!G25+'Monthly Load & Cust Input'!J25+'Monthly Load & Cust Input'!M25+'Monthly Load & Cust Input'!P25+5 -> 6026 | P24: 0
B25: ='Monthly Load & Cust Input'!B26 -> 2017-03-01 | C25: 10449490 | I25: 10449490 | K25: 731.7 | L25: 0 | M25: 31 | N25: 0 | O25: ='Monthly Load & Cust Input'!E26+'Monthly Load & Cust Input'!G26+'Monthly Load & Cust Input'!J26+'Monthly Load & Cust Input'!M26+'Monthly Load & Cust Input'!P26+5 -> 6026 | P25: 0
B26: ='Monthly Load & Cust Input'!B27 -> 2017-04-01 | C26: 8073164 | I26: 8073164 | K26: 319.4 | L26: 1.2 | M26: 30 | N26: 1 | O26: ='Monthly Load & Cust Input'!E27+'Monthly Load & Cust Input'!G27+'Monthly Load & Cust Input'!J27+'Monthly Load & Cust Input'!M27+'Monthly Load & Cust Input'!P27+5 -> 6026 | P26: 0
B27: ='Monthly Load & Cust Input'!B28 -> 2017-05-01 | C27: 7836699 | I27: 7836699 | K27: 190.4 | L27: 9.1 | M27: 31 | N27: 1 | O27: ='Monthly Load & Cust Input'!E28+'Monthly Load & Cust Input'!G28+'Monthly Load & Cust Input'!J28+'Monthly Load & Cust Input'!M28+'Monthly Load & Cust Input'!P28+5 -> 6026 | P27: 0
B28: ='Monthly Load & Cust Input'!B29 -> 2017-06-01 | C28: 7883609 | I28: 7883609 | K28: 52.1 | L28: 45 | M28: 30 | N28: 1 | O28: ='Monthly Load & Cust Input'!E29+'Monthly Load & Cust Input'!G29+'Monthly Load & Cust Input'!J29+'Monthly Load & Cust Input'!M29+'Monthly Load & Cust Input'!P29+5 -> 6026 | P28: 0
B29: ='Monthly Load & Cust Input'!B30 -> 2017-07-01 | C29: 8447553 | I29: 8447553 | K29: 4.8 | L29: 63.8 | M29: 31 | N29: 0 | O29: ='Monthly Load & Cust Input'!E30+'Monthly Load & Cust Input'!G30+'Monthly Load & Cust Input'!J30+'Monthly Load & Cust Input'!M30+'Monthly Load & Cust Input'!P30+5 -> 6026 | P29: 0
B30: ='Monthly Load & Cust Input'!B31 -> 2017-08-01 | C30: 8640906 | I30: 8640906 | K30: 26.9 | L30: 51 | M30: 31 | N30: 0 | O30: ='Monthly Load & Cust Input'!E31+'Monthly Load & Cust Input'!G31+'Monthly Load & Cust Input'!J31+'Monthly Load & Cust Input'!M31+'Monthly Load & Cust Input'!P31+5 -> 6026 | P30: 0
B31: ='Monthly Load & Cust Input'!B32 -> 2017-09-01 | C31: 8076439 | I31: 8076439 | K31: 69.8 | L31: 52 | M31: 30 | N31: 1 | O31: ='Monthly Load & Cust Input'!E32+'Monthly Load & Cust Input'!G32+'Monthly Load & Cust Input'!J32+'Monthly Load & Cust Input'!M32+'Monthly Load & Cust Input'!P32+5 -> 6026 | P31: 0
B32: ='Monthly Load & Cust Input'!B33 -> 2017-10-01 | C32: 7983759 | I32: 7983759 | K32: 192.8 | L32: 0.4 | M32: 31 | N32: 1 | O32: ='Monthly Load & Cust Input'!E33+'Monthly Load & Cust Input'!G33+'Monthly Load & Cust Input'!J33+'Monthly Load & Cust Input'!M33+'Monthly Load & Cust Input'!P33+5 -> 6026 | P32: 0
B33: ='Monthly Load & Cust Input'!B34 -> 2017-11-01 | C33: 9161805 | I33: 9161805 | K33: 524.6 | L33: 0 | M33: 30 | N33: 1 | O33: ='Monthly Load & Cust Input'!E34+'Monthly Load & Cust Input'!G34+'Monthly Load & Cust Input'!J34+'Monthly Load & Cust Input'!M34+'Monthly Load & Cust Input'!P34+5 -> 6026 | P33: 0
B34: ='Monthly Load & Cust Input'!B35 -> 2017-12-01 | C34: 10688479 | I34: 10688479 | K34: 871.3 | L34: 0 | M34: 31 | N34: 0 | O34: ='Monthly Load & Cust Input'!E35+'Monthly Load & Cust Input'!G35+'Monthly Load & Cust Input'!J35+'Monthly Load & Cust Input'!M35+'Monthly Load & Cust Input'!P35+5 -> 6026 | P34: 0
B35: ='Monthly Load & Cust Input'!B36 -> 2018-01-01 | C35: 11412898 | I35: 11412898 | K35: 848.8 | L35: 0 | M35: 31 | N35: 0 | O35: ='Monthly Load & Cust Input'!E36+'Monthly Load & Cust Input'!G36+'Monthly Load & Cust Input'!J36+'Monthly Load & Cust Input'!M36+'Monthly Load & Cust Input'!P36+5 -> 6043 | P35: 0
B36: ='Monthly Load & Cust Input'!B37 -> 2018-02-01 | C36: 9438920 | I36: 9438920 | K36: 644.6 | L36: 0 | M36: 28 | N36: 0 | O36: ='Monthly Load & Cust Input'!E37+'Monthly Load & Cust Input'!G37+'Monthly Load & Cust Input'!J37+'Monthly Load & Cust Input'!M37+'Monthly Load & Cust Input'!P37+5 -> 6043 | P36: 0
B37: ='Monthly Load & Cust Input'!B38 -> 2018-03-01 | C37: 9778013 | I37: 9778013 | K37: 591 | L37: 0 | M37: 31 | N37: 0 | O37: ='Monthly Load & Cust Input'!E38+'Monthly Load & Cust Input'!G38+'Monthly Load & Cust Input'!J38+'Monthly Load & Cust Input'!M38+'Monthly Load & Cust Input'!P38+5 -> 6043 | P37: 0
B38: ='Monthly Load & Cust Input'!B39 -> 2018-04-01 | C38: 8757348 | I38: 8757348 | K38: 454.4 | L38: 0 | M38: 30 | N38: 1 | O38: ='Monthly Load & Cust Input'!E39+'Monthly Load & Cust Input'!G39+'Monthly Load & Cust Input'!J39+'Monthly Load & Cust Input'!M39+'Monthly Load & Cust Input'!P39+5 -> 6043 | P38: 0
B39: ='Monthly Load & Cust Input'!B40 -> 2018-05-01 | C39: 7670323 | I39: 7670323 | K39: 110.4 | L39: 15.7 | M39: 31 | N39: 1 | O39: ='Monthly Load & Cust Input'!E40+'Monthly Load & Cust Input'!G40+'Monthly Load & Cust Input'!J40+'Monthly Load & Cust Input'!M40+'Monthly Load & Cust Input'!P40+5 -> 6043 | P39: 0
B40: ='Monthly Load & Cust Input'!B41 -> 2018-06-01 | C40: 7836187 | I40: 7836187 | K40: 39 | L40: 36.2 | M40: 30 | N40: 1 | O40: ='Monthly Load & Cust Input'!E41+'Monthly Load & Cust Input'!G41+'Monthly Load & Cust Input'!J41+'Monthly Load & Cust Input'!M41+'Monthly Load & Cust Input'!P41+5 -> 6043 | P40: 0
B41: ='Monthly Load & Cust Input'!B42 -> 2018-07-01 | C41: 9698694 | I41: 9698694 | K41: 0 | L41: 156.9 | M41: 31 | N41: 0 | O41: ='Monthly Load & Cust Input'!E42+'Monthly Load & Cust Input'!G42+'Monthly Load & Cust Input'!J42+'Monthly Load & Cust Input'!M42+'Monthly Load & Cust Input'!P42+5 -> 6043 | P41: 0
B42: ='Monthly Load & Cust Input'!B43 -> 2018-08-01 | C42: 9512830 | I42: 9512830 | K42: 3.6 | L42: 115.4 | M42: 31 | N42: 0 | O42: ='Monthly Load & Cust Input'!E43+'Monthly Load & Cust Input'!G43+'Monthly Load & Cust Input'!J43+'Monthly Load & Cust Input'!M43+'Monthly Load & Cust Input'!P43+5 -> 6043 | P42: 0
B43: ='Monthly Load & Cust Input'!B44 -> 2018-09-01 | C43: 8248876 | I43: 8248876 | K43: 96.8 | L43: 49.5 | M43: 30 | N43: 1 | O43: ='Monthly Load & Cust Input'!E44+'Monthly Load & Cust Input'!G44+'Monthly Load & Cust Input'!J44+'Monthly Load & Cust Input'!M44+'Monthly Load & Cust Input'!P44+5 -> 6043 | P43: 0
B44: ='Monthly Load & Cust Input'!B45 -> 2018-10-01 | C44: 8273205 | I44: 8273205 | K44: 359.1 | L44: 0.7 | M44: 31 | N44: 1 | O44: ='Monthly Load & Cust Input'!E45+'Monthly Load & Cust Input'!G45+'Monthly Load & Cust Input'!J45+'Monthly Load & Cust Input'!M45+'Monthly Load & Cust Input'!P45+5 -> 6043 | P44: 0
B45: ='Monthly Load & Cust Input'!B46 -> 2018-11-01 | C45: 9371732 | I45: 9371732 | K45: 599.5 | L45: 0 | M45: 30 | N45: 1 | O45: ='Monthly Load & Cust Input'!E46+'Monthly Load & Cust Input'!G46+'Monthly Load & Cust Input'!J46+'Monthly Load & Cust Input'!M46+'Monthly Load & Cust Input'!P46+5 -> 6043 | P45: 0
B46: ='Monthly Load & Cust Input'!B47 -> 2018-12-01 | C46: 10215218 | I46: 10215218 | K46: 766.6 | L46: 0 | M46: 31 | N46: 0 | O46: ='Monthly Load & Cust Input'!E47+'Monthly Load & Cust Input'!G47+'Monthly Load & Cust Input'!J47+'Monthly Load & Cust Input'!M47+'Monthly Load & Cust Input'!P47+5 -> 6043 | P46: 0
B47: ='Monthly Load & Cust Input'!B48 -> 2019-01-01 | C47: 11356602 | I47: 11356602 | K47: 934.9 | L47: 0 | M47: 31 | N47: 0 | O47: ='Monthly Load & Cust Input'!E48+'Monthly Load & Cust Input'!G48+'Monthly Load & Cust Input'!J48+'Monthly Load & Cust Input'!M48+'Monthly Load & Cust Input'!P48+5 -> 6046 | P47: 0
B48: ='Monthly Load & Cust Input'!B49 -> 2019-02-01 | C48: 9954781 | I48: 9954781 | K48: 762.2 | L48: 0 | M48: 28 | N48: 0 | O48: ='Monthly Load & Cust Input'!E49+'Monthly Load & Cust Input'!G49+'Monthly Load & Cust Input'!J49+'Monthly Load & Cust Input'!M49+'Monthly Load & Cust Input'!P49+5 -> 6046 | P48: 0
B49: ='Monthly Load & Cust Input'!B50 -> 2019-03-01 | C49: 10085138 | I49: 10085138 | K49: 666.1 | L49: 0 | M49: 31 | N49: 0 | O49: ='Monthly Load & Cust Input'!E50+'Monthly Load & Cust Input'!G50+'Monthly Load & Cust Input'!J50+'Monthly Load & Cust Input'!M50+'Monthly Load & Cust Input'!P50+5 -> 6046 | P49: 0
B50: ='Monthly Load & Cust Input'!B51 -> 2019-04-01 | C50: 8524502 | I50: 8524502 | K50: 398.8 | L50: 0 | M50: 30 | N50: 1 | O50: ='Monthly Load & Cust Input'!E51+'Monthly Load & Cust Input'!G51+'Monthly Load & Cust Input'!J51+'Monthly Load & Cust Input'!M51+'Monthly Load & Cust Input'!P51+5 -> 6046 | P50: 0
B51: ='Monthly Load & Cust Input'!B52 -> 2019-05-01 | C51: 7801649 | I51: 7801649 | K51: 213.2 | L51: 0 | M51: 31 | N51: 1 | O51: ='Monthly Load & Cust Input'!E52+'Monthly Load & Cust Input'!G52+'Monthly Load & Cust Input'!J52+'Monthly Load & Cust Input'!M52+'Monthly Load & Cust Input'!P52+5 -> 6046 | P51: 0
B52: ='Monthly Load & Cust Input'!B53 -> 2019-06-01 | C52: 7764971 | I52: 7764971 | K52: 52.7 | L52: 32 | M52: 30 | N52: 1 | O52: ='Monthly Load & Cust Input'!E53+'Monthly Load & Cust Input'!G53+'Monthly Load & Cust Input'!J53+'Monthly Load & Cust Input'!M53+'Monthly Load & Cust Input'!P53+5 -> 6046 | P52: 0
B53: ='Monthly Load & Cust Input'!B54 -> 2019-07-01 | C53: 9557985 | I53: 9557985 | K53: 0 | L53: 133.1 | M53: 31 | N53: 0 | O53: ='Monthly Load & Cust Input'!E54+'Monthly Load & Cust Input'!G54+'Monthly Load & Cust Input'!J54+'Monthly Load & Cust Input'!M54+'Monthly Load & Cust Input'!P54+5 -> 6046 | P53: 0
B54: ='Monthly Load & Cust Input'!B55 -> 2019-08-01 | C54: 8688391 | I54: 8688391 | K54: 6.3 | L54: 54.8 | M54: 31 | N54: 0 | O54: ='Monthly Load & Cust Input'!E55+'Monthly Load & Cust Input'!G55+'Monthly Load & Cust Input'!J55+'Monthly Load & Cust Input'!M55+'Monthly Load & Cust Input'!P55+5 -> 6046 | P54: 0
B55: ='Monthly Load & Cust Input'!B56 -> 2019-09-01 | C55: 7563722 | I55: 7563722 | K55: 104 | L55: 9.1 | M55: 30 | N55: 1 | O55: ='Monthly Load & Cust Input'!E56+'Monthly Load & Cust Input'!G56+'Monthly Load & Cust Input'!J56+'Monthly Load & Cust Input'!M56+'Monthly Load & Cust Input'!P56+5 -> 6046 | P55: 0
B56: ='Monthly Load & Cust Input'!B57 -> 2019-10-01 | C56: 7908177 | I56: 7908177 | K56: 286.8 | L56: 0 | M56: 31 | N56: 1 | O56: ='Monthly Load & Cust Input'!E57+'Monthly Load & Cust Input'!G57+'Monthly Load & Cust Input'!J57+'Monthly Load & Cust Input'!M57+'Monthly Load & Cust Input'!P57+5 -> 6046 | P56: 0
B57: ='Monthly Load & Cust Input'!B58 -> 2019-11-01 | C57: 9264874 | I57: 9264874 | K57: 590.6 | L57: 0 | M57: 30 | N57: 1 | O57: ='Monthly Load & Cust Input'!E58+'Monthly Load & Cust Input'!G58+'Monthly Load & Cust Input'!J58+'Monthly Load & Cust Input'!M58+'Monthly Load & Cust Input'!P58+5 -> 6046 | P57: 0
B58: ='Monthly Load & Cust Input'!B59 -> 2019-12-01 | C58: 10207018 | I58: 10207018 | K58: 717.2 | L58: 0 | M58: 31 | N58: 0 | O58: ='Monthly Load & Cust Input'!E59+'Monthly Load & Cust Input'!G59+'Monthly Load & Cust Input'!J59+'Monthly Load & Cust Input'!M59+'Monthly Load & Cust Input'!P59+5 -> 6046 | P58: 0
B59: ='Monthly Load & Cust Input'!B60 -> 2020-01-01 | C59: 10475746 | I59: 10475746 | K59: 755.6 | L59: 0 | M59: 31 | N59: 0 | O59: ='Monthly Load & Cust Input'!E60+'Monthly Load & Cust Input'!G60+'Monthly Load & Cust Input'!J60+'Monthly Load & Cust Input'!M60+'Monthly Load & Cust Input'!P60+5 -> 6034 | P59: 0
B60: ='Monthly Load & Cust Input'!B61 -> 2020-02-01 | C60: 9817627 | I60: 9817627 | K60: 725.9 | L60: 0 | M60: 29 | N60: 0 | O60: ='Monthly Load & Cust Input'!E61+'Monthly Load & Cust Input'!G61+'Monthly Load & Cust Input'!J61+'Monthly Load & Cust Input'!M61+'Monthly Load & Cust Input'!P61+5 -> 6034 | P60: 0
B61: ='Monthly Load & Cust Input'!B62 -> 2020-03-01 | C61: 9509806 | I61: 9509806 | K61: 561.7 | L61: 0 | M61: 31 | N61: 0 | O61: ='Monthly Load & Cust Input'!E62+'Monthly Load & Cust Input'!G62+'Monthly Load & Cust Input'!J62+'Monthly Load & Cust Input'!M62+'Monthly Load & Cust Input'!P62+5 -> 6034 | P61: 0.5
B62: ='Monthly Load & Cust Input'!B63 -> 2020-04-01 | C62: 8024763 | I62: 8024763 | K62: 391.1 | L62: 0 | M62: 30 | N62: 1 | O62: ='Monthly Load & Cust Input'!E63+'Monthly Load & Cust Input'!G63+'Monthly Load & Cust Input'!J63+'Monthly Load & Cust Input'!M63+'Monthly Load & Cust Input'!P63+5 -> 6034 | P62: 1
B63: ='Monthly Load & Cust Input'!B64 -> 2020-05-01 | C63: 7939253 | I63: 7939253 | K63: 193.3 | L63: 25.7 | M63: 31 | N63: 1 | O63: ='Monthly Load & Cust Input'!E64+'Monthly Load & Cust Input'!G64+'Monthly Load & Cust Input'!J64+'Monthly Load & Cust Input'!M64+'Monthly Load & Cust Input'!P64+5 -> 6034 | P63: 0.75
B64: ='Monthly Load & Cust Input'!B65 -> 2020-06-01 | C64: 8515025 | I64: 8515025 | K64: 44.7 | L64: 70.4 | M64: 30 | N64: 1 | O64: ='Monthly Load & Cust Input'!E65+'Monthly Load & Cust Input'!G65+'Monthly Load & Cust Input'!J65+'Monthly Load & Cust Input'!M65+'Monthly Load & Cust Input'!P65+5 -> 6034 | P64: 0.5
B65: ='Monthly Load & Cust Input'!B66 -> 2020-07-01 | C65: 10333884 | I65: 10333884 | K65: 0 | L65: 185.8 | M65: 31 | N65: 0 | O65: ='Monthly Load & Cust Input'!E66+'Monthly Load & Cust Input'!G66+'Monthly Load & Cust Input'!J66+'Monthly Load & Cust Input'!M66+'Monthly Load & Cust Input'!P66+5 -> 6034 | P65: 0.25
B66: ='Monthly Load & Cust Input'!B67 -> 2020-08-01 | C66: 9206403 | I66: 9206403 | K66: 25.5 | L66: 70.4 | M66: 31 | N66: 0 | O66: ='Monthly Load & Cust Input'!E67+'Monthly Load & Cust Input'!G67+'Monthly Load & Cust Input'!J67+'Monthly Load & Cust Input'!M67+'Monthly Load & Cust Input'!P67+5 -> 6034 | P66: 0.25
B67: ='Monthly Load & Cust Input'!B68 -> 2020-09-01 | C67: 7627587 | I67: 7627587 | K67: 129 | L67: 9 | M67: 30 | N67: 1 | O67: ='Monthly Load & Cust Input'!E68+'Monthly Load & Cust Input'!G68+'Monthly Load & Cust Input'!J68+'Monthly Load & Cust Input'!M68+'Monthly Load & Cust Input'!P68+5 -> 6034 | P67: 0.25
B68: ='Monthly Load & Cust Input'!B69 -> 2020-10-01 | C68: 8195562 | I68: 8195562 | K68: 327.4 | L68: 0 | M68: 31 | N68: 1 | O68: ='Monthly Load & Cust Input'!E69+'Monthly Load & Cust Input'!G69+'Monthly Load & Cust Input'!J69+'Monthly Load & Cust Input'!M69+'Monthly Load & Cust Input'!P69+5 -> 6034 | P68: 0.5
B69: ='Monthly Load & Cust Input'!B70 -> 2020-11-01 | C69: 8711857 | I69: 8711857 | K69: 429.9 | L69: 0 | M69: 30 | N69: 1 | O69: ='Monthly Load & Cust Input'!E70+'Monthly Load & Cust Input'!G70+'Monthly Load & Cust Input'!J70+'Monthly Load & Cust Input'!M70+'Monthly Load & Cust Input'!P70+5 -> 6034 | P69: 0.75
B70: ='Monthly Load & Cust Input'!B71 -> 2020-12-01 | C70: 10055028 | I70: 10055028 | K70: 647 | L70: 0 | M70: 31 | N70: 0 | O70: ='Monthly Load & Cust Input'!E71+'Monthly Load & Cust Input'!G71+'Monthly Load & Cust Input'!J71+'Monthly Load & Cust Input'!M71+'Monthly Load & Cust Input'!P71+5 -> 6034 | P70: 1
B71: ='Monthly Load & Cust Input'!B72 -> 2021-01-01 | C71: 10499395.99 | I71: 10499395.99 | K71: 755.2 | L71: 0 | M71: 31 | N71: 0 | O71: ='Monthly Load & Cust Input'!E72+'Monthly Load & Cust Input'!G72+'Monthly Load & Cust Input'!J72+'Monthly Load & Cust Input'!M72+'Monthly Load & Cust Input'!P72+5 -> 6059 | P71: 1
B72: ='Monthly Load & Cust Input'!B73 -> 2021-02-01 | C72: 9792629.25 | I72: 9792629.25 | K72: 683.5 | L72: 0 | M72: 28 | N72: 0 | O72: ='Monthly Load & Cust Input'!E73+'Monthly Load & Cust Input'!G73+'Monthly Load & Cust Input'!J73+'Monthly Load & Cust Input'!M73+'Monthly Load & Cust Input'!P73+5 -> 6059 | P72: 0.75
B73: ='Monthly Load & Cust Input'!B74 -> 2021-03-01 | C73: 9788308.27 | I73: 9788308.27 | K73: 577.3 | L73: 0 | M73: 31 | N73: 0 | O73: ='Monthly Load & Cust Input'!E74+'Monthly Load & Cust Input'!G74+'Monthly Load & Cust Input'!J74+'Monthly Load & Cust Input'!M74+'Monthly Load & Cust Input'!P74+5 -> 6059 | P73: 0.5
B74: ='Monthly Load & Cust Input'!B75 -> 2021-04-01 | C74: 7927583.65 | I74: 7927583.65 | K74: 295.3 | L74: 0 | M74: 30 | N74: 1 | O74: ='Monthly Load & Cust Input'!E75+'Monthly Load & Cust Input'!G75+'Monthly Load & Cust Input'!J75+'Monthly Load & Cust Input'!M75+'Monthly Load & Cust Input'!P75+5 -> 6059 | P74: 1
B75: ='Monthly Load & Cust Input'!B76 -> 2021-05-01 | C75: 8042340 | I75: 8042340 | K75: 173.9 | L75: 24.4 | M75: 31 | N75: 1 | O75: ='Monthly Load & Cust Input'!E76+'Monthly Load & Cust Input'!G76+'Monthly Load & Cust Input'!J76+'Monthly Load & Cust Input'!M76+'Monthly Load & Cust Input'!P76+5 -> 6059 | P75: 0.75
B76: ='Monthly Load & Cust Input'!B77 -> 2021-06-01 | C76: 8737900 | I76: =C76-SUM(D76:H76) -> 8737900 | K76: 13.8 | L76: 89.8 | M76: 30 | N76: 1 | O76: ='Monthly Load & Cust Input'!E77+'Monthly Load & Cust Input'!G77+'Monthly Load & Cust Input'!J77+'Monthly Load & Cust Input'!M77+'Monthly Load & Cust Input'!P77+5 -> 6059 | P76: 0.5
B77: ='Monthly Load & Cust Input'!B78 -> 2021-07-01 | C77: 8943567.38 | I77: 8943567.38 | K77: 16.1 | L77: 64.5 | M77: 31 | N77: 0 | O77: ='Monthly Load & Cust Input'!E78+'Monthly Load & Cust Input'!G78+'Monthly Load & Cust Input'!J78+'Monthly Load & Cust Input'!M78+'Monthly Load & Cust Input'!P78+5 -> 6059 | P77: 0.25
B78: ='Monthly Load & Cust Input'!B79 -> 2021-08-01 | C78: 10027303.54 | I78: 10027303.54 | K78: 4.4 | L78: 136 | M78: 31 | N78: 0 | O78: ='Monthly Load & Cust Input'!E79+'Monthly Load & Cust Input'!G79+'Monthly Load & Cust Input'!J79+'Monthly Load & Cust Input'!M79+'Monthly Load & Cust Input'!P79+5 -> 6059 | P78: 0.25
B79: ='Monthly Load & Cust Input'!B80 -> 2021-09-01 | C79: 8054741.79 | I79: 8054741.79 | K79: 69.5 | L79: 4.7 | M79: 30 | N79: 1 | O79: ='Monthly Load & Cust Input'!E80+'Monthly Load & Cust Input'!G80+'Monthly Load & Cust Input'!J80+'Monthly Load & Cust Input'!M80+'Monthly Load & Cust Input'!P80+5 -> 6059 | P79: 0.25
B80: ='Monthly Load & Cust Input'!B81 -> 2021-10-01 | C80: 8075869 | I80: 8075869 | K80: 196.1 | L80: 0.7 | M80: 31 | N80: 1 | O80: ='Monthly Load & Cust Input'!E81+'Monthly Load & Cust Input'!G81+'Monthly Load & Cust Input'!J81+'Monthly Load & Cust Input'!M81+'Monthly Load & Cust Input'!P81+5 -> 6059 | P80: 0.25
B81: ='Monthly Load & Cust Input'!B82 -> 2021-11-01 | C81: 9085638.87 | I81: 9085638.87 | K81: 509.3 | L81: 0 | M81: 30 | N81: 1 | O81: ='Monthly Load & Cust Input'!E82+'Monthly Load & Cust Input'!G82+'Monthly Load & Cust Input'!J82+'Monthly Load & Cust Input'!M82+'Monthly Load & Cust Input'!P82+5 -> 6059 | P81: 0.25
B82: ='Monthly Load & Cust Input'!B83 -> 2021-12-01 | C82: 10218754 | I82: 10218754 | K82: 692.7 | L82: 0 | M82: 31 | N82: 0 | O82: ='Monthly Load & Cust Input'!E83+'Monthly Load & Cust Input'!G83+'Monthly Load & Cust Input'!J83+'Monthly Load & Cust Input'!M83+'Monthly Load & Cust Input'!P83+5 -> 6059 | P82: 0.5
B83: ='Monthly Load & Cust Input'!B84 -> 2022-01-01 | C83: 11881999.19 | I83: 11881999.19 | K83: 1015.7 | L83: 0 | M83: 31 | N83: 0 | O83: ='Monthly Load & Cust Input'!E84+'Monthly Load & Cust Input'!G84+'Monthly Load & Cust Input'!J84+'Monthly Load & Cust Input'!M84+'Monthly Load & Cust Input'!P84+5 -> 6136 | P83: 0.75
B84: ='Monthly Load & Cust Input'!B85 -> 2022-02-01 | C84: 10331689.77 | I84: 10331689.77 | K84: 722.8 | L84: 0 | M84: 28 | N84: 0 | O84: ='Monthly Load & Cust Input'!E85+'Monthly Load & Cust Input'!G85+'Monthly Load & Cust Input'!J85+'Monthly Load & Cust Input'!M85+'Monthly Load & Cust Input'!P85+5 -> 6136 | P84: 0.5
B85: ='Monthly Load & Cust Input'!B86 -> 2022-03-01 | C85: 10474433 | I85: 10474433 | K85: 610.7 | L85: 0 | M85: 31 | N85: 0 | O85: ='Monthly Load & Cust Input'!E86+'Monthly Load & Cust Input'!G86+'Monthly Load & Cust Input'!J86+'Monthly Load & Cust Input'!M86+'Monthly Load & Cust Input'!P86+5 -> 6136 | P85: 0.25
B86: ='Monthly Load & Cust Input'!B87 -> 2022-04-01 | C86: 8660849 | I86: 8660849 | K86: 363.6 | L86: 0 | M86: 30 | N86: 1 | O86: ='Monthly Load & Cust Input'!E87+'Monthly Load & Cust Input'!G87+'Monthly Load & Cust Input'!J87+'Monthly Load & Cust Input'!M87+'Monthly Load & Cust Input'!P87+5 -> 6136 | P86: 0.25
B87: ='Monthly Load & Cust Input'!B88 -> 2022-05-01 | C87: 8371166.64 | I87: 8371166.64 | K87: 115.2 | L87: 25.9 | M87: 31 | N87: 1 | O87: ='Monthly Load & Cust Input'!E88+'Monthly Load & Cust Input'!G88+'Monthly Load & Cust Input'!J88+'Monthly Load & Cust Input'!M88+'Monthly Load & Cust Input'!P88+5 -> 6136 | P87: 0
B88: ='Monthly Load & Cust Input'!B89 -> 2022-06-01 | C88: 8501866.97 | I88: 8501866.97 | K88: 30.9 | L88: 28.7 | M88: 30 | N88: 1 | O88: ='Monthly Load & Cust Input'!E89+'Monthly Load & Cust Input'!G89+'Monthly Load & Cust Input'!J89+'Monthly Load & Cust Input'!M89+'Monthly Load & Cust Input'!P89+5 -> 6136 | P88: 0
B89: ='Monthly Load & Cust Input'!B90 -> 2022-07-01 | C89: 9634858.64 | I89: 9634858.64 | K89: 0.5 | L89: 92.9 | M89: 31 | N89: 0 | O89: ='Monthly Load & Cust Input'!E90+'Monthly Load & Cust Input'!G90+'Monthly Load & Cust Input'!J90+'Monthly Load & Cust Input'!M90+'Monthly Load & Cust Input'!P90+5 -> 6136 | P89: 0
B90: ='Monthly Load & Cust Input'!B91 -> 2022-08-01 | C90: 9874706.47 | I90: 9874706.47 | K90: 5 | L90: 84.2 | M90: 31 | N90: 0 | O90: ='Monthly Load & Cust Input'!E91+'Monthly Load & Cust Input'!G91+'Monthly Load & Cust Input'!J91+'Monthly Load & Cust Input'!M91+'Monthly Load & Cust Input'!P91+5 -> 6136 | P90: 0
B91: ='Monthly Load & Cust Input'!B92 -> 2022-09-01 | C91: 8176359.46 | I91: 8176359.46 | K91: 107.1 | L91: 11.9 | M91: 30 | N91: 1 | O91: ='Monthly Load & Cust Input'!E92+'Monthly Load & Cust Input'!G92+'Monthly Load & Cust Input'!J92+'Monthly Load & Cust Input'!M92+'Monthly Load & Cust Input'!P92+5 -> 6136 | P91: 0
B92: ='Monthly Load & Cust Input'!B93 -> 2022-10-01 | C92: 8309018.85 | I92: 8309018.85 | K92: 278.8 | L92: 0 | M92: 31 | N92: 1 | O92: ='Monthly Load & Cust Input'!E93+'Monthly Load & Cust Input'!G93+'Monthly Load & Cust Input'!J93+'Monthly Load & Cust Input'!M93+'Monthly Load & Cust Input'!P93+5 -> 6136 | P92: 0
B93: ='Monthly Load & Cust Input'!B94 -> 2022-11-01 | C93: 8944137.61 | I93: 8944137.61 | K93: 426.7 | L93: 1.1 | M93: 30 | N93: 1 | O93: ='Monthly Load & Cust Input'!E94+'Monthly Load & Cust Input'!G94+'Monthly Load & Cust Input'!J94+'Monthly Load & Cust Input'!M94+'Monthly Load & Cust Input'!P94+5 -> 6136 | P93: 0
B94: ='Monthly Load & Cust Input'!B95 -> 2022-12-01 | C94: 10328303.78 | I94: 10328303.78 | K94: 650.2 | L94: 0 | M94: 31 | N94: 0 | O94: ='Monthly Load & Cust Input'!E95+'Monthly Load & Cust Input'!G95+'Monthly Load & Cust Input'!J95+'Monthly Load & Cust Input'!M95+'Monthly Load & Cust Input'!P95+5 -> 6136 | P94: 0
B95: ='Monthly Load & Cust Input'!B96 -> 2023-01-01 | C95: 10715912.02 | I95: 10715912.02 | K95: 716.3 | L95: 0 | M95: 31 | N95: 0 | O95: ='Monthly Load & Cust Input'!E96+'Monthly Load & Cust Input'!G96+'Monthly Load & Cust Input'!J96+'Monthly Load & Cust Input'!M96+'Monthly Load & Cust Input'!P96+5 -> 6185 | P95: 0
B96: ='Monthly Load & Cust Input'!B97 -> 2023-02-01 | C96: 10011127.38 | I96: 10011127.38 | K96: 721.4 | L96: 0 | M96: 28 | N96: 0 | O96: ='Monthly Load & Cust Input'!E97+'Monthly Load & Cust Input'!G97+'Monthly Load & Cust Input'!J97+'Monthly Load & Cust Input'!M97+'Monthly Load & Cust Input'!P97+5 -> 6185 | P96: 0
B97: ='Monthly Load & Cust Input'!B98 -> 2023-03-01 | C97: 10175938.96 | I97: 10175938.96 | K97: 590 | L97: 0 | M97: 31 | N97: 0 | O97: ='Monthly Load & Cust Input'!E98+'Monthly Load & Cust Input'!G98+'Monthly Load & Cust Input'!J98+'Monthly Load & Cust Input'!M98+'Monthly Load & Cust Input'!P98+5 -> 6185 | P97: 0
B98: ='Monthly Load & Cust Input'!B99 -> 2023-04-01 | C98: 8467145.31 | I98: 8467145.31 | K98: 314.8 | L98: 0 | M98: 30 | N98: 1 | O98: ='Monthly Load & Cust Input'!E99+'Monthly Load & Cust Input'!G99+'Monthly Load & Cust Input'!J99+'Monthly Load & Cust Input'!M99+'Monthly Load & Cust Input'!P99+5 -> 6185 | P98: 0
B99: ='Monthly Load & Cust Input'!B100 -> 2023-05-01 | C99: 8117557.22 | I99: 8117557.22 | K99: 170.5 | L99: 6.8 | M99: 31 | N99: 1 | O99: ='Monthly Load & Cust Input'!E100+'Monthly Load & Cust Input'!G100+'Monthly Load & Cust Input'!J100+'Monthly Load & Cust Input'!M100+'Monthly Load & Cust Input'!P100+5 -> 6185 | P99: 0
B100: ='Monthly Load & Cust Input'!B101 -> 2023-06-01 | C100: 8611148.56 | I100: 8611148.56 | K100: 34.3 | L100: 59.6 | M100: 30 | N100: 1 | O100: ='Monthly Load & Cust Input'!E101+'Monthly Load & Cust Input'!G101+'Monthly Load & Cust Input'!J101+'Monthly Load & Cust Input'!M101+'Monthly Load & Cust Input'!P101+5 -> 6185 | P100: 0
B101: ='Monthly Load & Cust Input'!B102 -> 2023-07-01 | C101: 9912477.23 | I101: 9912477.23 | K101: 5.9 | L101: 120.7 | M101: 31 | N101: 0 | O101: ='Monthly Load & Cust Input'!E102+'Monthly Load & Cust Input'!G102+'Monthly Load & Cust Input'!J102+'Monthly Load & Cust Input'!M102+'Monthly Load & Cust Input'!P102+5 -> 6185 | P101: 0
B102: ='Monthly Load & Cust Input'!B103 -> 2023-08-01 | C102: 9166355.57 | I102: 9166355.57 | K102: 12.4 | L102: 32.5 | M102: 31 | N102: 0 | O102: ='Monthly Load & Cust Input'!E103+'Monthly Load & Cust Input'!G103+'Monthly Load & Cust Input'!J103+'Monthly Load & Cust Input'!M103+'Monthly Load & Cust Input'!P103+5 -> 6185 | P102: 0
B103: ='Monthly Load & Cust Input'!B104 -> 2023-09-01 | C103: 8452338.14 | I103: 8452338.14 | K103: 65.7 | L103: 33.4 | M103: 30 | N103: 1 | O103: ='Monthly Load & Cust Input'!E104+'Monthly Load & Cust Input'!G104+'Monthly Load & Cust Input'!J104+'Monthly Load & Cust Input'!M104+'Monthly Load & Cust Input'!P104+5 -> 6185 | P103: 0
B104: ='Monthly Load & Cust Input'!B105 -> 2023-10-01 | C104: 8306104.55 | I104: 8306104.55 | K104: 222.9 | L104: 13.5 | M104: 31 | N104: 1 | O104: ='Monthly Load & Cust Input'!E105+'Monthly Load & Cust Input'!G105+'Monthly Load & Cust Input'!J105+'Monthly Load & Cust Input'!M105+'Monthly Load & Cust Input'!P105+5 -> 6185 | P104: 0
B105: ='Monthly Load & Cust Input'!B106 -> 2023-11-01 | C105: 9189967.58 | I105: 9189967.58 | K105: 531.7 | L105: 0 | M105: 30 | N105: 1 | O105: ='Monthly Load & Cust Input'!E106+'Monthly Load & Cust Input'!G106+'Monthly Load & Cust Input'!J106+'Monthly Load & Cust Input'!M106+'Monthly Load & Cust Input'!P106+5 -> 6185 | P105: 0
B106: ='Monthly Load & Cust Input'!B107 -> 2023-12-01 | C106: 10068806.25 | I106: 10068806.25 | K106: 625.5 | L106: 0 | M106: 31 | N106: 0 | O106: ='Monthly Load & Cust Input'!E107+'Monthly Load & Cust Input'!G107+'Monthly Load & Cust Input'!J107+'Monthly Load & Cust Input'!M107+'Monthly Load & Cust Input'!P107+5 -> 6185 | P106: 0
B107: ='Monthly Load & Cust Input'!B108 -> 2024-01-01 | C107: 11069790.16 | I107: 11069790.16 | K107: 748.3 | L107: 0 | M107: 31 | N107: 0 | O107: ='Monthly Load & Cust Input'!E108+'Monthly Load & Cust Input'!G108+'Monthly Load & Cust Input'!J108+'Monthly Load & Cust Input'!M108+'Monthly Load & Cust Input'!P108+5 -> 6105 | P107: 0
B108: ='Monthly Load & Cust Input'!B109 -> 2024-02-01 | C108: 9933264.95 | I108: 9933264.95 | K108: 634.2 | L108: 0 | M108: 29 | N108: 0 | O108: ='Monthly Load & Cust Input'!E109+'Monthly Load & Cust Input'!G109+'Monthly Load & Cust Input'!J109+'Monthly Load & Cust Input'!M109+'Monthly Load & Cust Input'!P109+5 -> 6107 | P108: 0
B109: ='Monthly Load & Cust Input'!B110 -> 2024-03-01 | C109: 9844333.14 | I109: 9844333.14 | K109: 501.6 | L109: 0 | M109: 31 | N109: 0 | O109: ='Monthly Load & Cust Input'!E110+'Monthly Load & Cust Input'!G110+'Monthly Load & Cust Input'!J110+'Monthly Load & Cust Input'!M110+'Monthly Load & Cust Input'!P110+5 -> 6106 | P109: 0
B110: ='Monthly Load & Cust Input'!B111 -> 2024-04-01 | C110: 8563614.87 | I110: 8563614.87 | K110: 324.4 | L110: 0 | M110: 30 | N110: 1 | O110: ='Monthly Load & Cust Input'!E111+'Monthly Load & Cust Input'!G111+'Monthly Load & Cust Input'!J111+'Monthly Load & Cust Input'!M111+'Monthly Load & Cust Input'!P111+5 -> 6106 | P110: 0
B111: ='Monthly Load & Cust Input'!B112 -> 2024-05-01 | C111: 8212442.87 | I111: 8212442.87 | K111: 89.7 | L111: 16.9 | M111: 31 | N111: 1 | O111: ='Monthly Load & Cust Input'!E112+'Monthly Load & Cust Input'!G112+'Monthly Load & Cust Input'!J112+'Monthly Load & Cust Input'!M112+'Monthly Load & Cust Input'!P112+5 -> 6106 | P111: 0
B112: ='Monthly Load & Cust Input'!B113 -> 2024-06-01 | C112: 8827125.44 | I112: 8827125.44 | K112: 33.2 | L112: 62.6 | M112: 30 | N112: 1 | O112: ='Monthly Load & Cust Input'!E113+'Monthly Load & Cust Input'!G113+'Monthly Load & Cust Input'!J113+'Monthly Load & Cust Input'!M113+'Monthly Load & Cust Input'!P113+5 -> 6106 | P112: 0
B113: ='Monthly Load & Cust Input'!B114 -> 2024-07-01 | C113: 10244421.66 | I113: 10244421.66 | K113: 1.6 | L113: 113.9 | M113: 31 | N113: 0 | O113: ='Monthly Load & Cust Input'!E114+'Monthly Load & Cust Input'!G114+'Monthly Load & Cust Input'!J114+'Monthly Load & Cust Input'!M114+'Monthly Load & Cust Input'!P114+5 -> 6108 | P113: 0
B114: ='Monthly Load & Cust Input'!B115 -> 2024-08-01 | C114: 9562430.39 | I114: 9562430.39 | K114: 16.7 | L114: 77.1 | M114: 31 | N114: 0 | O114: ='Monthly Load & Cust Input'!E115+'Monthly Load & Cust Input'!G115+'Monthly Load & Cust Input'!J115+'Monthly Load & Cust Input'!M115+'Monthly Load & Cust Input'!P115+5 -> 6108 | P114: 0
B115: ='Monthly Load & Cust Input'!B116 -> 2024-09-01 | C115: 8514902.16 | I115: 8514902.16 | K115: 52.7 | L115: 25.2 | M115: 30 | N115: 1 | O115: ='Monthly Load & Cust Input'!E116+'Monthly Load & Cust Input'!G116+'Monthly Load & Cust Input'!J116+'Monthly Load & Cust Input'!M116+'Monthly Load & Cust Input'!P116+5 -> 6108 | P115: 0
B116: ='Monthly Load & Cust Input'!B117 -> 2024-10-01 | C116: 8472948.77 | I116: 8472948.77 | K116: 265.6 | L116: 1.1 | M116: 31 | N116: 1 | O116: ='Monthly Load & Cust Input'!E117+'Monthly Load & Cust Input'!G117+'Monthly Load & Cust Input'!J117+'Monthly Load & Cust Input'!M117+'Monthly Load & Cust Input'!P117+5 -> 6108 | P116: 0
B117: ='Monthly Load & Cust Input'!B118 -> 2024-11-01 | C117: 9017603.88 | I117: 9017603.88 | K117: 411.3 | L117: 0 | M117: 30 | N117: 1 | O117: ='Monthly Load & Cust Input'!E118+'Monthly Load & Cust Input'!G118+'Monthly Load & Cust Input'!J118+'Monthly Load & Cust Input'!M118+'Monthly Load & Cust Input'!P118+5 -> 6108 | P117: 0
B118: ='Monthly Load & Cust Input'!B119 -> 2024-12-01 | C118: 10867006.92 | I118: 10867006.92 | K118: 722.9 | L118: 0 | M118: 31 | N118: 0 | O118: ='Monthly Load & Cust Input'!E119+'Monthly Load & Cust Input'!G119+'Monthly Load & Cust Input'!J119+'Monthly Load & Cust Input'!M119+'Monthly Load & Cust Input'!P119+5 -> 6109 | P118: 0
B119: ='Monthly Load & Cust Input'!B120 -> 2025-01-01 | C119: 11352460 | I119: 11352460 | K119: 856.3 | L119: 0 | M119: 31 | N119: 0 | O119: ='Monthly Load & Cust Input'!E120+'Monthly Load & Cust Input'!G120+'Monthly Load & Cust Input'!J120+'Monthly Load & Cust Input'!M120+'Monthly Load & Cust Input'!P120+5 -> 6229 | P119: 0
B120: ='Monthly Load & Cust Input'!B121 -> 2025-02-01 | C120: 10660170 | I120: 10660170 | K120: 780.7 | L120: 0 | M120: 28 | N120: 0 | O120: ='Monthly Load & Cust Input'!E121+'Monthly Load & Cust Input'!G121+'Monthly Load & Cust Input'!J121+'Monthly Load & Cust Input'!M121+'Monthly Load & Cust Input'!P121+5 -> 6222 | P120: 0
B121: ='Monthly Load & Cust Input'!B122 -> 2025-03-01 | C121: 10493874 | I121: 10493874 | K121: 589.6 | L121: 0 | M121: 31 | N121: 0 | O121: ='Monthly Load & Cust Input'!E122+'Monthly Load & Cust Input'!G122+'Monthly Load & Cust Input'!J122+'Monthly Load & Cust Input'!M122+'Monthly Load & Cust Input'!P122+5 -> 6209 | P121: 0
B122: ='Monthly Load & Cust Input'!B123 -> 2025-04-01 | C122: 8945853 | I122: 8945853 | K122: 385.2 | L122: 0 | M122: 30 | N122: 1 | O122: ='Monthly Load & Cust Input'!E123+'Monthly Load & Cust Input'!G123+'Monthly Load & Cust Input'!J123+'Monthly Load & Cust Input'!M123+'Monthly Load & Cust Input'!P123+5 -> 6240 | P122: 0
B123: ='Monthly Load & Cust Input'!B124 -> 2025-05-01 | C123: 8365024 | I123: 8365024 | K123: 148.2 | L123: 3 | M123: 31 | N123: 1 | O123: ='Monthly Load & Cust Input'!E124+'Monthly Load & Cust Input'!G124+'Monthly Load & Cust Input'!J124+'Monthly Load & Cust Input'!M124+'Monthly Load & Cust Input'!P124+5 -> 6442 | P123: 0
B124: ='Monthly Load & Cust Input'!B125 -> 2025-06-01 | C124: 9083014 | I124: 9083014 | K124: 31.2 | L124: 66.6 | M124: 30 | N124: 1 | O124: ='Monthly Load & Cust Input'!E125+'Monthly Load & Cust Input'!G125+'Monthly Load & Cust Input'!J125+'Monthly Load & Cust Input'!M125+'Monthly Load & Cust Input'!P125+5 -> 6264 | P124: 0
B125: ='Monthly Load & Cust Input'!B126 -> 2025-07-01 | C125: 10707430 | I125: 10707430 | K125: 4.4 | L125: 133.4 | M125: 31 | N125: 0 | O125: ='Monthly Load & Cust Input'!E126+'Monthly Load & Cust Input'!G126+'Monthly Load & Cust Input'!J126+'Monthly Load & Cust Input'!M126+'Monthly Load & Cust Input'!P126+5 -> 6259 | P125: 0
B126: ='Monthly Load & Cust Input'!B127 -> 2025-08-01 | C126: 9981547 | I126: 9981547 | K126: 19.6 | L126: 85.3 | M126: 31 | N126: 0 | O126: ='Monthly Load & Cust Input'!E127+'Monthly Load & Cust Input'!G127+'Monthly Load & Cust Input'!J127+'Monthly Load & Cust Input'!M127+'Monthly Load & Cust Input'!P127+5 -> 6253 | P126: 0
B127: ='Monthly Load & Cust Input'!B128 -> 2025-09-01 | C127: 8576052 | I127: 8576052 | K127: 59.6 | L127: 7.8 | M127: 30 | N127: 1 | O127: ='Monthly Load & Cust Input'!E128+'Monthly Load & Cust Input'!G128+'Monthly Load & Cust Input'!J128+'Monthly Load & Cust Input'!M128+'Monthly Load & Cust Input'!P128+5 -> 6254 | P127: 0
B128: ='Monthly Load & Cust Input'!B129 -> 2025-10-01 | C128: 8819455 | I128: 8819455 | K128: 251.2 | L128: 7.8 | M128: 31 | N128: 1 | O128: ='Monthly Load & Cust Input'!E129+'Monthly Load & Cust Input'!G129+'Monthly Load & Cust Input'!J129+'Monthly Load & Cust Input'!M129+'Monthly Load & Cust Input'!P129+5 -> 6252 | P128: 0
B129: ='Monthly Load & Cust Input'!B130 -> 2025-11-01 | C129: 10182138 | I129: 10182138 | K129: 536.2 | L129: 0 | M129: 30 | N129: 1 | O129: ='Monthly Load & Cust Input'!E130+'Monthly Load & Cust Input'!G130+'Monthly Load & Cust Input'!J130+'Monthly Load & Cust Input'!M130+'Monthly Load & Cust Input'!P130+5 -> 6255 | P129: 0
B130: ='Monthly Load & Cust Input'!B131 -> 2025-12-01 | C130: 12019804 | I130: 12019804 | K130: 837 | L130: 0 | M130: =M118*(1+0.05) -> 32.55 | N130: =N118*(1+0.05) -> 0 | O130: ='Monthly Load & Cust Input'!E131+'Monthly Load & Cust Input'!G131+'Monthly Load & Cust Input'!J131+'Monthly Load & Cust Input'!M131+'Monthly Load & Cust Input'!P131+5 -> 6257 | P130: 0
B133: Covid Intesity Flag
B134: Month | C134: Index | D134: Reason
B135: 2020-01-01 | C135: 0 | D135: No COVID impact
B136: 2020-02-01 | C136: 0 | D136: No restrictions
B137: 2020-03-01 | C137: 0.5 | D137: Shutdown begins Mar 17, schools closed
B138: 2020-04-01 | C138: 1 | D138: Full provincial lockdown
B139: 2020-05-01 | C139: 0.75 | D139: Restrictions easing but still severe
B140: 2020-06-01 | C140: 0.5 | D140: Stage 2 reopenings
B141: 2020-07-01 | C141: 0.25 | D141: Stage 3 reopenings
B142: 2020-08-01 | C142: 0.25 | D142: “Normal-ish” summer
B143: 2020-09-01 | C143: 0.25 | D143: Schools open with restrictions
B144: 2020-10-01 | C144: 0.5 | D144: Wave 2 begins
B145: 2020-11-01 | C145: 0.75 | D145: Ottawa in Red/Lockdown
B146: 2020-12-01 | C146: 1 | D146: Province-wide lockdown Dec 26
B147: 2021-01-01 | C147: 1 | D147: Stay-at-home order
B148: 2021-02-01 | C148: 0.75 | D148: Gradual reopening
B149: 2021-03-01 | C149: 0.5 | D149: Restrictions remain
B150: 2021-04-01 | C150: 1 | D150: Third Wave + stay-at-home order
B151: 2021-05-01 | C151: 0.75 | D151: Province still heavily restricted
B152: 2021-06-01 | C152: 0.5 | D152: Step 1 re-opening
B153: 2021-07-01 | C153: 0.25 | D153: Step 3 re-opening
B154: 2021-08-01 | C154: 0.25 | D154: Delta variant but still open
B155: 2021-09-01 | C155: 0.25 | D155: Vaccine certificate introduced
B156: 2021-10-01 | C156: 0.25 | D156: Stable but controlled
B157: 2021-11-01 | C157: 0.25 | D157: Mild restrictions
B158: 2021-12-01 | C158: 0.5 | D158: Omicron wave begins
B159: 2022-01-01 | C159: 0.75 | D159: Schools closed + restrictions
B160: 2022-02-01 | C160: 0.5 | D160: Step-by-step reopening
B161: 2022-03-01 | C161: 0.25 | D161: Most restrictions lifted
B162: 2022-04-01 | C162: 0.25 | D162: Masks remain in select settings
B163: 2022-05-01 | C163: 0 | D163: Restrictions essentially gone
B164: Jun–Dec 2022 | C164: 0 | D164: No mandated restrictions
B165: Jan–Dec 2025 | C165: 0 | D165: No restrictions; normal conditions

Sheet Input
C1: Feature Selection | E1: Minimum R-Squared | F1: 0 | R1: 1 | AU1: Add More Variable Columns | AV1: 10
E2: Variance Inflation Factor | F2: 0
A3: INCLUDE | B3: ON | C3: ON | D3: ON | E3: ON | F3: ON | G3: ON | H3: ON | I3: ON | J3: ON | K3: ON | L3: ON | M3: ON | N3: ON | O3: ON | P3: ON | Q3: ON | R3: ON | S3: ON | T3: ON | U3: ON | V3: ON | W3: ON | X3: ON | Y3: ON | Z3: ON | AA3: ON | AB3: ON | AC3: ON | AD3: ON | AE3: ON | AF3: ON | AG3: ON | AH3: ON | AI3: ON | AJ3: ON | AK3: ON | AL3: ON | AM3: ON | AN3: ON | AO3: ON | AP3: ON | AQ3: ON | AR3: ON | AS3: ON | AT3: ON | AU3: ON | AV3: ON | AW3: ON | AX3: ON | AY3: ON
A4: Wholesale | B4: HDD | C4: CDD | D4: NoD in Month | E4: Spring Fall | F4: Cust Count | G4: Covid Intensity
A5: 10989034 | B5: 804.7999878 | C5: 0 | D5: 31 | E5: 0 | F5: 6011 | G5: 0
A6: 10461168 | B6: 756.2999878 | C6: 0 | D6: 29 | E6: 0 | F6: 6011 | G6: 0
A7: 9905017 | B7: 591.4000244 | C7: 0 | D7: 31 | E7: 0 | F7: 6011 | G7: 0
A8: 8448753 | B8: 433.7999878 | C8: 0 | D8: 30 | E8: 1 | F8: 6011 | G8: 0
A9: 7971052 | B9: 145.3999939 | C9: 28.70000076 | D9: 31 | E9: 1 | F9: 6011 | G9: 0
A10: 8152771 | B10: 36.29999924 | C10: 52 | D10: 30 | E10: 1 | F10: 6011 | G10: 0
A11: 9080665 | B11: 3.400000095 | C11: 112.5999985 | D11: 31 | E11: 0 | F11: 6011 | G11: 0
A12: 9517733 | B12: 1.399999976 | C12: 124.5999985 | D12: 31 | E12: 0 | F12: 6011 | G12: 0
A13: 8054076 | B13: 75.09999847 | C13: 24.89999962 | D13: 30 | E13: 1 | F13: 6011 | G13: 0
A14: 8074621 | B14: 291.1000061 | C14: 0 | D14: 31 | E14: 1 | F14: 6011 | G14: 0
A15: 8792790 | B15: 449.5 | C15: 0 | D15: 30 | E15: 1 | F15: 6011 | G15: 0
A16: 10206407 | B16: 733.4000244 | C16: 0 | D16: 31 | E16: 0 | F16: 6011 | G16: 0
A17: 10464420 | B17: 732.5 | C17: 0 | D17: 28 | E17: 0 | F17: 6026 | G17: 0
A18: 9412266 | B18: 662.0999756 | C18: 0 | D18: 28 | E18: 0 | F18: 6026 | G18: 0
A19: 10449490 | B19: 731.7000122 | C19: 0 | D19: 31 | E19: 0 | F19: 6026 | G19: 0
A20: 8073164 | B20: 319.3999939 | C20: 1.200000048 | D20: 30 | E20: 1 | F20: 6026 | G20: 0
A21: 7836699 | B21: 190.3999939 | C21: 9.100000381 | D21: 31 | E21: 1 | F21: 6026 | G21: 0
A22: 7883609 | B22: 52.09999847 | C22: 45 | D22: 30 | E22: 1 | F22: 6026 | G22: 0
A23: 8447553 | B23: 4.800000191 | C23: 63.79999924 | D23: 31 | E23: 0 | F23: 6026 | G23: 0
A24: 8640906 | B24: 26.89999962 | C24: 51 | D24: 31 | E24: 0 | F24: 6026 | G24: 0
A25: 8076439 | B25: 69.80000305 | C25: 52 | D25: 30 | E25: 1 | F25: 6026 | G25: 0
A26: 7983759 | B26: 192.8000031 | C26: 0.400000006 | D26: 31 | E26: 1 | F26: 6026 | G26: 0
A27: 9161805 | B27: 524.5999756 | C27: 0 | D27: 30 | E27: 1 | F27: 6026 | G27: 0
A28: 10688479 | B28: 871.2999878 | C28: 0 | D28: 31 | E28: 0 | F28: 6026 | G28: 0
A29: 11412898 | B29: 848.7999878 | C29: 0 | D29: 31 | E29: 0 | F29: 6043 | G29: 0
A30: 9438920 | B30: 644.5999756 | C30: 0 | D30: 28 | E30: 0 | F30: 6043 | G30: 0
A31: 9778013 | B31: 591 | C31: 0 | D31: 31 | E31: 0 | F31: 6043 | G31: 0
A32: 8757348 | B32: 454.3999939 | C32: 0 | D32: 30 | E32: 1 | F32: 6043 | G32: 0
A33: 7670323 | B33: 110.4000015 | C33: 15.69999981 | D33: 31 | E33: 1 | F33: 6043 | G33: 0
A34: 7836187 | B34: 39 | C34: 36.20000076 | D34: 30 | E34: 1 | F34: 6043 | G34: 0
A35: 9698694 | B35: 0 | C35: 156.8999939 | D35: 31 | E35: 0 | F35: 6043 | G35: 0
A36: 9512830 | B36: 3.599999905 | C36: 115.4000015 | D36: 31 | E36: 0 | F36: 6043 | G36: 0
A37: 8248876 | B37: 96.80000305 | C37: 49.5 | D37: 30 | E37: 1 | F37: 6043 | G37: 0
A38: 8273205 | B38: 359.1000061 | C38: 0.6999999881 | D38: 31 | E38: 1 | F38: 6043 | G38: 0
A39: 9371732 | B39: 599.5 | C39: 0 | D39: 30 | E39: 1 | F39: 6043 | G39: 0
A40: 10215218 | B40: 766.5999756 | C40: 0 | D40: 31 | E40: 0 | F40: 6043 | G40: 0
A41: 11356602 | B41: 934.9000244 | C41: 0 | D41: 31 | E41: 0 | F41: 6046 | G41: 0
A42: 9954781 | B42: 762.2000122 | C42: 0 | D42: 28 | E42: 0 | F42: 6046 | G42: 0
A43: 10085138 | B43: 666.0999756 | C43: 0 | D43: 31 | E43: 0 | F43: 6046 | G43: 0
A44: 8524502 | B44: 398.7999878 | C44: 0 | D44: 30 | E44: 1 | F44: 6046 | G44: 0
A45: 7801649 | B45: 213.1999969 | C45: 0 | D45: 31 | E45: 1 | F45: 6046 | G45: 0
A46: 7764971 | B46: 52.70000076 | C46: 32 | D46: 30 | E46: 1 | F46: 6046 | G46: 0
A47: 9557985 | B47: 0 | C47: 133.1000061 | D47: 31 | E47: 0 | F47: 6046 | G47: 0
A48: 8688391 | B48: 6.300000191 | C48: 54.79999924 | D48: 31 | E48: 0 | F48: 6046 | G48: 0
A49: 7563722 | B49: 104 | C49: 9.100000381 | D49: 30 | E49: 1 | F49: 6046 | G49: 0
A50: 7908177 | B50: 286.7999878 | C50: 0 | D50: 31 | E50: 1 | F50: 6046 | G50: 0
A51: 9264874 | B51: 590.5999756 | C51: 0 | D51: 30 | E51: 1 | F51: 6046 | G51: 0
A52: 10207018 | B52: 717.2000122 | C52: 0 | D52: 31 | E52: 0 | F52: 6046 | G52: 0
A53: 10475746 | B53: 755.5999756 | C53: 0 | D53: 31 | E53: 0 | F53: 6034 | G53: 0
A54: 9817627 | B54: 725.9000244 | C54: 0 | D54: 29 | E54: 0 | F54: 6034 | G54: 0
A55: 9509806 | B55: 561.7000122 | C55: 0 | D55: 31 | E55: 0 | F55: 6034 | G55: 0.5
A56: 8024763 | B56: 391.1000061 | C56: 0 | D56: 30 | E56: 1 | F56: 6034 | G56: 1
A57: 7939253 | B57: 193.3000031 | C57: 25.70000076 | D57: 31 | E57: 1 | F57: 6034 | G57: 0.75
A58: 8515025 | B58: 44.70000076 | C58: 70.40000153 | D58: 30 | E58: 1 | F58: 6034 | G58: 0.5
A59: 10333884 | B59: 0 | C59: 185.8000031 | D59: 31 | E59: 0 | F59: 6034 | G59: 0.25
A60: 9206403 | B60: 25.5 | C60: 70.40000153 | D60: 31 | E60: 0 | F60: 6034 | G60: 0.25
A61: 7627587 | B61: 129 | C61: 9 | D61: 30 | E61: 1 | F61: 6034 | G61: 0.25
A62: 8195562 | B62: 327.3999939 | C62: 0 | D62: 31 | E62: 1 | F62: 6034 | G62: 0.5
A63: 8711857 | B63: 429.8999939 | C63: 0 | D63: 30 | E63: 1 | F63: 6034 | G63: 0.75
A64: 10055028 | B64: 647 | C64: 0 | D64: 31 | E64: 0 | F64: 6034 | G64: 1
A65: 10499396 | B65: 755.2000122 | C65: 0 | D65: 31 | E65: 0 | F65: 6059 | G65: 1
A66: 9792629 | B66: 683.5 | C66: 0 | D66: 28 | E66: 0 | F66: 6059 | G66: 0.75
A67: 9788308 | B67: 577.2999878 | C67: 0 | D67: 31 | E67: 0 | F67: 6059 | G67: 0.5
A68: 7927583.5 | B68: 295.2999878 | C68: 0 | D68: 30 | E68: 1 | F68: 6059 | G68: 1
A69: 8042340 | B69: 173.8999939 | C69: 24.39999962 | D69: 31 | E69: 1 | F69: 6059 | G69: 0.75
A70: 8737900 | B70: 13.80000019 | C70: 89.80000305 | D70: 30 | E70: 1 | F70: 6059 | G70: 0.5
A71: 8943567 | B71: 16.10000038 | C71: 64.5 | D71: 31 | E71: 0 | F71: 6059 | G71: 0.25
A72: 10027304 | B72: 4.400000095 | C72: 136 | D72: 31 | E72: 0 | F72: 6059 | G72: 0.25
A73: 8054742 | B73: 69.5 | C73: 4.699999809 | D73: 30 | E73: 1 | F73: 6059 | G73: 0.25
A74: 8075869 | B74: 196.1000061 | C74: 0.6999999881 | D74: 31 | E74: 1 | F74: 6059 | G74: 0.25
A75: 9085639 | B75: 509.2999878 | C75: 0 | D75: 30 | E75: 1 | F75: 6059 | G75: 0.25
A76: 10218754 | B76: 692.7000122 | C76: 0 | D76: 31 | E76: 0 | F76: 6059 | G76: 0.5
A77: 11881999 | B77: 1015.700012 | C77: 0 | D77: 31 | E77: 0 | F77: 6136 | G77: 0.75
A78: 10331690 | B78: 722.7999878 | C78: 0 | D78: 28 | E78: 0 | F78: 6136 | G78: 0.5
A79: 10474433 | B79: 610.7000122 | C79: 0 | D79: 31 | E79: 0 | F79: 6136 | G79: 0.25
A80: 8660849 | B80: 363.6000061 | C80: 0 | D80: 30 | E80: 1 | F80: 6136 | G80: 0.25
A81: 8371166.5 | B81: 115.1999969 | C81: 25.89999962 | D81: 31 | E81: 1 | F81: 6136 | G81: 0
A82: 8501867 | B82: 30.89999962 | C82: 28.70000076 | D82: 30 | E82: 1 | F82: 6136 | G82: 0
A83: 9634859 | B83: 0.5 | C83: 92.90000153 | D83: 31 | E83: 0 | F83: 6136 | G83: 0
A84: 9874706 | B84: 5 | C84: 84.19999695 | D84: 31 | E84: 0 | F84: 6136 | G84: 0
A85: 8176359.5 | B85: 107.0999985 | C85: 11.89999962 | D85: 30 | E85: 1 | F85: 6136 | G85: 0
A86: 8309019 | B86: 278.7999878 | C86: 0 | D86: 31 | E86: 1 | F86: 6136 | G86: 0
A87: 8944138 | B87: 426.7000122 | C87: 1.100000024 | D87: 30 | E87: 1 | F87: 6136 | G87: 0
A88: 10328304 | B88: 650.2000122 | C88: 0 | D88: 31 | E88: 0 | F88: 6136 | G88: 0
A89: 10715912 | B89: 716.2999878 | C89: 0 | D89: 31 | E89: 0 | F89: 6185 | G89: 0
A90: 10011127 | B90: 721.4000244 | C90: 0 | D90: 28 | E90: 0 | F90: 6185 | G90: 0
A91: 10175939 | B91: 590 | C91: 0 | D91: 31 | E91: 0 | F91: 6185 | G91: 0
A92: 8467145 | B92: 314.7999878 | C92: 0 | D92: 30 | E92: 1 | F92: 6185 | G92: 0
A93: 8117557 | B93: 170.5 | C93: 6.800000191 | D93: 31 | E93: 1 | F93: 6185 | G93: 0
A94: 8611149 | B94: 34.29999924 | C94: 59.59999847 | D94: 30 | E94: 1 | F94: 6185 | G94: 0
A95: 9912477 | B95: 5.900000095 | C95: 120.6999969 | D95: 31 | E95: 0 | F95: 6185 | G95: 0
A96: 9166356 | B96: 12.39999962 | C96: 32.5 | D96: 31 | E96: 0 | F96: 6185 | G96: 0
A97: 8452338 | B97: 65.69999695 | C97: 33.40000153 | D97: 30 | E97: 1 | F97: 6185 | G97: 0
A98: 8306104.5 | B98: 222.8999939 | C98: 13.5 | D98: 31 | E98: 1 | F98: 6185 | G98: 0
A99: 9189968 | B99: 531.7000122 | C99: 0 | D99: 30 | E99: 1 | F99: 6185 | G99: 0
A100: 10068806 | B100: 625.5 | C100: 0 | D100: 31 | E100: 0 | F100: 6185 | G100: 0
A101: 11069790 | B101: 748.2999878 | C101: 0 | D101: 31 | E101: 0 | F101: 6105 | G101: 0
A102: 9933265 | B102: 634.2000122 | C102: 0 | D102: 29 | E102: 0 | F102: 6107 | G102: 0
A103: 9844333 | B103: 501.6000061 | C103: 0 | D103: 31 | E103: 0 | F103: 6106 | G103: 0
A104: 8563615 | B104: 324.3999939 | C104: 0 | D104: 30 | E104: 1 | F104: 6106 | G104: 0
A105: 8212443 | B105: 89.69999695 | C105: 16.89999962 | D105: 31 | E105: 1 | F105: 6106 | G105: 0
A106: 8827125 | B106: 33.20000076 | C106: 62.59999847 | D106: 30 | E106: 1 | F106: 6106 | G106: 0
A107: 10244422 | B107: 1.600000024 | C107: 113.9000015 | D107: 31 | E107: 0 | F107: 6108 | G107: 0
A108: 9562430 | B108: 16.70000076 | C108: 77.09999847 | D108: 31 | E108: 0 | F108: 6108 | G108: 0
A109: 8514902 | B109: 52.70000076 | C109: 25.20000076 | D109: 30 | E109: 1 | F109: 6108 | G109: 0
A110: 8472949 | B110: 265.6000061 | C110: 1.100000024 | D110: 31 | E110: 1 | F110: 6108 | G110: 0
A111: 9017604 | B111: 411.2999878 | C111: 0 | D111: 30 | E111: 1 | F111: 6108 | G111: 0
A112: 10867007 | B112: 722.9000244 | C112: 0 | D112: 31 | E112: 0 | F112: 6109 | G112: 0
A113: 11352460 | B113: 856.2999878 | C113: 0 | D113: 31 | E113: 0 | F113: 6229 | G113: 0
A114: 10660170 | B114: 780.7000122 | C114: 0 | D114: 28 | E114: 0 | F114: 6222 | G114: 0
A115: 10493874 | B115: 589.5999756 | C115: 0 | D115: 31 | E115: 0 | F115: 6209 | G115: 0
A116: 8945853 | B116: 385.2000122 | C116: 0 | D116: 30 | E116: 1 | F116: 6240 | G116: 0
A117: 8365024 | B117: 148.1999969 | C117: 3 | D117: 31 | E117: 1 | F117: 6442 | G117: 0
A118: 9083014 | B118: 31.20000076 | C118: 66.59999847 | D118: 30 | E118: 1 | F118: 6264 | G118: 0
A119: 10707430 | B119: 4.400000095 | C119: 133.3999939 | D119: 31 | E119: 0 | F119: 6259 | G119: 0
A120: 9981547 | B120: 19.60000038 | C120: 85.30000305 | D120: 31 | E120: 0 | F120: 6253 | G120: 0
A121: 8576052 | B121: 59.59999847 | C121: 7.800000191 | D121: 30 | E121: 1 | F121: 6254 | G121: 0
A122: 8819455 | B122: 251.1999969 | C122: 7.800000191 | D122: 31 | E122: 1 | F122: 6252 | G122: 0
A123: 10182138 | B123: 536.2000122 | C123: 0 | D123: 30 | E123: 1 | F123: 6255 | G123: 0
A124: 12019804 | B124: 837 | C124: 0 | D124: 32.54999924 | E124: 0 | F124: 6257 | G124: 0

Sheet Output
BP2: =IF(A12<>"",TEXT(B12,"0.00")& "*" & A12 & " + ","") & IF(A13<>"",TEXT(B13,"0.00")& "*" & A13 & " + ","") & IF(A14<>"",TEXT(B14,"0.00")& "*" & A14 & " + ","") & IF(A15<>"",TEXT(B15,"0.00")& "*" & A15 & " + ","") & IF(A16<>"",TEXT(B16,"0.00")& "*" & A16 & " + ","") & IF(A17<>"",TEXT(B17,"0.00")& "*" & A17 & " + ","") & IF(A18<>"",TEXT(B18,"0.00")& "*" & A18 & " + ","") & IF(A19<>"",TEXT(B19,"0.00")& "*" & A19 & " + ","") & IF(A20<>"",TEXT(B20,"0.00")& "*" & A20 & " + ","") & IF(A21<>"",TEXT(B21,"0.00")& "*" & A21 & " + ","") -> 3474.01*HDD + 14887.12*CDD + 120829.92*NoD in Month + -584613.17*Spring Fall + 3128.76*Cust Count + -140087.45*Covid Intensity +
A3: Equation Parameters | C3: =TEXT(B5,"00.00%") & " of the change in " & TEXT(Input!$A$4,"###") & " can be explained by the change in the " & COUNT(B12:B977) & " independent variables" -> 93.79% of the change in Wholesale can be explained by the change in the 6 independent variables | G3: 95% Confidence/Autocorrelation | L3: ="Actual versus Predicted " & TEXT(Input!A4,"###") -> Actual versus Predicted Wholesale | AE3: Average | AG3: 1.616420031 | BP3: =IF(A22<>"",TEXT(B22,"0.00")& "*" & A22 & " + ","") & IF(A23<>"",TEXT(B23,"0.00")& "*" & A23 & " + ","") & IF(A24<>"",TEXT(B24,"0.00")& "*" & A24 & " + ","") & IF(A25<>"",TEXT(B25,"0.00")& "*" & A25 & " + ","") & IF(A26<>"",TEXT(B26,"0.00")& "*" & A26 & " + ","") & IF(A45<>"",TEXT(B45,"0.00")& "*" & A45 & " + ","") & IF(A46<>"",TEXT(B46,"0.00")& "*" & A46 & " + ","") & IF(A48<>"",TEXT(B48,"0.00")& "*" & A48 & " + ","") & IF(A49<>"",TEXT(B49,"0.00")& "*" & A49 & " + ","") & IF(#REF!<>"",TEXT(#REF!,"0.00")& "*" &#REF! & " + ","") -> 
A4: R Squared | B4: 0.9410703182 | G4: 1.778653026 | H4: Durbin-Watson Statistic | AE4: Linear | AG4: 1.78963995
A5: Adjusted R Squared | B5: 0.9379413128 | G5: =TEXT(AG3,"0.00")&" - " &TEXT(AG4,"0.00") -> 1.62 - 1.79 | H5: No autocorrelation detected | AE5: Exponential | AG5: 1.685310006
A6: Standard Error | B6: 263095.4688 | C6: to +/- on result of Regression Equation | G6: 2.176000118 | H6: Critical F-Statistic - 95% Confidence | AA6: No. Forecast Observations: | AE6: 2nd Ord Poly | AG6: 1.718889952
A7: F - Statistic | B7: 300.7565613 | C7: =IF(B7>M7,"Therefore analysis IS Significant","Therefore analysis IS NOT Significant") -> Therefore analysis IS Significant | G7: 0.9186999798 | H7: Confidence to which analysis holds | AA7: 24 | AE7: 3rd Ord Poly
AE8: Leave Blank
A9: MULTIPLE REGRESSION EQUATION | F9: INDEPENDENT ANALYSIS | I9: AUTO CORRELATION | J9: MULTICOLLINEARITY | N9: VARIABLE TREND ANALYSIS FOR FORECASTING | Z9: STEP 2: | AE9: Auto(New)
B10: Coefficients | C10: Standard Error | D10: t Stat | E10: p Value | F10: R Squared | G10: Coefficient | H10: Intercept | I10: ="Dl=" & TEXT(AG5,"0.00") & " Du=" &TEXT(AG6,"0.00") -> Dl=1.69 Du=1.72 | J10: Adjusted R-Squared against other Indep | K10: Variables With RSQ at > 90% | L10: Linear | O10: Exponential | R10: 2nd Order Polynomial | V10: 3rd Order Polynomial | AA10: Forecast Method
A11: Intercept | B11: -14779662.09 | C11: 2060395.59 | D11: -7.1732157 | E11: 0 | I11: DW-Stat | L11: Coef | M11: Int | N11: RSQ | O11: Coef | P11: Int | Q11: RSQ | R11: Coef1 | S11: Coef2 | T11: Int | U11: RSQ | V11: Coef1 | W11: Coef2 | X11: Coef3 | Y11: Int | Z11: RSQ
A12: HDD | B12: 3474.013235 | C12: 172.3608722 | D12: 20.1554633 | E12: 0 | F12: 0.453514 | G12: 2389.258913 | H12: 8399998 | I12: 0.3298213 | J12: 0.7693486 | L12: -0.51353 | M12: 388.29107 | N12: 0.0036 | O12: 0 | P12: 0 | Q12: 0 | R12: -0.96183 | S12: 0.00364 | T12: 397.70304 | U12: 0.00378 | V12: -0.42701 | W12: -0.0071 | X12: 6e-05 | Y12: 391.89383 | Z12: 0.00382 | AA12: Linear
A13: CDD | B13: 14887.11807 | C13: 1143.372959 | D13: 13.0203517 | E13: 0 | F13: 1.52e-05 | G13: 99.7086033 | H13: 9249808 | I13: 0.8738999 | J13: 0.7267633 | L13: -0.00136 | M13: 24.76713 | N13: 0 | O13: 0 | P13: 0 | Q13: 0 | R13: 0.00407 | S13: -4e-05 | T13: 24.653 | U13: 0 | V13: 0.33489 | W13: -0.00669 | X13: 4e-05 | Y13: 21.05974 | Z13: 0.00082 | AA13: Linear
A14: NoD in Month | B14: 120829.9184 | C14: 29341.68196 | D14: 4.1180297 | E14: 7.3e-05 | F14: 0.008541 | G14: 113917.4904 | H14: 5785807 | I14: 2.7301233 | J14: 0.0392757 | L14: 0.00207 | M14: 30.30221 | N14: 0.00707 | O14: 1.00007 | P14: 30.28893 | Q14: 0.00692 | R14: 0.00056 | S14: 1e-05 | T14: 30.33387 | U14: 0.00731 | V14: 0.01463 | W14: -0.00027 | X14: 0 | Y14: 30.18109 | Z14: 0.01074 | AA14: Linear
A15: Spring Fall | B15: -584613.1692 | C15: 77458.9802 | D15: -7.5473905 | E15: 0 | F15: 0.6535891 | G15: -1700502.65 | H15: 10102520 | I15: 1.3445756 | J15: 0.5985753 | L15: 0.00042 | M15: 0.47437 | N15: 0.00083 | O15: 0 | P15: 0 | Q15: 0 | R15: 0.00063 | S15: 0 | T15: 0.46989 | U15: 0.00085 | V15: 0.00678 | W15: -0.00013 | X15: 0 | Y15: 0.4031 | Z15: 0.00276 | AA15: Linear
A16: Cust Count | B16: 3128.764504 | C16: 310.3981438 | D16: 10.0798428 | E16: 0 | F16: 0.0364536 | G16: 2538.185379 | H16: -6207416.5 | I16: 0.4668931 | J16: 0.0014604 | L16: 1.91462 | M16: 5973.09238 | N16: 0.7028 | O16: 1.00031 | P16: 5974.29065 | Q16: 0.70808 | R16: -0.42555 | S16: 0.01903 | T16: 6022.22334 | U16: 0.76941 | V16: 0.54647 | W16: -0.00049 | X16: 0.00011 | Y16: 6011.66529 | Z16: 0.77131 | AA16: Linear
A17: Covid Intensity | B17: -140087.4522 | C17: 97908.81513 | D17: -1.4307951 | E17: 0.1552486 | F17: 0.0004374 | G17: -87333.08929 | H17: 9262276 | I17: 0.2303545 | J17: 0.0097891 | L17: 0.00017 | M17: 0.10428 | N17: 0.00053 | O17: 0 | P17: 0 | Q17: 0 | R17: 0.0142 | S17: -0.00011 | T17: -0.19041 | U17: 0.23695 | V17: 0.01079 | W17: -5e-05 | X17: 0 | Y17: -0.15333 | Z17: 0.23927 | AA17: Linear

Sheet Forecast
B1: FORECASTED OUTPUT
B2: Coefficients: | C2: -14779662.09 | D2: 3474.013235 | E2: 14887.11807 | F2: 120829.9184 | G2: -584613.1692 | H2: 3128.764504 | I2: -140087.4522
A3: DATE | B3: WHOLESALE | C3: PREDICTED WHOLESALE | D3: HDD | E3: CDD | F3: NoD in Month | G3: Spring Fall | H3: Cust Count | I3: Covid Intensity
A4: ='Adjustments and Var'!B11 -> 2016-01-01 | B4: 10989034 | C4: =SUMPRODUCT(D2:I2,D4:I4)+C2 -> 10568954.62 | D4: 804.7999878 | E4: 0 | F4: 31 | G4: 0 | H4: 6011 | I4: 0
A5: ='Adjustments and Var'!B12 -> 2016-02-01 | B5: 10461168 | C5: =SUMPRODUCT(D2:I2,D5:I5)+C2 -> 10158805.14 | D5: 756.2999878 | E5: 0 | F5: 29 | G5: 0 | H5: 6011 | I5: 0
A6: ='Adjustments and Var'!B13 -> 2016-03-01 | B6: 9905017 | C6: =SUMPRODUCT(D2:I2,D6:I6)+C2 -> 9827600.325 | D6: 591.4000244 | E6: 0 | F6: 31 | G6: 0 | H6: 6011 | I6: 0
A7: ='Adjustments and Var'!B14 -> 2016-04-01 | B7: 8448753 | C7: =SUMPRODUCT(D2:I2,D7:I7)+C2 -> 8574652.625 | D7: 433.7999878 | E7: 0 | F7: 30 | G7: 1 | H7: 6011 | I7: 0
A8: ='Adjustments and Var'!B15 -> 2016-05-01 | B8: 7971052 | C8: =SUMPRODUCT(D2:I2,D8:I8)+C2 -> 8120837.447 | D8: 145.3999939 | E8: 28.70000076 | F8: 31 | G8: 1 | H8: 6011 | I8: 0
A9: ='Adjustments and Var'!B16 -> 2016-06-01 | B9: 8152771 | C9: =SUMPRODUCT(D2:I2,D9:I9)+C2 -> 7967862.543 | D9: 36.29999924 | E9: 52 | F9: 30 | G9: 1 | H9: 6011 | I9: 0
A10: ='Adjustments and Var'!B17 -> 2016-07-01 | B10: 9080665 | C10: =SUMPRODUCT(D2:I2,D10:I10)+C2 -> 9461169.931 | D10: 3.400000095 | E10: 112.5999985 | F10: 31 | G10: 0 | H10: 6011 | I10: 0
A11: ='Adjustments and Var'!B18 -> 2016-08-01 | B11: 9517733 | C11: =SUMPRODUCT(D2:I2,D11:I11)+C2 -> 9632867.321 | D11: 1.399999976 | E11: 124.5999985 | F11: 31 | G11: 0 | H11: 6011 | I11: 0
A12: ='Adjustments and Var'!B19 -> 2016-09-01 | B12: 8054076 | C12: =SUMPRODUCT(D2:I2,D12:I12)+C2 -> 7699213.349 | D12: 75.09999847 | E12: 24.89999962 | F12: 30 | G12: 1 | H12: 6011 | I12: 0
A13: ='Adjustments and Var'!B20 -> 2016-10-01 | B13: 8074621 | C13: =SUMPRODUCT(D2:I2,D13:I13)+C2 -> 8199740.918 | D13: 291.1000061 | E13: 0 | F13: 31 | G13: 1 | H13: 6011 | I13: 0
A14: ='Adjustments and Var'!B21 -> 2016-11-01 | B14: 8792790 | C14: =SUMPRODUCT(D2:I2,D14:I14)+C2 -> 8629194.675 | D14: 449.5 | E14: 0 | F14: 30 | G14: 1 | H14: 6011 | I14: 0
A15: ='Adjustments and Var'!B22 -> 2016-12-01 | B15: 10206407 | C15: =SUMPRODUCT(D2:I2,D15:I15)+C2 -> 10320910.2 | D15: 733.4000244 | E15: 0 | F15: 31 | G15: 0 | H15: 6011 | I15: 0
A16: ='Adjustments and Var'!B23 -> 2017-01-01 | B16: 10464420 | C16: =SUMPRODUCT(D2:I2,D16:I16)+C2 -> 10002225.22 | D16: 732.5 | E16: 0 | F16: 28 | G16: 0 | H16: 6026 | I16: 0
A17: ='Adjustments and Var'!B24 -> 2017-02-01 | B17: 9412266 | C17: =SUMPRODUCT(D2:I2,D17:I17)+C2 -> 9757654.604 | D17: 662.0999756 | E17: 0 | F17: 28 | G17: 0 | H17: 6026 | I17: 0
A18: ='Adjustments and Var'!B25 -> 2017-03-01 | B18: 10449490 | C18: =SUMPRODUCT(D2:I2,D18:I18)+C2 -> 10361935.81 | D18: 731.7000122 | E18: 0 | F18: 31 | G18: 0 | H18: 6026 | I18: 0
A19: ='Adjustments and Var'!B26 -> 2017-04-01 | B19: 8073164 | C19: =SUMPRODUCT(D2:I2,D19:I19)+C2 -> 8242021.542 | D19: 319.3999939 | E19: 1.200000048 | F19: 30 | G19: 1 | H19: 6026 | I19: 0
A20: ='Adjustments and Var'!B27 -> 2017-05-01 | B20: 7836699 | C20: =SUMPRODUCT(D2:I2,D20:I20)+C2 -> 8032311.991 | D20: 190.3999939 | E20: 9.100000381 | F20: 31 | G20: 1 | H20: 6026 | I20: 0
A21: ='Adjustments and Var'!B28 -> 2017-06-01 | B21: 7883609 | C21: =SUMPRODUCT(D2:I2,D21:I21)+C2 -> 7965473.591 | D21: 52.09999847 | E21: 45 | F21: 30 | G21: 1 | H21: 6026 | I21: 0
A22: ='Adjustments and Var'!B29 -> 2017-07-01 | B22: 8447553 | C22: =SUMPRODUCT(D2:I2,D22:I22)+C2 -> 8786473.667 | D22: 4.800000191 | E22: 63.79999924 | F22: 31 | G22: 0 | H22: 6026 | I22: 0
A23: ='Adjustments and Var'!B30 -> 2017-08-01 | B23: 8640906 | C23: =SUMPRODUCT(D2:I2,D23:I23)+C2 -> 8672694.257 | D23: 26.89999962 | E23: 51 | F23: 31 | G23: 0 | H23: 6026 | I23: 0
A24: ='Adjustments and Var'!B31 -> 2017-09-01 | B24: 8076439 | C24: =SUMPRODUCT(D2:I2,D24:I24)+C2 -> 8131173.468 | D24: 69.80000305 | E24: 52 | F24: 30 | G24: 1 | H24: 6026 | I24: 0
A25: ='Adjustments and Var'!B32 -> 2017-10-01 | B25: 7983759 | C25: =SUMPRODUCT(D2:I2,D25:I25)+C2 -> 7911131.721 | D25: 192.8000031 | E25: 0.400000006 | F25: 31 | G25: 1 | H25: 6026 | I25: 0
A26: ='Adjustments and Var'!B33 -> 2017-11-01 | B26: 9161805 | C26: =SUMPRODUCT(D2:I2,D26:I26)+C2 -> 8937024.452 | D26: 524.5999756 | E26: 0 | F26: 30 | G26: 1 | H26: 6026 | I26: 0
A27: ='Adjustments and Var'!B34 -> 2017-12-01 | B27: 10688479 | C27: =SUMPRODUCT(D2:I2,D27:I27)+C2 -> 10846907.97 | D27: 871.2999878 | E27: 0 | F27: 31 | G27: 0 | H27: 6026 | I27: 0
A28: ='Adjustments and Var'!B35 -> 2018-01-01 | B28: 11412898 | C28: =SUMPRODUCT(D2:I2,D28:I28)+C2 -> 10821931.67 | D28: 848.7999878 | E28: 0 | F28: 31 | G28: 0 | H28: 6043 | I28: 0
A29: ='Adjustments and Var'!B36 -> 2018-02-01 | B29: 9438920 | C29: =SUMPRODUCT(D2:I2,D29:I29)+C2 -> 9750048.369 | D29: 644.5999756 | E29: 0 | F29: 28 | G29: 0 | H29: 6043 | I29: 0
A30: ='Adjustments and Var'!B37 -> 2018-03-01 | B30: 9778013 | C30: =SUMPRODUCT(D2:I2,D30:I30)+C2 -> 9926331.099 | D30: 591 | E30: 0 | F30: 31 | G30: 0 | H30: 6043 | I30: 0
A31: ='Adjustments and Var'!B38 -> 2018-04-01 | B31: 8757348 | C31: =SUMPRODUCT(D2:I2,D31:I31)+C2 -> 8746337.783 | D31: 454.3999939 | E31: 0 | F31: 30 | G31: 1 | H31: 6043 | I31: 0
A32: ='Adjustments and Var'!B39 -> 2018-05-01 | B32: 7670323 | C32: =SUMPRODUCT(D2:I2,D32:I32)+C2 -> 7905834.926 | D32: 110.4000015 | E32: 15.69999981 | F32: 31 | G32: 1 | H32: 6043 | I32: 0
A33: ='Adjustments and Var'!B40 -> 2018-06-01 | B33: 7836187 | C33: =SUMPRODUCT(D2:I2,D33:I33)+C2 -> 7842146.392 | D33: 39 | E33: 36.20000076 | F33: 30 | G33: 1 | H33: 6043 | I33: 0
A34: ='Adjustments and Var'!B41 -> 2018-07-01 | B34: 9698694 | C34: =SUMPRODUCT(D2:I2,D34:I34)+C2 -> 10208978.01 | D34: 0 | E34: 156.8999939 | F34: 31 | G34: 0 | H34: 6043 | I34: 0
A35: ='Adjustments and Var'!B42 -> 2018-08-01 | B35: 9512830 | C35: =SUMPRODUCT(D2:I2,D35:I35)+C2 -> 9603669.173 | D35: 3.599999905 | E35: 115.4000015 | F35: 31 | G35: 0 | H35: 6043 | I35: 0
A36: ='Adjustments and Var'!B43 -> 2018-09-01 | B36: 8248876 | C36: =SUMPRODUCT(D2:I2,D36:I36)+C2 -> 8240943.026 | D36: 96.80000305 | E36: 49.5 | F36: 30 | G36: 1 | H36: 6043 | I36: 0
A37: ='Adjustments and Var'!B44 -> 2018-10-01 | B37: 8273205 | C37: =SUMPRODUCT(D2:I2,D37:I37)+C2 -> 8546515.265 | D37: 359.1000061 | E37: 0.6999999881 | F37: 31 | G37: 1 | H37: 6043 | I37: 0
A38: ='Adjustments and Var'!B45 -> 2018-11-01 | B38: 9371732 | C38: =SUMPRODUCT(D2:I2,D38:I38)+C2 -> 9250417.124 | D38: 599.5 | E38: 0 | F38: 30 | G38: 1 | H38: 6043 | I38: 0
A39: ='Adjustments and Var'!B46 -> 2018-12-01 | B39: 10215218 | C39: =SUMPRODUCT(D2:I2,D39:I39)+C2 -> 10536367.74 | D39: 766.5999756 | E39: 0 | F39: 31 | G39: 0 | H39: 6043 | I39: 0
A40: ='Adjustments and Var'!B47 -> 2019-01-01 | B40: 11356602 | C40: =SUMPRODUCT(D2:I2,D40:I40)+C2 -> 11130430.63 | D40: 934.9000244 | E40: 0 | F40: 31 | G40: 0 | H40: 6046 | I40: 0
A41: ='Adjustments and Var'!B48 -> 2019-02-01 | B41: 9954781 | C41: =SUMPRODUCT(D2:I2,D41:I41)+C2 -> 10167978.75 | D41: 762.2000122 | E41: 0 | F41: 28 | G41: 0 | H41: 6046 | I41: 0
A42: ='Adjustments and Var'!B49 -> 2019-03-01 | B42: 10085138 | C42: =SUMPRODUCT(D2:I2,D42:I42)+C2 -> 10196615.7 | D42: 666.0999756 | E42: 0 | F42: 31 | G42: 0 | H42: 6046 | I42: 0
A43: ='Adjustments and Var'!B50 -> 2019-04-01 | B43: 8524502 | C43: =SUMPRODUCT(D2:I2,D43:I43)+C2 -> 8562568.919 | D43: 398.7999878 | E43: 0 | F43: 30 | G43: 1 | H43: 6046 | I43: 0
A44: ='Adjustments and Var'!B51 -> 2019-05-01 | B44: 7801649 | C44: =SUMPRODUCT(D2:I2,D44:I44)+C2 -> 8038622.013 | D44: 213.1999969 | E44: 0 | F44: 31 | G44: 1 | H44: 6046 | I44: 0
A45: ='Adjustments and Var'!B52 -> 2019-06-01 | B45: 7764971 | C45: =SUMPRODUCT(D2:I2,D45:I45)+C2 -> 7836600.762 | D45: 52.70000076 | E45: 32 | F45: 30 | G45: 1 | H45: 6046 | I45: 0
A46: ='Adjustments and Var'!B53 -> 2019-07-01 | B46: 9557985 | C46: =SUMPRODUCT(D2:I2,D46:I46)+C2 -> 9864051.077 | D46: 0 | E46: 133.1000061 | F46: 31 | G46: 0 | H46: 6046 | I46: 0
A47: ='Adjustments and Var'!B54 -> 2019-08-01 | B47: 8688391 | C47: =SUMPRODUCT(D2:I2,D47:I47)+C2 -> 8720275.914 | D47: 6.300000191 | E47: 54.79999924 | F47: 31 | G47: 0 | H47: 6046 | I47: 0
A48: ='Adjustments and Var'!B55 -> 2019-09-01 | B48: 7563722 | C48: =SUMPRODUCT(D2:I2,D48:I48)+C2 -> 7673902.64 | D48: 104 | E48: 9.100000381 | F48: 30 | G48: 1 | H48: 6046 | I48: 0
A49: ='Adjustments and Var'!B56 -> 2019-10-01 | B49: 7908177 | C49: =SUMPRODUCT(D2:I2,D49:I49)+C2 -> 8294309.355 | D49: 286.7999878 | E49: 0 | F49: 31 | G49: 1 | H49: 6046 | I49: 0
A50: ='Adjustments and Var'!B57 -> 2019-11-01 | B50: 9264874 | C50: =SUMPRODUCT(D2:I2,D50:I50)+C2 -> 9228884.615 | D50: 590.5999756 | E50: 0 | F50: 30 | G50: 1 | H50: 6046 | I50: 0
A51: ='Adjustments and Var'!B58 -> 2019-12-01 | B51: 10207018 | C51: =SUMPRODUCT(D2:I2,D51:I51)+C2 -> 10374137.91 | D51: 717.2000122 | E51: 0 | F51: 31 | G51: 0 | H51: 6046 | I51: 0
A52: ='Adjustments and Var'!B59 -> 2020-01-01 | B52: 10475746 | C52: =SUMPRODUCT(D2:I2,D52:I52)+C2 -> 10469994.71 | D52: 755.5999756 | E52: 0 | F52: 31 | G52: 0 | H52: 6034 | I52: 0
A53: ='Adjustments and Var'!B60 -> 2020-02-01 | B53: 9817627 | C53: =SUMPRODUCT(D2:I2,D53:I53)+C2 -> 10125156.85 | D53: 725.9000244 | E53: 0 | F53: 29 | G53: 0 | H53: 6034 | I53: 0
A54: ='Adjustments and Var'!B61 -> 2020-03-01 | B54: 9509806 | C54: =SUMPRODUCT(D2:I2,D54:I54)+C2 -> 9726339.947 | D54: 561.7000122 | E54: 0 | F54: 31 | G54: 0 | H54: 6034 | I54: 0.5
A55: ='Adjustments and Var'!B62 -> 2020-04-01 | B55: 8024763 | C55: =SUMPRODUCT(D2:I2,D55:I55)+C2 -> 8358186.455 | D55: 391.1000061 | E55: 0 | F55: 30 | G55: 1 | H55: 6034 | I55: 1
A56: ='Adjustments and Var'!B63 -> 2020-05-01 | B56: 7939253 | C56: =SUMPRODUCT(D2:I2,D56:I56)+C2 -> 8209477.353 | D56: 193.3000031 | E56: 25.70000076 | F56: 31 | G56: 1 | H56: 6034 | I56: 0.75
A57: ='Adjustments and Var'!B64 -> 2020-06-01 | B57: 8515025 | C57: =SUMPRODUCT(D2:I2,D57:I57)+C2 -> 8272885.113 | D57: 44.70000076 | E57: 70.40000153 | F57: 30 | G57: 1 | H57: 6034 | I57: 0.5
A58: ='Adjustments and Var'!B65 -> 2020-07-01 | B58: 10333884 | C58: =SUMPRODUCT(D2:I2,D58:I58)+C2 -> 10576035.12 | D58: 0 | E58: 185.8000031 | F58: 31 | G58: 0 | H58: 6034 | I58: 0.25
A59: ='Adjustments and Var'!B66 -> 2020-08-01 | B59: 9206403 | C59: =SUMPRODUCT(D2:I2,D59:I59)+C2 -> 8946649.006 | D59: 25.5 | E59: 70.40000153 | F59: 31 | G59: 0 | H59: 6034 | I59: 0.25
A60: ='Adjustments and Var'!B67 -> 2020-09-01 | B60: 7627587 | C60: =SUMPRODUCT(D2:I2,D60:I60)+C2 -> 7686697.216 | D60: 129 | E60: 9 | F60: 30 | G60: 1 | H60: 6034 | I60: 0.25
A61: ='Adjustments and Var'!B68 -> 2020-10-01 | B61: 8195562 | C61: =SUMPRODUCT(D2:I2,D61:I61)+C2 -> 8327765.414 | D61: 327.3999939 | E61: 0 | F61: 31 | G61: 1 | H61: 6034 | I61: 0.5
A62: ='Adjustments and Var'!B69 -> 2020-11-01 | B62: 8711857 | C62: =SUMPRODUCT(D2:I2,D62:I62)+C2 -> 8527999.989 | D62: 429.8999939 | E62: 0 | F62: 30 | G62: 1 | H62: 6034 | I62: 0.75
A63: ='Adjustments and Var'!B70 -> 2020-12-01 | B63: 10055028 | C63: =SUMPRODUCT(D2:I2,D63:I63)+C2 -> 9952629.508 | D63: 647 | E63: 0 | F63: 31 | G63: 0 | H63: 6034 | I63: 1
A64: ='Adjustments and Var'!B71 -> 2021-01-01 | B64: 10499396 | C64: =SUMPRODUCT(D2:I2,D64:I64)+C2 -> 10406736.89 | D64: 755.2000122 | E64: 0 | F64: 31 | G64: 0 | H64: 6059 | I64: 1
A65: ='Adjustments and Var'!B72 -> 2021-02-01 | B65: 9792629 | C65: =SUMPRODUCT(D2:I2,D65:I65)+C2 -> 9830182.211 | D65: 683.5 | E65: 0 | F65: 28 | G65: 0 | H65: 6059 | I65: 0.75
A66: ='Adjustments and Var'!B73 -> 2021-03-01 | B66: 9788308 | C66: =SUMPRODUCT(D2:I2,D66:I66)+C2 -> 9858753.582 | D66: 577.2999878 | E66: 0 | F66: 31 | G66: 0 | H66: 6059 | I66: 0.5
A67: ='Adjustments and Var'!B74 -> 2021-04-01 | B67: 7927583.5 | C67: =SUMPRODUCT(D2:I2,D67:I67)+C2 -> 8103595.036 | D67: 295.2999878 | E67: 0 | F67: 30 | G67: 1 | H67: 6059 | I67: 1
A68: ='Adjustments and Var'!B75 -> 2021-05-01 | B68: 8042340 | C68: =SUMPRODUCT(D2:I2,D68:I68)+C2 -> 8200947.307 | D68: 173.8999939 | E68: 24.39999962 | F68: 31 | G68: 1 | H68: 6059 | I68: 0.75
A69: ='Adjustments and Var'!B76 -> 2021-06-01 | B69: 8737900 | C69: =SUMPRODUCT(D2:I2,D69:I69)+C2 -> 8532567.327 | D69: 13.80000019 | E69: 89.80000305 | F69: 30 | G69: 1 | H69: 6059 | I69: 0.5
A70: ='Adjustments and Var'!B77 -> 2021-07-01 | B70: 8943567 | C70: =SUMPRODUCT(D2:I2,D70:I70)+C2 -> 8904378.377 | D70: 16.10000038 | E70: 64.5 | F70: 31 | G70: 0 | H70: 6059 | I70: 0.25
A71: ='Adjustments and Var'!B78 -> 2021-08-01 | B71: 10027304 | C71: =SUMPRODUCT(D2:I2,D71:I71)+C2 -> 9928161.363 | D71: 4.400000095 | E71: 136 | F71: 31 | G71: 0 | H71: 6059 | I71: 0.25
A72: ='Adjustments and Var'!B79 -> 2021-09-01 | B72: 8054742 | C72: =SUMPRODUCT(D2:I2,D72:I72)+C2 -> 7494197.931 | D72: 69.5 | E72: 4.699999809 | F72: 30 | G72: 1 | H72: 6059 | I72: 0.25
A73: ='Adjustments and Var'!B80 -> 2021-10-01 | B73: 8075869 | C73: =SUMPRODUCT(D2:I2,D73:I73)+C2 -> 7995289.476 | D73: 196.1000061 | E73: 0.6999999881 | F73: 31 | G73: 1 | H73: 6059 | I73: 0.25
A74: ='Adjustments and Var'!B81 -> 2021-11-01 | B74: 9085639 | C74: =SUMPRODUCT(D2:I2,D74:I74)+C2 -> 8952099.457 | D74: 509.2999878 | E74: 0 | F74: 30 | G74: 1 | H74: 6059 | I74: 0.25
A75: ='Adjustments and Var'!B82 -> 2021-12-01 | B75: 10218754 | C75: =SUMPRODUCT(D2:I2,D75:I75)+C2 -> 10259654.79 | D75: 692.7000122 | E75: 0 | F75: 31 | G75: 0 | H75: 6059 | I75: 0.5
A76: ='Adjustments and Var'!B83 -> 2022-01-01 | B76: 11881999 | C76: =SUMPRODUCT(D2:I2,D76:I76)+C2 -> 11587654.07 | D76: 1015.700012 | E76: 0 | F76: 31 | G76: 0 | H76: 6136 | I76: 0.75
A77: ='Adjustments and Var'!B84 -> 2022-02-01 | B77: 10331690 | C77: =SUMPRODUCT(D2:I2,D77:I77)+C2 -> 10242647.62 | D77: 722.7999878 | E77: 0 | F77: 28 | G77: 0 | H77: 6136 | I77: 0.5
A78: ='Adjustments and Var'!B85 -> 2022-03-01 | B78: 10474433 | C78: =SUMPRODUCT(D2:I2,D78:I78)+C2 -> 10250722.44 | D78: 610.7000122 | E78: 0 | F78: 31 | G78: 0 | H78: 6136 | I78: 0.25
A79: ='Adjustments and Var'!B86 -> 2022-04-01 | B79: 8660849 | C79: =SUMPRODUCT(D2:I2,D79:I79)+C2 -> 8686850.659 | D79: 363.6000061 | E79: 0 | F79: 30 | G79: 1 | H79: 6136 | I79: 0.25
A80: ='Adjustments and Var'!B87 -> 2022-05-01 | B80: 8371166.5 | C80: =SUMPRODUCT(D2:I2,D80:I80)+C2 -> 8365333.874 | D80: 115.1999969 | E80: 25.89999962 | F80: 31 | G80: 1 | H80: 6136 | I80: 0
A81: ='Adjustments and Var'!B88 -> 2022-06-01 | B81: 8501867 | C81: =SUMPRODUCT(D2:I2,D81:I81)+C2 -> 7993328.597 | D81: 30.89999962 | E81: 28.70000076 | F81: 30 | G81: 1 | H81: 6136 | I81: 0
A82: ='Adjustments and Var'!B89 -> 2022-07-01 | B82: 9634859 | C82: =SUMPRODUCT(D2:I2,D82:I82)+C2 -> 9548914.675 | D82: 0.5 | E82: 92.90000153 | F82: 31 | G82: 0 | H82: 6136 | I82: 0
A83: ='Adjustments and Var'!B90 -> 2022-08-01 | B83: 9874706 | C83: =SUMPRODUCT(D2:I2,D83:I83)+C2 -> 9435029.739 | D83: 5 | E83: 84.19999695 | F83: 31 | G83: 0 | H83: 6136 | I83: 0
A84: ='Adjustments and Var'!B91 -> 2022-09-01 | B84: 8176359.5 | C84: =SUMPRODUCT(D2:I2,D84:I84)+C2 -> 8007944.8 | D84: 107.0999985 | E84: 11.89999962 | F84: 30 | G84: 1 | H84: 6136 | I84: 0
A85: ='Adjustments and Var'!B92 -> 2022-10-01 | B85: 8309019 | C85: =SUMPRODUCT(D2:I2,D85:I85)+C2 -> 8548106.055 | D85: 278.7999878 | E85: 0 | F85: 31 | G85: 1 | H85: 6136 | I85: 0
A86: ='Adjustments and Var'!B93 -> 2022-11-01 | B86: 8944138 | C86: =SUMPRODUCT(D2:I2,D86:I86)+C2 -> 8957458.609 | D86: 426.7000122 | E86: 1.100000024 | F86: 30 | G86: 1 | H86: 6136 | I86: 0
A87: ='Adjustments and Var'!B94 -> 2022-12-01 | B87: 10328304 | C87: =SUMPRODUCT(D2:I2,D87:I87)+C2 -> 10422967.82 | D87: 650.2000122 | E87: 0 | F87: 31 | G87: 0 | H87: 6136 | I87: 0
A88: ='Adjustments and Var'!B95 -> 2023-01-01 | B88: 10715912 | C88: =SUMPRODUCT(D2:I2,D88:I88)+C2 -> 10805909.47 | D88: 716.2999878 | E88: 0 | F88: 31 | G88: 0 | H88: 6185 | I88: 0
A89: ='Adjustments and Var'!B96 -> 2023-02-01 | B89: 10011127 | C89: =SUMPRODUCT(D2:I2,D89:I89)+C2 -> 10461137.31 | D89: 721.4000244 | E89: 0 | F89: 28 | G89: 0 | H89: 6185 | I89: 0
A90: ='Adjustments and Var'!B97 -> 2023-03-01 | B90: 10175939 | C90: =SUMPRODUCT(D2:I2,D90:I90)+C2 -> 10367141.65 | D90: 590 | E90: 0 | F90: 31 | G90: 0 | H90: 6185 | I90: 0
A91: ='Adjustments and Var'!B98 -> 2023-04-01 | B91: 8467145 | C91: =SUMPRODUCT(D2:I2,D91:I91)+C2 -> 8705650.074 | D91: 314.7999878 | E91: 0 | F91: 30 | G91: 1 | H91: 6185 | I91: 0
A92: ='Adjustments and Var'!B99 -> 2023-05-01 | B92: 8117557 | C92: =SUMPRODUCT(D2:I2,D92:I92)+C2 -> 8426412.33 | D92: 170.5 | E92: 6.800000191 | F92: 31 | G92: 1 | H92: 6185 | I92: 0
A93: ='Adjustments and Var'!B100 -> 2023-06-01 | B93: 8611149 | C93: =SUMPRODUCT(D2:I2,D93:I93)+C2 -> 8618461.615 | D93: 34.29999924 | E93: 59.59999847 | F93: 30 | G93: 1 | H93: 6185 | I93: 0
A94: ='Adjustments and Var'!B101 -> 2023-07-01 | B94: 9912477 | C94: =SUMPRODUCT(D2:I2,D94:I94)+C2 -> 10134845.62 | D94: 5.900000095 | E94: 120.6999969 | F94: 31 | G94: 0 | H94: 6185 | I94: 0
A95: ='Adjustments and Var'!B102 -> 2023-08-01 | B95: 9166356 | C95: =SUMPRODUCT(D2:I2,D95:I95)+C2 -> 8844382.937 | D95: 12.39999962 | E95: 32.5 | F95: 31 | G95: 0 | H95: 6185 | I95: 0
A96: ='Adjustments and Var'!B103 -> 2023-09-01 | B96: 8452338 | C96: =SUMPRODUCT(D2:I2,D96:I96)+C2 -> 8337503.175 | D96: 65.69999695 | E96: 33.40000153 | F96: 30 | G96: 1 | H96: 6185 | I96: 0
A97: ='Adjustments and Var'!B104 -> 2023-10-01 | B97: 8306104.5 | C97: =SUMPRODUCT(D2:I2,D97:I97)+C2 -> 8708194.291 | D97: 222.8999939 | E97: 13.5 | F97: 31 | G97: 1 | H97: 6185 | I97: 0
A98: ='Adjustments and Var'!B105 -> 2023-11-01 | B98: 9189968 | C98: =SUMPRODUCT(D2:I2,D98:I98)+C2 -> 9459163.629 | D98: 531.7000122 | E98: 0 | F98: 30 | G98: 1 | H98: 6185 | I98: 0
A99: ='Adjustments and Var'!B106 -> 2023-12-01 | B99: 10068806 | C99: =SUMPRODUCT(D2:I2,D99:I99)+C2 -> 10490469.12 | D99: 625.5 | E99: 0 | F99: 31 | G99: 0 | H99: 6185 | I99: 0
A100: ='Adjustments and Var'!B107 -> 2024-01-01 | B100: 11069790 | C100: =SUMPRODUCT(D2:I2,D100:I100)+C2 -> 10666776.74 | D100: 748.2999878 | E100: 0 | F100: 31 | G100: 0 | H100: 6105 | I100: 0
A101: ='Adjustments and Var'!B108 -> 2024-02-01 | B101: 9933265 | C101: =SUMPRODUCT(D2:I2,D101:I101)+C2 -> 10034989.61 | D101: 634.2000122 | E101: 0 | F101: 29 | G101: 0 | H101: 6107 | I101: 0
A102: ='Adjustments and Var'!B109 -> 2024-03-01 | B102: 9844333 | C102: =SUMPRODUCT(D2:I2,D102:I102)+C2 -> 9812866.501 | D102: 501.6000061 | E102: 0 | F102: 31 | G102: 0 | H102: 6106 | I102: 0
A103: ='Adjustments and Var'!B110 -> 2024-04-01 | B103: 8563615 | C103: =SUMPRODUCT(D2:I2,D103:I103)+C2 -> 8491828.226 | D103: 324.3999939 | E103: 0 | F103: 30 | G103: 1 | H103: 6106 | I103: 0
A104: ='Adjustments and Var'!B111 -> 2024-05-01 | B104: 8212443 | C104: =SUMPRODUCT(D2:I2,D104:I104)+C2 -> 8048899.538 | D104: 89.69999695 | E104: 16.89999962 | F104: 31 | G104: 1 | H104: 6106 | I104: 0
A105: ='Adjustments and Var'!B112 -> 2024-06-01 | B105: 8827125 | C105: =SUMPRODUCT(D2:I2,D105:I105)+C2 -> 8412129.164 | D105: 33.20000076 | E105: 62.59999847 | F105: 30 | G105: 1 | H105: 6106 | I105: 0
A106: ='Adjustments and Var'!B113 -> 2024-07-01 | B106: 10244422 | C106: =SUMPRODUCT(D2:I2,D106:I106)+C2 -> 9777760.163 | D106: 1.600000024 | E106: 113.9000015 | F106: 31 | G106: 0 | H106: 6108 | I106: 0
A107: ='Adjustments and Var'!B114 -> 2024-08-01 | B107: 9562430 | C107: =SUMPRODUCT(D2:I2,D107:I107)+C2 -> 9282371.775 | D107: 16.70000076 | E107: 77.09999847 | F107: 31 | G107: 0 | H107: 6108 | I107: 0
A108: ='Adjustments and Var'!B115 -> 2024-09-01 | B108: 8514902 | C108: =SUMPRODUCT(D2:I2,D108:I108)+C2 -> 7929351.77 | D108: 52.70000076 | E108: 25.20000076 | F108: 30 | G108: 1 | H108: 6108 | I108: 0
A109: ='Adjustments and Var'!B116 -> 2024-10-01 | B109: 8472949 | C109: =SUMPRODUCT(D2:I2,D109:I109)+C2 -> 8431019.568 | D109: 265.6000061 | E109: 1.100000024 | F109: 31 | G109: 1 | H109: 6108 | I109: 0
A110: ='Adjustments and Var'!B117 -> 2024-11-01 | B110: 9017604 | C110: =SUMPRODUCT(D2:I2,D110:I110)+C2 -> 8799977.484 | D110: 411.2999878 | E110: 0 | F110: 30 | G110: 1 | H110: 6108 | I110: 0
A111: ='Adjustments and Var'!B118 -> 2024-12-01 | B111: 10867007 | C111: =SUMPRODUCT(D2:I2,D111:I111)+C2 -> 10591051.99 | D111: 722.9000244 | E111: 0 | F111: 31 | G111: 0 | H111: 6109 | I111: 0
A112: ='Adjustments and Var'!B119 -> 2025-01-01 | B112: 11352460 | C112: =SUMPRODUCT(D2:I2,D112:I112)+C2 -> 11429936.97 | D112: 856.2999878 | E112: 0 | F112: 31 | G112: 0 | H112: 6229 | I112: 0
A113: ='Adjustments and Var'!B120 -> 2025-02-01 | B113: 10660170 | C113: =SUMPRODUCT(D2:I2,D113:I113)+C2 -> 10782910.54 | D113: 780.7000122 | E113: 0 | F113: 28 | G113: 0 | H113: 6222 | I113: 0
A114: ='Adjustments and Var'!B121 -> 2025-03-01 | B114: 10493874 | C114: =SUMPRODUCT(D2:I2,D114:I114)+C2 -> 10440842.3 | D114: 589.5999756 | E114: 0 | F114: 31 | G114: 0 | H114: 6209 | I114: 0
A115: ='Adjustments and Var'!B122 -> 2025-04-01 | B115: 8945853 | C115: =SUMPRODUCT(D2:I2,D115:I115)+C2 -> 9122302.738 | D115: 385.2000122 | E115: 0 | F115: 30 | G115: 1 | H115: 6240 | I115: 0
A116: ='Adjustments and Var'!B123 -> 2025-05-01 | B116: 8365024 | C116: =SUMPRODUCT(D2:I2,D116:I116)+C2 -> 9096463.251 | D116: 148.1999969 | E116: 3 | F116: 31 | G116: 1 | H116: 6442 | I116: 0
A117: ='Adjustments and Var'!B124 -> 2025-06-01 | B117: 9083014 | C117: =SUMPRODUCT(D2:I2,D117:I117)+C2 -> 8959074.402 | D117: 31.20000076 | E117: 66.59999847 | F117: 30 | G117: 1 | H117: 6264 | I117: 0
A118: ='Adjustments and Var'!B125 -> 2025-07-01 | B118: 10707430 | C118: =SUMPRODUCT(D2:I2,D118:I118)+C2 -> 10550229.53 | D118: 4.400000095 | E118: 133.3999939 | F118: 31 | G118: 0 | H118: 6259 | I118: 0
A119: ='Adjustments and Var'!B126 -> 2025-08-01 | B119: 9981547 | C119: =SUMPRODUCT(D2:I2,D119:I119)+C2 -> 9868191.701 | D119: 19.60000038 | E119: 85.30000305 | F119: 31 | G119: 0 | H119: 6253 | I119: 0
A120: ='Adjustments and Var'!B127 -> 2025-09-01 | B120: 8576052 | C120: =SUMPRODUCT(D2:I2,D120:I120)+C2 -> 8151086.208 | D120: 59.59999847 | E120: 7.800000191 | F120: 30 | G120: 1 | H120: 6254 | I120: 0
A121: ='Adjustments and Var'!B128 -> 2025-10-01 | B121: 8819455 | C121: =SUMPRODUCT(D2:I2,D121:I121)+C2 -> 8931279.528 | D121: 251.1999969 | E121: 7.800000191 | F121: 31 | G121: 1 | H121: 6252 | I121: 0
A122: ='Adjustments and Var'!B129 -> 2025-11-01 | B122: 10182138 | C122: =SUMPRODUCT(D2:I2,D122:I122)+C2 -> 9693810.204 | D122: 536.2000122 | E122: 0 | F122: 30 | G122: 1 | H122: 6255 | I122: 0
A123: ='Adjustments and Var'!B130 -> 2025-12-01 | B123: 12019804 | C123: =SUMPRODUCT(D2:I2,D123:I123)+C2 -> 11637780.24 | D123: 837 | E123: 0 | F123: 32.54999924 | G123: 0 | H123: 6257 | I123: 0
C124: =SUMPRODUCT(D2:I2,D124:I124)+C2 -> 11465914.14 | D124: =AVERAGE(D4,D16,D28,D40,D52,D64,D76,D88,D100,D112) -> 816.8399963 | E124: =AVERAGE(E4,E16,E28,E40,E52,E64,E76,E88,E100,E112) -> 0 | F124: 31 | G124: 0 | H124: ='Monthly Load & Cust Input'!C209+'Monthly Load & Cust Input'!E209+'Monthly Load & Cust Input'!G209+'Monthly Load & Cust Input'!I209+'Monthly Load & Cust Input'!K209+5 -> 6289.903153 | I124: 0.1248500023
C125: =SUMPRODUCT(D2:I2,D125:I125)+C2 -> 10730048.38 | D125: =AVERAGE(D5,D17,D29,D41,D53,D65,D77,D89,D101,D113) -> 709.3700012 | E125: 0 | F125: 28 | G125: 0 | H125: =H124 -> 6289.903153 | I125: 0.1250200023
C126: =SUMPRODUCT(D2:I2,D126:I126)+C2 -> 10716417.65 | D126: 601.1100006 | E126: 0 | F126: 31 | G126: 0 | H126: =H125 -> 6289.903153 | I126: 0.1251900023
C127: =SUMPRODUCT(D2:I2,D127:I127)+C2 -> 9203187.879 | D127: 368.0799957 | E127: 0.1200000048 | F127: 30 | G127: 1 | H127: 6289.903153 | I127: 0.1253600023
C128: =SUMPRODUCT(D2:I2,D128:I128)+C2 -> 8814571.06 | D128: 155.0199974 | E128: 15.62000008 | F128: 31 | G128: 1 | H128: 6289.903153 | I128: 0.1255300023
C129: =SUMPRODUCT(D2:I2,D129:I129)+C2 -> 8858773.828 | D129: 36.81999998 | E129: 54.29000015 | F129: 30 | G129: 1 | H129: 6289.903153 | I129: 0.1257000023
C130: =SUMPRODUCT(D2:I2,D130:I130)+C2 -> 10393914.94 | D130: 3.670000088 | E130: 117.7599995 | F130: 31 | G130: 0 | H130: 6289.903153 | I130: 0.1258700023
C131: =SUMPRODUCT(D2:I2,D131:I131)+C2 -> 9907914.082 | D131: 12.18000005 | E131: 83.12999992 | F131: 31 | G131: 0 | H131: 6289.903153 | I131: 0.1260400023
C132: =SUMPRODUCT(D2:I2,D132:I132)+C2 -> 8549349.43 | D132: 82.92999992 | E132: 22.75000019 | F132: 30 | G132: 1 | H132: 6289.903153 | I132: 0.1262100023
C133: =SUMPRODUCT(D2:I2,D133:I133)+C2 -> 9007587.355 | D133: 267.1799988 | E133: 2.42000002 | F133: 31 | G133: 1 | H133: 6289.903153 | I133: 0.1263800023
C134: =SUMPRODUCT(D2:I2,D134:I134)+C2 -> 9664394.962 | D134: 500.9299957 | E134: 0.1100000024 | F134: 30 | G134: 1 | H134: 6289.903153 | I134: 0.1265500023
C135: =SUMPRODUCT(D2:I2,D135:I135)+C2 -> 11338679.25 | D135: 726.3800049 | E135: 0 | F135: 32.54999924 | G135: 0 | H135: 6289.903153 | I135: 0.1267200023
C136: =SUMPRODUCT(D2:I2,D136:I136)+C2 -> 11559680.81 | D136: 818.0439972 | E136: 0 | F136: 31 | G136: 0 | H136: ='Monthly Load & Cust Input'!C210+'Monthly Load & Cust Input'!E210+'Monthly Load & Cust Input'!G210+'Monthly Load & Cust Input'!I210+'Monthly Load & Cust Input'!K210+5 -> 6318.626868 | I136: 0.1268900023
C137: =SUMPRODUCT(D2:I2,D137:I137)+C2 -> 10803328.8 | D137: 704.6770026 | E137: 0 | F137: 28 | G137: 0 | H137: =H136 -> 6318.626868 | I137: 0.1270600023
C138: =SUMPRODUCT(D2:I2,D138:I138)+C2 -> 10809374.87 | D138: 602.0809982 | E138: 0 | F138: 31 | G138: 0 | H138: =H137 -> 6318.626868 | I138: 0.1272300023
C139: =SUMPRODUCT(D2:I2,D139:I139)+C2 -> 9270119.273 | D139: 361.5079965 | E139: 0.1320000052 | F139: 30 | G139: 1 | H139: 6318.626868 | I139: 0.1274000023
C140: =SUMPRODUCT(D2:I2,D140:I140)+C2 -> 8888024.671 | D140: 155.9819978 | E140: 14.31200001 | F140: 31 | G140: 1 | H140: 6318.626868 | I140: 0.1275700023
C141: =SUMPRODUCT(D2:I2,D141:I141)+C2 -> 8951947.588 | D141: 36.87200006 | E141: 54.51900017 | F141: 30 | G141: 1 | H141: 6318.626868 | I141: 0.1277400023
C142: =SUMPRODUCT(D2:I2,D142:I142)+C2 -> 10491274.45 | D142: 3.697000087 | E142: 118.2759996 | F142: 31 | G142: 0 | H142: 6318.626868 | I142: 0.1279100023
C143: =SUMPRODUCT(D2:I2,D143:I143)+C2 -> 9939506.152 | D143: 13.25800006 | E143: 78.98300007 | F143: 31 | G143: 0 | H143: 6318.626868 | I143: 0.1280800023
C144: =SUMPRODUCT(D2:I2,D144:I144)+C2 -> 8638452.814 | D144: 83.71300007 | E144: 22.53500025 | F144: 30 | G144: 1 | H144: 6318.626868 | I144: 0.1282500023
C145: =SUMPRODUCT(D2:I2,D145:I145)+C2 -> 9092464.156 | D145: 264.787998 | E145: 2.662000022 | F145: 31 | G145: 1 | H145: 6318.626868 | I145: 0.1284200023
C146: =SUMPRODUCT(D2:I2,D146:I146)+C2 -> 9772009.529 | D146: 506.0729953 | E146: 0.1210000026 | F146: 30 | G146: 1 | H146: 6318.626868 | I146: 0.1285900023
C147: =SUMPRODUCT(D2:I2,D147:I147)+C2 -> 11425824.44 | D147: 725.6780029 | E147: 0 | F147: 32.54999924 | G147: 0 | H147: 6318.626868 | I147: 0.1287600023

Sheet Weather Sensitive Forecast
B8: WEATHER SENSITIVE
B10: =Controls!B15 -> Residential
B11: Year | C11: Residential Actual kWh | D11: Total Actual Wholesale | E11: Ratio% | F11: Predicted Wholesale | G11: Residential Weather Normal
B12: =YEAR(INDEX('Monthly Load & Cust Input'!$B:$B, 12 + 12*(ROW()-12))) -> 2016 | C12: =SUM(INDEX('Monthly Load & Cust Input'!$D:$D, 12 + 12*(ROW()-12)) : INDEX('Monthly Load & Cust Input'!$D:$D, 23 + 12*(ROW()-12))) -> 44987762 | D12: =SUM(INDEX('Monthly Load & Cust Input'!$C:$C, 12 + 12*(ROW()-12)) : INDEX('Monthly Load & Cust Input'!$C:$C, 23 + 12*(ROW()-12))) -> 109654087 | E12: =C12/D12 -> 0.4102698151 | F12: =SUM(Forecast!C4:C15) -> 109161809.1 | G12: =F12*E12 -> 44785795.24
B13: =YEAR(INDEX('Monthly Load & Cust Input'!$B:$B, 12 + 12*(ROW()-12))) -> 2017 | C13: =SUM(INDEX('Monthly Load & Cust Input'!$D:$D, 12 + 12*(ROW()-12)) : INDEX('Monthly Load & Cust Input'!$D:$D, 23 + 12*(ROW()-12))) -> 43072131 | D13: =SUM(INDEX('Monthly Load & Cust Input'!$C:$C, 12 + 12*(ROW()-12)) : INDEX('Monthly Load & Cust Input'!$C:$C, 23 + 12*(ROW()-12))) -> 107118589 | E13: =C13/D13 -> 0.4020976322 | F13: =SUM(Forecast!C16:C27) -> 107647028.3 | G13: =F13*E13 -> 43284615.19
B14: =YEAR(INDEX('Monthly Load & Cust Input'!$B:$B, 12 + 12*(ROW()-12))) -> 2018 | C14: =SUM(INDEX('Monthly Load & Cust Input'!$D:$D, 12 + 12*(ROW()-12)) : INDEX('Monthly Load & Cust Input'!$D:$D, 23 + 12*(ROW()-12))) -> 45964868 | D14: =SUM(INDEX('Monthly Load & Cust Input'!$C:$C, 12 + 12*(ROW()-12)) : INDEX('Monthly Load & Cust Input'!$C:$C, 23 + 12*(ROW()-12))) -> 110214244 | E14: =C14/D14 -> 0.4170501591 | F14: =SUM(Forecast!C28:C39) -> 111379520.6 | G14: =F14*E14 -> 46450846.78
B15: =YEAR(INDEX('Monthly Load & Cust Input'!$B:$B, 12 + 12*(ROW()-12))) -> 2019 | C15: =SUM(INDEX('Monthly Load & Cust Input'!$D:$D, 12 + 12*(ROW()-12)) : INDEX('Monthly Load & Cust Input'!$D:$D, 23 + 12*(ROW()-12))) -> 45802374 | D15: =SUM(INDEX('Monthly Load & Cust Input'!$C:$C, 12 + 12*(ROW()-12)) : INDEX('Monthly Load & Cust Input'!$C:$C, 23 + 12*(ROW()-12))) -> 108677810 | E15: =C15/D15 -> 0.4214510211 | F15: =SUM(Forecast!C40:C51) -> 110088378.3 | G15: =F15*E15 -> 46396859.44
B16: =YEAR(INDEX('Monthly Load & Cust Input'!$B:$B, 12 + 12*(ROW()-12))) -> 2020 | C16: =SUM(INDEX('Monthly Load & Cust Input'!$D:$D, 12 + 12*(ROW()-12)) : INDEX('Monthly Load & Cust Input'!$D:$D, 23 + 12*(ROW()-12))) -> 46867868 | D16: =SUM(INDEX('Monthly Load & Cust Input'!$C:$C, 12 + 12*(ROW()-12)) : INDEX('Monthly Load & Cust Input'!$C:$C, 23 + 12*(ROW()-12))) -> 108412541 | E16: 0.4323103911 | F16: =SUM(Forecast!C52:C63) -> 109179816.7 | G16: =F16*E16 -> 47199569.25
B17: =YEAR(INDEX('Monthly Load & Cust Input'!$B:$B, 12 + 12*(ROW()-12))) -> 2021 | C17: =SUM(INDEX('Monthly Load & Cust Input'!$D:$D, 12 + 12*(ROW()-12)) : INDEX('Monthly Load & Cust Input'!$D:$D, 23 + 12*(ROW()-12))) -> 47371200 | D17: =SUM(INDEX('Monthly Load & Cust Input'!$C:$C, 12 + 12*(ROW()-12)) : INDEX('Monthly Load & Cust Input'!$C:$C, 23 + 12*(ROW()-12))) -> 109194031.7 | E17: 0.4338259083 | F17: =SUM(Forecast!C64:C75) -> 108466563.8 | G17: 47055605.54
B18: =YEAR(INDEX('Monthly Load & Cust Input'!$B:$B, 12 + 12*(ROW()-12))) -> 2022 | C18: =SUM(INDEX('Monthly Load & Cust Input'!$D:$D, 12 + 12*(ROW()-12)) : INDEX('Monthly Load & Cust Input'!$D:$D, 23 + 12*(ROW()-12))) -> 47305071 | D18: =SUM(INDEX('Monthly Load & Cust Input'!$C:$C, 12 + 12*(ROW()-12)) : INDEX('Monthly Load & Cust Input'!$C:$C, 23 + 12*(ROW()-12))) -> 113489389.4 | E18: 0.4168237336 | F18: =SUM(Forecast!C76:C87) -> 112046959 | G18: 46703831.77
B19: =YEAR(INDEX('Monthly Load & Cust Input'!$B:$B, 12 + 12*(ROW()-12))) -> 2023 | C19: =SUM(INDEX('Monthly Load & Cust Input'!$D:$D, 12 + 12*(ROW()-12)) : INDEX('Monthly Load & Cust Input'!$D:$D, 23 + 12*(ROW()-12))) -> 46366246 | D19: =SUM(INDEX('Monthly Load & Cust Input'!$C:$C, 12 + 12*(ROW()-12)) : INDEX('Monthly Load & Cust Input'!$C:$C, 23 + 12*(ROW()-12))) -> 111194878.8 | E19: 0.4169818477 | F19: =SUM(Forecast!C88:C99) -> 113359271.2 | G19: 47268758.36
B20: =YEAR(INDEX('Monthly Load & Cust Input'!$B:$B, 12 + 12*(ROW()-12))) -> 2024 | C20: =SUM(INDEX('Monthly Load & Cust Input'!$D:$D, 12 + 12*(ROW()-12)) : INDEX('Monthly Load & Cust Input'!$D:$D, 23 + 12*(ROW()-12))) -> 47417572 | D20: =SUM(INDEX('Monthly Load & Cust Input'!$C:$C, 12 + 12*(ROW()-12)) : INDEX('Monthly Load & Cust Input'!$C:$C, 23 + 12*(ROW()-12))) -> 113129885.2 | E20: 0.4191427571 | F20: =SUM(Forecast!C100:C111) -> 110279022.5 | G20: 46222653.55
B21: =YEAR(INDEX('Monthly Load & Cust Input'!$B:$B, 12 + 12*(ROW()-12))) -> 2025 | C21: =SUM(INDEX('Monthly Load & Cust Input'!$D:$D, 12 + 12*(ROW()-12)) : INDEX('Monthly Load & Cust Input'!$D:$D, 23 + 12*(ROW()-12))) -> 49187731.18 | D21: =SUM(INDEX('Monthly Load & Cust Input'!$C:$C, 12 + 12*(ROW()-12)) : INDEX('Monthly Load & Cust Input'!$C:$C, 23 + 12*(ROW()-12))) -> 119186821 | E21: 0.4126943799 | F21: =SUM(Forecast!C112:C123) -> 118663907.6 | G21: 48971927.76
B23: =Controls!C8 -> 2026 | D23: (10 Yr Avg) | E23: =AVERAGE(E21:E22) -> 0.4126943799 | F23: =SUM(Forecast!C124:C135) -> 118650752.9 | G23: =F23*E23 -> 48966498.91
B24: =Controls!C9 -> 2027 | D24: (10 Yr Avg) | E24: =AVERAGE(E12:E22) -> 0.4182647645 | F24: =SUM(Forecast!C136:C147) -> 119642007.6 | G24: 50042036.12
B27: =Controls!B16 -> General Service < 50 kW
B28: Year | C28: Actual kWh | D28: Total Wholesale | E28: Ratio% | F28: Predicted Wholesale | G28: Weather Normal
B29: =B12 -> 2016 | C29: =SUM(INDEX('Monthly Load & Cust Input'!$F:$F, 12 + 12*(ROW()-29)) : INDEX('Monthly Load & Cust Input'!$F:$F, 23 + 12*(ROW()-29))) -> 21726966 | D29: =D12 -> 109654087 | E29: =C29/D29 -> 0.1981409594 | F29: =F12 -> 109161809.1 | G29: =F29*E29 -> 21629425.59
B30: 2017 | C30: =SUM(INDEX('Monthly Load & Cust Input'!$F:$F, 12 + 12*(ROW()-29)) : INDEX('Monthly Load & Cust Input'!$F:$F, 23 + 12*(ROW()-29))) -> 21268954 | D30: 107118589 | E30: =C30/D30 -> 0.1985552106 | F30: 107647028.3 | G30: 21373878.37
B31: 2018 | C31: =SUM(INDEX('Monthly Load & Cust Input'!$F:$F, 12 + 12*(ROW()-29)) : INDEX('Monthly Load & Cust Input'!$F:$F, 23 + 12*(ROW()-29))) -> 21662128 | D31: 110214244 | E31: =C31/D31 -> 0.1965456298 | F31: 111379520.6 | G31: 21891158.02
B32: 2019 | C32: =SUM(INDEX('Monthly Load & Cust Input'!$F:$F, 12 + 12*(ROW()-29)) : INDEX('Monthly Load & Cust Input'!$F:$F, 23 + 12*(ROW()-29))) -> 21303230 | D32: 108677810 | E32: =C32/D32 -> 0.1960218926 | F32: 110088378.3 | G32: 21579732.26
B33: 2020 | C33: =SUM(INDEX('Monthly Load & Cust Input'!$F:$F, 12 + 12*(ROW()-29)) : INDEX('Monthly Load & Cust Input'!$F:$F, 23 + 12*(ROW()-29))) -> 20017067 | D33: 108412541 | E33: 0.1846379286 | F33: 109179816.7 | G33: 20158735.19
B34: 2021 | C34: =SUM(INDEX('Monthly Load & Cust Input'!$F:$F, 12 + 12*(ROW()-29)) : INDEX('Monthly Load & Cust Input'!$F:$F, 23 + 12*(ROW()-29))) -> 19174594 | D34: 109194031.7 | E34: 0.1756011175 | F34: 108466563.8 | G34: 19046849.81
B35: 2022 | C35: =SUM(INDEX('Monthly Load & Cust Input'!$F:$F, 12 + 12*(ROW()-29)) : INDEX('Monthly Load & Cust Input'!$F:$F, 23 + 12*(ROW()-29))) -> 20125754 | D35: 113489389.4 | E35: 0.1773359969 | F35: 112046959 | G35: 19869959.16
B36: 2023 | C36: =SUM(INDEX('Monthly Load & Cust Input'!$F:$F, 12 + 12*(ROW()-29)) : INDEX('Monthly Load & Cust Input'!$F:$F, 23 + 12*(ROW()-29))) -> 21318646 | D36: 111194878.8 | E36: 0.1917232721 | F36: 113359271.2 | G36: 21733610.4
B37: 2024 | C37: =SUM(INDEX('Monthly Load & Cust Input'!$F:$F, 12 + 12*(ROW()-29)) : INDEX('Monthly Load & Cust Input'!$F:$F, 23 + 12*(ROW()-29))) -> 21897687 | D37: 113129885.2 | E37: 0.193562355 | F37: 110279022.5 | G37: 21345867.3
B38: 2025 | C38: =SUM(INDEX('Monthly Load & Cust Input'!$F:$F, 12 + 12*(ROW()-29)) : INDEX('Monthly Load & Cust Input'!$F:$F, 23 + 12*(ROW()-29))) -> 21939982 | D38: 119186821 | E38: 0.184080604 | F38: 118663907.6 | G38: 21843723.79
B40: 2026 | D40: (10 Yr Avg) | E40: =AVERAGE(E29:E39) -> 0.1896204966 | F40: 118650752.9 | G40: 22498614.7
B41: 2027 | D41: (10 Yr Avg) | E41: =AVERAGE(E29:E39) -> 0.1896204966 | F41: 119642007.6 | G41: 22686576.89
B44: =Controls!B17 -> General Service > 50 to 4999 kW
B45: Year | C45: Actual kWh | D45: Total Wholesale | E45: Ratio% | F45: Predicted Wholesale | G45: Weather Normal
B46: =B12 -> 2016 | C46: =SUM(INDEX('Monthly Load & Cust Input'!$H:$H, 12 + 12*(ROW()-46)) : INDEX('Monthly Load & Cust Input'!$H:$H, 23 + 12*(ROW()-46))) -> 42377951 | D46: =D29 -> 109654087 | E46: =C46/D46 -> 0.3864694163 | F46: =F29 -> 109161809.1 | G46: =F46*E46 -> 42187700.65
B47: 2017 | C47: =SUM(INDEX('Monthly Load & Cust Input'!$H:$H, 12 + 12*(ROW()-46)) : INDEX('Monthly Load & Cust Input'!$H:$H, 23 + 12*(ROW()-46))) -> 41229870 | D47: 107118589 | E47: =C47/D47 -> 0.3848993007 | F47: 107647028.3 | G47: =F47*E47 -> 41433265.91
B48: 2018 | C48: =SUM(INDEX('Monthly Load & Cust Input'!$H:$H, 12 + 12*(ROW()-46)) : INDEX('Monthly Load & Cust Input'!$H:$H, 23 + 12*(ROW()-46))) -> 40354309 | D48: 110214244 | E48: =C48/D48 -> 0.3661442254 | F48: 111379520.6 | G48: =F48*E48 -> 40780968.29
B49: 2019 | C49: =SUM(INDEX('Monthly Load & Cust Input'!$H:$H, 12 + 12*(ROW()-46)) : INDEX('Monthly Load & Cust Input'!$H:$H, 23 + 12*(ROW()-46))) -> 39929663 | D49: 108677810 | E49: =C49/D49 -> 0.3674132097 | F49: 110088378.3 | G49: =F49*E49 -> 40447924.42
B50: 2020 | C50: =SUM(INDEX('Monthly Load & Cust Input'!$H:$H, 12 + 12*(ROW()-46)) : INDEX('Monthly Load & Cust Input'!$H:$H, 23 + 12*(ROW()-46))) -> 39076317 | D50: 108412541 | E50: 0.3604409291 | F50: 109179816.7 | G50: 39352874.56
B51: 2021 | C51: =SUM(INDEX('Monthly Load & Cust Input'!$H:$H, 12 + 12*(ROW()-46)) : INDEX('Monthly Load & Cust Input'!$H:$H, 23 + 12*(ROW()-46))) -> 40874963 | D51: 109194031.7 | E51: 0.3743333069 | F51: 108466563.8 | G51: 40602647.5
B52: 2022 | C52: =SUM(INDEX('Monthly Load & Cust Input'!$H:$H, 12 + 12*(ROW()-46)) : INDEX('Monthly Load & Cust Input'!$H:$H, 23 + 12*(ROW()-46))) -> 43424310 | D52: 113489389.4 | E52: 0.3826288099 | F52: 112046959 | G52: 42872394.57
B53: 2023 | C53: =SUM(INDEX('Monthly Load & Cust Input'!$H:$H, 12 + 12*(ROW()-46)) : INDEX('Monthly Load & Cust Input'!$H:$H, 23 + 12*(ROW()-46))) -> 41433788 | D53: 111194878.8 | E53: 0.3726231681 | F53: 113359271.2 | G53: 42240290.77
B54: 2024 | C54: =SUM(INDEX('Monthly Load & Cust Input'!$H:$H, 12 + 12*(ROW()-46)) : INDEX('Monthly Load & Cust Input'!$H:$H, 23 + 12*(ROW()-46))) -> 41771128 | D54: 113129885.2 | E54: 0.3692315954 | F54: 110279022.5 | G54: 40718499.42
B55: 2025 | C55: =SUM(INDEX('Monthly Load & Cust Input'!$H:$H, 12 + 12*(ROW()-46)) : INDEX('Monthly Load & Cust Input'!$H:$H, 23 + 12*(ROW()-46))) -> 43717520.24 | D55: 119186821 | E55: 0.3667982741 | F55: 118663907.6 | G55: =F55*E55 -> 43525716.51
B57: 2026 | D57: (10 Yr Avg) | E57: =AVERAGE(E46:E56) -> 0.3730982236 | F57: =F40 -> 118650752.9 | G57: =F57*E57 -> 44268385.15
B58: 2027 | D58: (10 Yr Avg) | E58: =AVERAGE(E46:E56) -> 0.3730982236 | F58: 119642007.6 | G58: =F58*E58 -> 44638220.49
B61: =Controls!B18 -> Unmetered Scattered Load
B62: Year | C62: Actual kWh | D62: Total Wholesale | E62: Ratio% | F62: Predicted Wholesale | G62: Weather Normal
B63: =B29 -> 2016 | C63: =SUM(INDEX('Monthly Load & Cust Input'!$K:$K, 12 + 12*(ROW()-63)) : INDEX('Monthly Load & Cust Input'!$K:$K, 23 + 12*(ROW()-63))) -> 585713 | D63: =D46 -> 109654087 | E63: =C63/D63 -> 0.005341460734 | F63: =F46 -> 109161809.1 | G63: =F63*E63 -> 583083.517
B64: 2017 | C64: =SUM(INDEX('Monthly Load & Cust Input'!$K:$K, 12 + 12*(ROW()-63)) : INDEX('Monthly Load & Cust Input'!$K:$K, 23 + 12*(ROW()-63))) -> 584238 | D64: 107118589 | E64: =C64/D64 -> 0.005454123373 | F64: 107647028.3 | G64: =F64*E64 -> 587120.1731
B65: 2018 | C65: =SUM(INDEX('Monthly Load & Cust Input'!$K:$K, 12 + 12*(ROW()-63)) : INDEX('Monthly Load & Cust Input'!$K:$K, 23 + 12*(ROW()-63))) -> 584377 | D65: 110214244 | E65: =C65/D65 -> 0.005302191249 | F65: 111379520.6 | G65: =F65*E65 -> 590555.5193
B66: 2019 | C66: =SUM(INDEX('Monthly Load & Cust Input'!$K:$K, 12 + 12*(ROW()-63)) : INDEX('Monthly Load & Cust Input'!$K:$K, 23 + 12*(ROW()-63))) -> 582285 | D66: 108677810 | E66: =C66/D66 -> 0.005357901489 | F66: 110088378.3 | G66: =F66*E66 -> 589842.6859
B67: 2020 | C67: =SUM(INDEX('Monthly Load & Cust Input'!$K:$K, 12 + 12*(ROW()-63)) : INDEX('Monthly Load & Cust Input'!$K:$K, 23 + 12*(ROW()-63))) -> 572924 | D67: 108412541 | E67: 0.00528466536 | F67: 109179816.7 | G67: 576978.7952
B68: 2021 | C68: =SUM(INDEX('Monthly Load & Cust Input'!$K:$K, 12 + 12*(ROW()-63)) : INDEX('Monthly Load & Cust Input'!$K:$K, 23 + 12*(ROW()-63))) -> 587169 | D68: 109194031.7 | E68: 0.005377299388 | F68: 108466563.8 | G68: 583257.1869
B69: 2022 | C69: =SUM(INDEX('Monthly Load & Cust Input'!$K:$K, 12 + 12*(ROW()-63)) : INDEX('Monthly Load & Cust Input'!$K:$K, 23 + 12*(ROW()-63))) -> 581138 | D69: 113489389.4 | E69: 0.005120637296 | F69: 112046959 | G69: 573751.837
B70: 2023 | C70: =SUM(INDEX('Monthly Load & Cust Input'!$K:$K, 12 + 12*(ROW()-63)) : INDEX('Monthly Load & Cust Input'!$K:$K, 23 + 12*(ROW()-63))) -> 591853 | D70: 111194878.8 | E70: 0.005322664196 | F70: 113359271.2 | G70: 603373.3342
B71: 2024 | C71: =SUM(INDEX('Monthly Load & Cust Input'!$K:$K, 12 + 12*(ROW()-63)) : INDEX('Monthly Load & Cust Input'!$K:$K, 23 + 12*(ROW()-63))) -> 621551 | D71: 113129885.2 | E71: 0.005494136221 | F71: 110279022.5 | G71: 605887.972
B72: 2025 | C72: =SUM(INDEX('Monthly Load & Cust Input'!$K:$K, 12 + 12*(ROW()-63)) : INDEX('Monthly Load & Cust Input'!$K:$K, 23 + 12*(ROW()-63))) -> 630754.1169 | D72: 119186821 | E72: 0.005292146494 | F72: 118663907.6 | G72: =F72*E72 -> 627986.7827
B74: 2026 | D74: (10 Yr Avg) | E74: =AVERAGE(E63:E73) -> 0.00533472258 | F74: 118650752.9 | G74: =F74*E74 -> 632968.8509
B75: 2027 | D75: (10 Yr Avg) | E75: =AVERAGE(E63:E73) -> 0.00533472258 | F75: 119642007.6 | G75: =F75*E75 -> 638256.9192

Sheet Non-Weather Sensitive
B8: NON WEATHER SENSITIVE
B10: =Controls!B17 -> General Service > 50 to 4999 kW
B11: Year | C11: Demand (kW) | D11: Consumption (kWh) | E11: Ratio% | F11: Cust/Conn | G11: Demand/Cust
B12: =YEAR(INDEX('Monthly Load & Cust Input'!$B:$B, 12 + 12*(ROW()-12))) -> 2016 | C12: =SUM(INDEX('Monthly Load & Cust Input'!$I:$I, 12 + 12*(ROW()-12)) : INDEX('Monthly Load & Cust Input'!$I:$I, 23 + 12*(ROW()-12))) -> 113671.0784 | D12: =SUM(INDEX('Monthly Load & Cust Input'!$H:$H, 12 + 12*(ROW()-12)) : INDEX('Monthly Load & Cust Input'!$H:$H, 23 + 12*(ROW()-12))) -> 42377951 | E12: =C12/D12 -> 0.002682316528 | F12: ='Monthly Load & Cust Input'!G196 -> 64 | G12: =C12/F12 -> 1776.1106
B13: =YEAR(INDEX('Monthly Load & Cust Input'!$B:$B, 12 + 12*(ROW()-12))) -> 2017 | C13: =SUM(INDEX('Monthly Load & Cust Input'!$I:$I, 12 + 12*(ROW()-12)) : INDEX('Monthly Load & Cust Input'!$I:$I, 23 + 12*(ROW()-12))) -> 110383.0606 | D13: =SUM(INDEX('Monthly Load & Cust Input'!$H:$H, 12 + 12*(ROW()-12)) : INDEX('Monthly Load & Cust Input'!$H:$H, 23 + 12*(ROW()-12))) -> 41229870 | E13: =C13/D13 -> 0.002677259486 | F13: ='Monthly Load & Cust Input'!G197 -> 63 | G13: =C13/F13 -> 1752.112073
B14: =YEAR(INDEX('Monthly Load & Cust Input'!$B:$B, 12 + 12*(ROW()-12))) -> 2018 | C14: =SUM(INDEX('Monthly Load & Cust Input'!$I:$I, 12 + 12*(ROW()-12)) : INDEX('Monthly Load & Cust Input'!$I:$I, 23 + 12*(ROW()-12))) -> 110809.2285 | D14: =SUM(INDEX('Monthly Load & Cust Input'!$H:$H, 12 + 12*(ROW()-12)) : INDEX('Monthly Load & Cust Input'!$H:$H, 23 + 12*(ROW()-12))) -> 40354309 | E14: 0.002745908213 | F14: ='Monthly Load & Cust Input'!G198 -> 65 | G14: 1704.757362
B15: =YEAR(INDEX('Monthly Load & Cust Input'!$B:$B, 12 + 12*(ROW()-12))) -> 2019 | C15: =SUM(INDEX('Monthly Load & Cust Input'!$I:$I, 12 + 12*(ROW()-12)) : INDEX('Monthly Load & Cust Input'!$I:$I, 23 + 12*(ROW()-12))) -> 109453.2472 | D15: =SUM(INDEX('Monthly Load & Cust Input'!$H:$H, 12 + 12*(ROW()-12)) : INDEX('Monthly Load & Cust Input'!$H:$H, 23 + 12*(ROW()-12))) -> 39929663 | E15: 0.00274115129 | F15: ='Monthly Load & Cust Input'!G199 -> 62 | G15: 1765.374956
B16: =YEAR(INDEX('Monthly Load & Cust Input'!$B:$B, 12 + 12*(ROW()-12))) -> 2020 | C16: =SUM(INDEX('Monthly Load & Cust Input'!$I:$I, 12 + 12*(ROW()-12)) : INDEX('Monthly Load & Cust Input'!$I:$I, 23 + 12*(ROW()-12))) -> 108558.8609 | D16: =SUM(INDEX('Monthly Load & Cust Input'!$H:$H, 12 + 12*(ROW()-12)) : INDEX('Monthly Load & Cust Input'!$H:$H, 23 + 12*(ROW()-12))) -> 39076317 | E16: 0.002778124175 | F16: ='Monthly Load & Cust Input'!G200 -> 61 | G16: 1779.653458
B17: =YEAR(INDEX('Monthly Load & Cust Input'!$B:$B, 12 + 12*(ROW()-12))) -> 2021 | C17: =SUM(INDEX('Monthly Load & Cust Input'!$I:$I, 12 + 12*(ROW()-12)) : INDEX('Monthly Load & Cust Input'!$I:$I, 23 + 12*(ROW()-12))) -> 110610.24 | D17: =SUM(INDEX('Monthly Load & Cust Input'!$H:$H, 12 + 12*(ROW()-12)) : INDEX('Monthly Load & Cust Input'!$H:$H, 23 + 12*(ROW()-12))) -> 40874963 | E17: 0.002706063368 | F17: ='Monthly Load & Cust Input'!G201 -> 61 | G17: 1813.282624
B18: =YEAR(INDEX('Monthly Load & Cust Input'!$B:$B, 12 + 12*(ROW()-12))) -> 2022 | C18: =SUM(INDEX('Monthly Load & Cust Input'!$I:$I, 12 + 12*(ROW()-12)) : INDEX('Monthly Load & Cust Input'!$I:$I, 23 + 12*(ROW()-12))) -> 116000.0891 | D18: =SUM(INDEX('Monthly Load & Cust Input'!$H:$H, 12 + 12*(ROW()-12)) : INDEX('Monthly Load & Cust Input'!$H:$H, 23 + 12*(ROW()-12))) -> 43424310 | E18: 0.002671316807 | F18: ='Monthly Load & Cust Input'!G202 -> 59 | G18: 1966.103205
B19: =YEAR(INDEX('Monthly Load & Cust Input'!$B:$B, 12 + 12*(ROW()-12))) -> 2023 | C19: =SUM(INDEX('Monthly Load & Cust Input'!$I:$I, 12 + 12*(ROW()-12)) : INDEX('Monthly Load & Cust Input'!$I:$I, 23 + 12*(ROW()-12))) -> 112620.8528 | D19: =SUM(INDEX('Monthly Load & Cust Input'!$H:$H, 12 + 12*(ROW()-12)) : INDEX('Monthly Load & Cust Input'!$H:$H, 23 + 12*(ROW()-12))) -> 41433788 | E19: 0.002718092123 | F19: ='Monthly Load & Cust Input'!G203 -> 61 | G19: 1846.243488
B20: =YEAR(INDEX('Monthly Load & Cust Input'!$B:$B, 12 + 12*(ROW()-12))) -> 2024 | C20: =SUM(INDEX('Monthly Load & Cust Input'!$I:$I, 12 + 12*(ROW()-12)) : INDEX('Monthly Load & Cust Input'!$I:$I, 23 + 12*(ROW()-12))) -> 119072.4839 | D20: =SUM(INDEX('Monthly Load & Cust Input'!$H:$H, 12 + 12*(ROW()-12)) : INDEX('Monthly Load & Cust Input'!$H:$H, 23 + 12*(ROW()-12))) -> 41771128 | E20: 0.002850592972 | F20: ='Monthly Load & Cust Input'!G204 -> 62.08333333 | G20: 1917.946049
B21: =YEAR(INDEX('Monthly Load & Cust Input'!$B:$B, 12 + 12*(ROW()-12))) -> 2025 | C21: =SUM(INDEX('Monthly Load & Cust Input'!$I:$I, 12 + 12*(ROW()-12)) : INDEX('Monthly Load & Cust Input'!$I:$I, 23 + 12*(ROW()-12))) -> 119132.0201 | D21: =SUM(INDEX('Monthly Load & Cust Input'!$H:$H, 12 + 12*(ROW()-12)) : INDEX('Monthly Load & Cust Input'!$H:$H, 23 + 12*(ROW()-12))) -> 43717520.24 | E21: 0.002725040658 | F21: ='Monthly Load & Cust Input'!G205 -> 65.58333333 | G21: 1816.498401
B23: =Controls!C8 -> 2026 | C23: =D23*E23 -> 120834.3892 | D23: ='Weather Sensitive Forecast'!G57 -> 44268385.15 | E23: =AVERAGE(E12:E22) -> 0.002729586562 | F23: ='Monthly Load & Cust Input'!G209 -> 65.7616597 | G23: =AVERAGE(G12:G22) -> 1813.808222
B24: =Controls!C9 -> 2027 | C24: =D24*E24 -> 121843.8868 | D24: ='Weather Sensitive Forecast'!G58 -> 44638220.49 | E24: =AVERAGE(E12:E23) -> 0.002729586562 | F24: ='Monthly Load & Cust Input'!G210 -> 65.94047096 | G24: =AVERAGE(G13:G23) -> 1817.577984
B27: =Controls!B19 -> Sentinel
B28: Year | C28: Demand (kW) | D28: Consumption (kWh) | E28: Ratio% | F28: =F11 -> Cust/Conn | G28: kW/cust
B29: =B12 -> 2016 | C29: =SUM(INDEX('Monthly Load & Cust Input'!$O:$O, 12 + 12*(ROW()-29)) : INDEX('Monthly Load & Cust Input'!$O:$O, 23 + 12*(ROW()-29))) -> 297.2773401 | D29: =SUM(INDEX('Monthly Load & Cust Input'!$N:$N, 12 + 12*(ROW()-29)) : INDEX('Monthly Load & Cust Input'!$N:$N, 23 + 12*(ROW()-27))) -> 325622 | E29: =C29/D29 -> 0.0009129522577 | F29: ='Monthly Load & Cust Input'!K196 -> 73 | G29: =C29/F29 -> 4.072292329
B30: 2017 | C30: =SUM(INDEX('Monthly Load & Cust Input'!$O:$O, 12 + 12*(ROW()-29)) : INDEX('Monthly Load & Cust Input'!$O:$O, 23 + 12*(ROW()-29))) -> 272.7362021 | D30: =SUM(INDEX('Monthly Load & Cust Input'!$N:$N, 12 + 12*(ROW()-29)) : INDEX('Monthly Load & Cust Input'!$N:$N, 23 + 12*(ROW()-27))) -> 317786 | E30: =C30/D30 -> 0.0008582385696 | F30: ='Monthly Load & Cust Input'!K197 -> 71 | G30: =C30/F30 -> 3.841354959
B31: 2018 | C31: =SUM(INDEX('Monthly Load & Cust Input'!$O:$O, 12 + 12*(ROW()-29)) : INDEX('Monthly Load & Cust Input'!$O:$O, 23 + 12*(ROW()-29))) -> 265.958697 | D31: =SUM(INDEX('Monthly Load & Cust Input'!$N:$N, 12 + 12*(ROW()-29)) : INDEX('Monthly Load & Cust Input'!$N:$N, 23 + 12*(ROW()-27))) -> 315713 | E31: =C31/D31 -> 0.0008424065432 | F31: ='Monthly Load & Cust Input'!K198 -> 72 | G31: 3.693870791
B32: 2019 | C32: =SUM(INDEX('Monthly Load & Cust Input'!$O:$O, 12 + 12*(ROW()-29)) : INDEX('Monthly Load & Cust Input'!$O:$O, 23 + 12*(ROW()-29))) -> 271.2299411 | D32: =SUM(INDEX('Monthly Load & Cust Input'!$N:$N, 12 + 12*(ROW()-29)) : INDEX('Monthly Load & Cust Input'!$N:$N, 23 + 12*(ROW()-27))) -> 306580 | E32: =C32/D32 -> 0.0008846954826 | F32: ='Monthly Load & Cust Input'!K199 -> 74 | G32: 3.665269474
B33: 2020 | C33: =SUM(INDEX('Monthly Load & Cust Input'!$O:$O, 12 + 12*(ROW()-29)) : INDEX('Monthly Load & Cust Input'!$O:$O, 23 + 12*(ROW()-29))) -> 267.5504924 | D33: =SUM(INDEX('Monthly Load & Cust Input'!$N:$N, 12 + 12*(ROW()-29)) : INDEX('Monthly Load & Cust Input'!$N:$N, 23 + 12*(ROW()-27))) -> 295437 | E33: 0.000905609292 | F33: ='Monthly Load & Cust Input'!K200 -> 73 | G33: 3.665075238
B34: 2021 | C34: =SUM(INDEX('Monthly Load & Cust Input'!$O:$O, 12 + 12*(ROW()-29)) : INDEX('Monthly Load & Cust Input'!$O:$O, 23 + 12*(ROW()-29))) -> 245.5033568 | D34: =SUM(INDEX('Monthly Load & Cust Input'!$N:$N, 12 + 12*(ROW()-29)) : INDEX('Monthly Load & Cust Input'!$N:$N, 23 + 12*(ROW()-27))) -> 285298 | E34: 0.00086051552 | F34: ='Monthly Load & Cust Input'!K201 -> 70 | G34: 3.507190812
B35: 2022 | C35: =SUM(INDEX('Monthly Load & Cust Input'!$O:$O, 12 + 12*(ROW()-29)) : INDEX('Monthly Load & Cust Input'!$O:$O, 23 + 12*(ROW()-29))) -> 242.3112619 | D35: =SUM(INDEX('Monthly Load & Cust Input'!$N:$N, 12 + 12*(ROW()-29)) : INDEX('Monthly Load & Cust Input'!$N:$N, 23 + 12*(ROW()-27))) -> 283185 | E35: 0.0008556641838 | F35: ='Monthly Load & Cust Input'!K202 -> 70 | G35: 3.461589456
B36: 2023 | C36: =SUM(INDEX('Monthly Load & Cust Input'!$O:$O, 12 + 12*(ROW()-29)) : INDEX('Monthly Load & Cust Input'!$O:$O, 23 + 12*(ROW()-29))) -> 241.1719469 | D36: =SUM(INDEX('Monthly Load & Cust Input'!$N:$N, 12 + 12*(ROW()-29)) : INDEX('Monthly Load & Cust Input'!$N:$N, 23 + 12*(ROW()-27))) -> 278615.1185 | E36: 0.0008656096921 | F36: ='Monthly Load & Cust Input'!K203 -> 70 | G36: 3.445313527
B37: 2024 | C37: =SUM(INDEX('Monthly Load & Cust Input'!$O:$O, 12 + 12*(ROW()-29)) : INDEX('Monthly Load & Cust Input'!$O:$O, 23 + 12*(ROW()-29))) -> 240.2413618 | D37: =SUM(INDEX('Monthly Load & Cust Input'!$N:$N, 12 + 12*(ROW()-29)) : INDEX('Monthly Load & Cust Input'!$N:$N, 23 + 12*(ROW()-27))) -> 184171.1185 | E37: 0.001304446451 | F37: ='Monthly Load & Cust Input'!K204 -> 70 | G37: 3.432019455
B38: 2025 | C38: =SUM(INDEX('Monthly Load & Cust Input'!$O:$O, 12 + 12*(ROW()-29)) : INDEX('Monthly Load & Cust Input'!$O:$O, 23 + 12*(ROW()-29))) -> 252 | D38: =SUM(INDEX('Monthly Load & Cust Input'!$N:$N, 12 + 12*(ROW()-29)) : INDEX('Monthly Load & Cust Input'!$N:$N, 23 + 12*(ROW()-27))) -> 90421.11849 | E38: 0.002786959553 | F38: ='Monthly Load & Cust Input'!K205 -> 70 | G38: 3.6
B40: 2026 | C40: =D40*E40 -> 174.6695654 | D40: =TREND($D$29:$D$38, $B$29:$B$38, B$40) -> 157685.3185 | E40: =AVERAGE(E29:E39) -> 0.001107709754 | F40: ='Monthly Load & Cust Input'!K209 -> 69.67437153 | G40: =AVERAGE(G29:G39) -> 3.638397604
B41: 2027 | C41: =D41*E41 -> 152.3950293 | D41: =TREND($D$29:$D$38, $B$29:$B$38, B$41) -> 137576.679 | E41: =AVERAGE(E29:E39) -> 0.001107709754 | F41: ='Monthly Load & Cust Input'!K210 -> 69.35025782 | G41: =AVERAGE(G30:G40) -> 3.595008132
B44: =Controls!B20 -> StreetLights
B45: Year | C45: Demand (kW) | D45: Consumption (kWh) | E45: Ratio% | F45: =F28 -> Cust/Conn
B46: =B29 -> 2016 | C46: =SUM(INDEX('Monthly Load & Cust Input'!$R:$R, 12 + 12*(ROW()-46)) : INDEX('Monthly Load & Cust Input'!$R:$R, 23 + 12*(ROW()-46))) -> 2037.944446 | D46: =SUM(INDEX('Monthly Load & Cust Input'!$Q:$Q, 12 + 12*(ROW()-46)) : INDEX('Monthly Load & Cust Input'!$Q:$Q, 23 + 12*(ROW()-46))) -> 831237 | E46: =C46/D46 -> 0.002451700834 | F46: =ROUND('Monthly Load & Cust Input'!M196,0) -> 1711 | G46: =C46/F46 -> 1.191083837
B47: =B30 -> 2017 | C47: =SUM(INDEX('Monthly Load & Cust Input'!$R:$R, 12 + 12*(ROW()-46)) : INDEX('Monthly Load & Cust Input'!$R:$R, 23 + 12*(ROW()-46))) -> 1921.999685 | D47: =SUM(INDEX('Monthly Load & Cust Input'!$Q:$Q, 12 + 12*(ROW()-46)) : INDEX('Monthly Load & Cust Input'!$Q:$Q, 23 + 12*(ROW()-46))) -> 771054 | E47: =C47/D47 -> 0.002492691413 | F47: =ROUND('Monthly Load & Cust Input'!M197,0) -> 1711 | G47: =C47/F47 -> 1.123319512
B48: 2018 | C48: =SUM(INDEX('Monthly Load & Cust Input'!$R:$R, 12 + 12*(ROW()-46)) : INDEX('Monthly Load & Cust Input'!$R:$R, 23 + 12*(ROW()-46))) -> 1909.977457 | D48: =SUM(INDEX('Monthly Load & Cust Input'!$Q:$Q, 12 + 12*(ROW()-46)) : INDEX('Monthly Load & Cust Input'!$Q:$Q, 23 + 12*(ROW()-46))) -> 748634 | E48: =C48/D48 -> 0.002551283347 | F48: =ROUND('Monthly Load & Cust Input'!M198,0) -> 1711 | G48: 1.116293078
B49: 2019 | C49: =SUM(INDEX('Monthly Load & Cust Input'!$R:$R, 12 + 12*(ROW()-46)) : INDEX('Monthly Load & Cust Input'!$R:$R, 23 + 12*(ROW()-46))) -> 1881.657716 | D49: =SUM(INDEX('Monthly Load & Cust Input'!$Q:$Q, 12 + 12*(ROW()-46)) : INDEX('Monthly Load & Cust Input'!$Q:$Q, 23 + 12*(ROW()-46))) -> 748634 | E49: =C49/D49 -> 0.002513454794 | F49: =ROUND('Monthly Load & Cust Input'!M199,0) -> 1711 | G49: 1.099741506
B50: 2020 | C50: =SUM(INDEX('Monthly Load & Cust Input'!$R:$R, 12 + 12*(ROW()-46)) : INDEX('Monthly Load & Cust Input'!$R:$R, 23 + 12*(ROW()-46))) -> 1734.602449 | D50: =SUM(INDEX('Monthly Load & Cust Input'!$Q:$Q, 12 + 12*(ROW()-46)) : INDEX('Monthly Load & Cust Input'!$Q:$Q, 23 + 12*(ROW()-46))) -> 697551 | E50: 0.002486703408 | F50: =ROUND('Monthly Load & Cust Input'!M200,0) -> 1712 | G50: 1.013202365
B51: 2021 | C51: =SUM(INDEX('Monthly Load & Cust Input'!$R:$R, 12 + 12*(ROW()-46)) : INDEX('Monthly Load & Cust Input'!$R:$R, 23 + 12*(ROW()-46))) -> 1742.475045 | D51: =SUM(INDEX('Monthly Load & Cust Input'!$Q:$Q, 12 + 12*(ROW()-46)) : INDEX('Monthly Load & Cust Input'!$Q:$Q, 23 + 12*(ROW()-46))) -> 696298 | E51: 0.002502484633 | F51: =ROUND('Monthly Load & Cust Input'!M201,0) -> 1712 | G51: 1.017800844
B52: 2022 | C52: =SUM(INDEX('Monthly Load & Cust Input'!$R:$R, 12 + 12*(ROW()-46)) : INDEX('Monthly Load & Cust Input'!$R:$R, 23 + 12*(ROW()-46))) -> 1736.161236 | D52: =SUM(INDEX('Monthly Load & Cust Input'!$Q:$Q, 12 + 12*(ROW()-46)) : INDEX('Monthly Load & Cust Input'!$Q:$Q, 23 + 12*(ROW()-46))) -> 696019 | E52: 0.00249441644 | F52: =ROUND('Monthly Load & Cust Input'!M202,0) -> 1712 | G52: 1.014112871
B53: 2023 | C53: =SUM(INDEX('Monthly Load & Cust Input'!$R:$R, 12 + 12*(ROW()-46)) : INDEX('Monthly Load & Cust Input'!$R:$R, 23 + 12*(ROW()-46))) -> 1741.930447 | D53: =SUM(INDEX('Monthly Load & Cust Input'!$Q:$Q, 12 + 12*(ROW()-46)) : INDEX('Monthly Load & Cust Input'!$Q:$Q, 23 + 12*(ROW()-46))) -> 698496 | E53: 0.00249383024 | F53: =ROUND('Monthly Load & Cust Input'!M203,0) -> 1713 | G53: 1.016888761
B54: 2024 | C54: =SUM(INDEX('Monthly Load & Cust Input'!$R:$R, 12 + 12*(ROW()-46)) : INDEX('Monthly Load & Cust Input'!$R:$R, 23 + 12*(ROW()-46))) -> 1743.432781 | D54: =SUM(INDEX('Monthly Load & Cust Input'!$Q:$Q, 12 + 12*(ROW()-46)) : INDEX('Monthly Load & Cust Input'!$Q:$Q, 23 + 12*(ROW()-46))) -> 700230 | E54: 0.002489800182 | F54: =ROUND('Monthly Load & Cust Input'!M204,0) -> 1713 | G54: 1.01776578
B55: 2025 | C55: =SUM(INDEX('Monthly Load & Cust Input'!$R:$R, 12 + 12*(ROW()-46)) : INDEX('Monthly Load & Cust Input'!$R:$R, 23 + 12*(ROW()-46))) -> 1752 | D55: =SUM(INDEX('Monthly Load & Cust Input'!$Q:$Q, 12 + 12*(ROW()-46)) : INDEX('Monthly Load & Cust Input'!$Q:$Q, 23 + 12*(ROW()-46))) -> 702628.8468 | E55: =C55/D55 -> 0.002493492842 | F55: =ROUND('Monthly Load & Cust Input'!M205,0) -> 1713 | G55: 1.022767075
B57: 2026 | C57: =D57*E57 -> 1648.786047 | D57: =TREND($D$46:$D$55, $B$46:$B$55, B$57) -> 660310.5387 | E57: =AVERAGE(E46:E55) -> 0.002496985813 | F57: =ROUND('Monthly Load & Cust Input'!M209,0) -> 1713 | G57: =AVERAGE(G46:G56) -> 1.063297563
B58: =B41 -> 2027 | C58: =D58*E58 -> 1620.825263 | D58: =TREND($D$46:$D$55, $B$46:$B$55, B$58) -> 647807.3304 | E58: =AVERAGE(E47:E56) -> 0.002502017478 | F58: =ROUND('Monthly Load & Cust Input'!M210,0) -> 1713 | G58: =AVERAGE(G47:G57) -> 1.050518936

Sheet Wholesale Analysis2
B8: W H O L E S A L E T O T A L | N8: kWh Purchased VS kWh Adjsuted
B9: Month | C9: ='Monthly Load & Cust Input'!C135 -> 2016 | D9: ='Monthly Load & Cust Input'!D135 -> 2017 | E9: ='Monthly Load & Cust Input'!E135 -> 2018 | F9: ='Monthly Load & Cust Input'!F135 -> 2019 | G9: ='Monthly Load & Cust Input'!G135 -> 2020 | H9: ='Monthly Load & Cust Input'!H135 -> 2021 | I9: ='Monthly Load & Cust Input'!I135 -> 2022 | J9: ='Monthly Load & Cust Input'!J135 -> 2023 | K9: ='Monthly Load & Cust Input'!K135 -> 2024 | L9: ='Monthly Load & Cust Input'!L135 -> 2025 | N9: Year | O9: Wholesale | P9: year over year | Q9: Adjusted | R9: year over year | S9: Wholesale VS Adj.
B10: January | C10: ='Monthly Load & Cust Input'!C136 -> 10989034 | D10: ='Monthly Load & Cust Input'!D136 -> 10464420 | E10: ='Monthly Load & Cust Input'!E136 -> 11412898 | F10: ='Monthly Load & Cust Input'!F136 -> 11356602 | G10: ='Monthly Load & Cust Input'!G136 -> 10475746 | H10: ='Monthly Load & Cust Input'!H136 -> 10499395.99 | I10: ='Monthly Load & Cust Input'!I136 -> 11881999.19 | J10: ='Monthly Load & Cust Input'!J136 -> 10715912.02 | K10: ='Monthly Load & Cust Input'!K136 -> 11069790.16 | L10: ='Monthly Load & Cust Input'!L136 -> 11352460 | N10: ='Weather Sensitive Forecast'!B12 -> 2016 | O10: ='Weather Sensitive Forecast'!D12 -> 109654087 | Q10: ='Weather Sensitive Forecast'!F12 -> 109161809.1 | S10: =Q10-O10 -> -492277.8944
B11: February | C11: ='Monthly Load & Cust Input'!C137 -> 10461168 | D11: ='Monthly Load & Cust Input'!D137 -> 9412266 | E11: ='Monthly Load & Cust Input'!E137 -> 9438920 | F11: ='Monthly Load & Cust Input'!F137 -> 9954781 | G11: ='Monthly Load & Cust Input'!G137 -> 9817627 | H11: ='Monthly Load & Cust Input'!H137 -> 9792629.25 | I11: ='Monthly Load & Cust Input'!I137 -> 10331689.77 | J11: ='Monthly Load & Cust Input'!J137 -> 10011127.38 | K11: ='Monthly Load & Cust Input'!K137 -> 9933264.95 | L11: ='Monthly Load & Cust Input'!L137 -> 10660170 | N11: ='Weather Sensitive Forecast'!B13 -> 2017 | O11: ='Weather Sensitive Forecast'!D13 -> 107118589 | P11: =O11/O10+1 -> 1.976877305 | Q11: ='Weather Sensitive Forecast'!F13 -> 107647028.3 | R11: =Q11/Q10+1 -> 1.986123528 | S11: =Q11-O11 -> 528439.29
B12: March | C12: ='Monthly Load & Cust Input'!C138 -> 9905017 | D12: ='Monthly Load & Cust Input'!D138 -> 10449490 | E12: ='Monthly Load & Cust Input'!E138 -> 9778013 | F12: ='Monthly Load & Cust Input'!F138 -> 10085138 | G12: ='Monthly Load & Cust Input'!G138 -> 9509806 | H12: ='Monthly Load & Cust Input'!H138 -> 9788308.27 | I12: ='Monthly Load & Cust Input'!I138 -> 10474433 | J12: ='Monthly Load & Cust Input'!J138 -> 10175938.96 | K12: ='Monthly Load & Cust Input'!K138 -> 9844333.14 | L12: ='Monthly Load & Cust Input'!L138 -> 10493874 | N12: ='Weather Sensitive Forecast'!B14 -> 2018 | O12: ='Weather Sensitive Forecast'!D14 -> 110214244 | P12: =O12/O11+1 -> 2.028899326 | Q12: ='Weather Sensitive Forecast'!F14 -> 111379520.6 | R12: =Q12/Q11+1 -> 2.034673435 | S12: 1165276.576
B13: April | C13: ='Monthly Load & Cust Input'!C139 -> 8448753 | D13: ='Monthly Load & Cust Input'!D139 -> 8073164 | E13: ='Monthly Load & Cust Input'!E139 -> 8757348 | F13: ='Monthly Load & Cust Input'!F139 -> 8524502 | G13: ='Monthly Load & Cust Input'!G139 -> 8024763 | H13: ='Monthly Load & Cust Input'!H139 -> 7927583.65 | I13: ='Monthly Load & Cust Input'!I139 -> 8660849 | J13: ='Monthly Load & Cust Input'!J139 -> 8467145.31 | K13: ='Monthly Load & Cust Input'!K139 -> 8563614.87 | L13: ='Monthly Load & Cust Input'!L139 -> 8945853 | N13: ='Weather Sensitive Forecast'!B15 -> 2019 | O13: ='Weather Sensitive Forecast'!D15 -> 108677810 | P13: 1.98605957 | Q13: ='Weather Sensitive Forecast'!F15 -> 110088378.3 | R13: 1.988407723 | S13: 1410568.279
B14: May | C14: ='Monthly Load & Cust Input'!C140 -> 7971052 | D14: ='Monthly Load & Cust Input'!D140 -> 7836699 | E14: ='Monthly Load & Cust Input'!E140 -> 7670323 | F14: ='Monthly Load & Cust Input'!F140 -> 7801649 | G14: ='Monthly Load & Cust Input'!G140 -> 7939253 | H14: ='Monthly Load & Cust Input'!H140 -> 8042340 | I14: ='Monthly Load & Cust Input'!I140 -> 8371166.64 | J14: ='Monthly Load & Cust Input'!J140 -> 8117557.22 | K14: ='Monthly Load & Cust Input'!K140 -> 8212442.87 | L14: ='Monthly Load & Cust Input'!L140 -> 8365024 | N14: ='Weather Sensitive Forecast'!B16 -> 2020 | O14: ='Weather Sensitive Forecast'!D16 -> 108412541 | P14: 1.997559125 | Q14: ='Weather Sensitive Forecast'!F16 -> 109179816.7 | R14: 1.99174698 | S14: 767275.6826
B15: June | C15: ='Monthly Load & Cust Input'!C141 -> 8152771 | D15: ='Monthly Load & Cust Input'!D141 -> 7883609 | E15: ='Monthly Load & Cust Input'!E141 -> 7836187 | F15: ='Monthly Load & Cust Input'!F141 -> 7764971 | G15: ='Monthly Load & Cust Input'!G141 -> 8515025 | H15: ='Monthly Load & Cust Input'!H141 -> 8737900 | I15: ='Monthly Load & Cust Input'!I141 -> 8501866.97 | J15: ='Monthly Load & Cust Input'!J141 -> 8611148.56 | K15: ='Monthly Load & Cust Input'!K141 -> 8827125.44 | L15: ='Monthly Load & Cust Input'!L141 -> 9083014 | N15: ='Weather Sensitive Forecast'!B17 -> 2021 | O15: ='Weather Sensitive Forecast'!D17 -> 109194031.7 | P15: 2.00720849 | Q15: ='Weather Sensitive Forecast'!F17 -> 108466563.8 | R15: 1.993467172 | S15: -727467.9845
B16: July | C16: ='Monthly Load & Cust Input'!C142 -> 9080665 | D16: ='Monthly Load & Cust Input'!D142 -> 8447553 | E16: ='Monthly Load & Cust Input'!E142 -> 9698694 | F16: ='Monthly Load & Cust Input'!F142 -> 9557985 | G16: ='Monthly Load & Cust Input'!G142 -> 10333884 | H16: ='Monthly Load & Cust Input'!H142 -> 8943567.38 | I16: ='Monthly Load & Cust Input'!I142 -> 9634858.64 | J16: ='Monthly Load & Cust Input'!J142 -> 9912477.23 | K16: ='Monthly Load & Cust Input'!K142 -> 10244421.66 | L16: ='Monthly Load & Cust Input'!L142 -> 10707430 | N16: ='Weather Sensitive Forecast'!B18 -> 2022 | O16: ='Weather Sensitive Forecast'!D18 -> 113489389.4 | P16: 2.039336927 | Q16: ='Weather Sensitive Forecast'!F18 -> 112046959 | R16: 2.033009207 | S16: -1442430.419
B17: August | C17: ='Monthly Load & Cust Input'!C143 -> 9517733 | D17: ='Monthly Load & Cust Input'!D143 -> 8640906 | E17: ='Monthly Load & Cust Input'!E143 -> 9512830 | F17: ='Monthly Load & Cust Input'!F143 -> 8688391 | G17: ='Monthly Load & Cust Input'!G143 -> 9206403 | H17: ='Monthly Load & Cust Input'!H143 -> 10027303.54 | I17: ='Monthly Load & Cust Input'!I143 -> 9874706.47 | J17: ='Monthly Load & Cust Input'!J143 -> 9166355.57 | K17: ='Monthly Load & Cust Input'!K143 -> 9562430.39 | L17: ='Monthly Load & Cust Input'!L143 -> 9981547 | N17: ='Weather Sensitive Forecast'!B19 -> 2023 | O17: ='Weather Sensitive Forecast'!D19 -> 111194878.8 | P17: 1.979782157 | Q17: ='Weather Sensitive Forecast'!F19 -> 113359271.2 | R17: 2.011712163 | S17: 2164392.453
B18: September | C18: ='Monthly Load & Cust Input'!C144 -> 8054076 | D18: ='Monthly Load & Cust Input'!D144 -> 8076439 | E18: ='Monthly Load & Cust Input'!E144 -> 8248876 | F18: ='Monthly Load & Cust Input'!F144 -> 7563722 | G18: ='Monthly Load & Cust Input'!G144 -> 7627587 | H18: ='Monthly Load & Cust Input'!H144 -> 8054741.79 | I18: ='Monthly Load & Cust Input'!I144 -> 8176359.46 | J18: ='Monthly Load & Cust Input'!J144 -> 8452338.14 | K18: ='Monthly Load & Cust Input'!K144 -> 8514902.16 | L18: ='Monthly Load & Cust Input'!L144 -> 8576052 | N18: ='Weather Sensitive Forecast'!B20 -> 2024 | O18: ='Weather Sensitive Forecast'!D20 -> 113129885.2 | P18: 2.017401938 | Q18: ='Weather Sensitive Forecast'!F20 -> 110279022.5 | R18: 1.972827554 | S18: -2850862.691
B19: October | C19: ='Monthly Load & Cust Input'!C145 -> 8074621 | D19: ='Monthly Load & Cust Input'!D145 -> 7983759 | E19: ='Monthly Load & Cust Input'!E145 -> 8273205 | F19: ='Monthly Load & Cust Input'!F145 -> 7908177 | G19: ='Monthly Load & Cust Input'!G145 -> 8195562 | H19: ='Monthly Load & Cust Input'!H145 -> 8075869 | I19: ='Monthly Load & Cust Input'!I145 -> 8309018.85 | J19: ='Monthly Load & Cust Input'!J145 -> 8306104.55 | K19: ='Monthly Load & Cust Input'!K145 -> 8472948.77 | L19: ='Monthly Load & Cust Input'!L145 -> 8819455 | N19: ='Weather Sensitive Forecast'!B21 -> 2025 | O19: ='Weather Sensitive Forecast'!D21 -> 119186821 | P19: 2.053539662 | Q19: ='Weather Sensitive Forecast'!F21 -> 118663907.6 | R19: 2.076033364 | S19: -522913.3872
B20: November | C20: ='Monthly Load & Cust Input'!C146 -> 8792790 | D20: ='Monthly Load & Cust Input'!D146 -> 9161805 | E20: ='Monthly Load & Cust Input'!E146 -> 9371732 | F20: ='Monthly Load & Cust Input'!F146 -> 9264874 | G20: ='Monthly Load & Cust Input'!G146 -> 8711857 | H20: ='Monthly Load & Cust Input'!H146 -> 9085638.87 | I20: ='Monthly Load & Cust Input'!I146 -> 8944137.61 | J20: ='Monthly Load & Cust Input'!J146 -> 9189967.58 | K20: ='Monthly Load & Cust Input'!K146 -> 9017603.88 | L20: ='Monthly Load & Cust Input'!L146 -> 10182138 | N20: ='Weather Sensitive Forecast'!B23 -> 2026 | O20: ='Weather Sensitive Forecast'!F23 -> 118650752.9 | P20: 1.995502288 | Q20: ='Weather Sensitive Forecast'!F23 -> 118650752.9 | R20: 1.999889144 | S20: 0
B21: December | C21: ='Monthly Load & Cust Input'!C147 -> 10206407 | D21: ='Monthly Load & Cust Input'!D147 -> 10688479 | E21: ='Monthly Load & Cust Input'!E147 -> 10215218 | F21: ='Monthly Load & Cust Input'!F147 -> 10207018 | G21: ='Monthly Load & Cust Input'!G147 -> 10055028 | H21: ='Monthly Load & Cust Input'!H147 -> 10218754 | I21: ='Monthly Load & Cust Input'!I147 -> 10328303.78 | J21: ='Monthly Load & Cust Input'!J147 -> 10068806.25 | K21: ='Monthly Load & Cust Input'!K147 -> 10867006.92 | L21: ='Monthly Load & Cust Input'!L147 -> 12019804 | N21: ='Weather Sensitive Forecast'!B24 -> 2027 | O21: ='Weather Sensitive Forecast'!F24 -> 119642007.6 | P21: =O21/O20+1 -> 2.00835439 | Q21: ='Weather Sensitive Forecast'!F24 -> 119642007.6 | R21: =Q21/Q20+1 -> 2.00835439 | S21: =Q21-O21 -> 0
B22: Total | C22: =SUM(C10:C21) -> 109654087 | D22: =SUM(D10:D21) -> 107118589 | E22: 110214244 | F22: 108677810 | G22: 108412541 | H22: 109194031.7 | I22: 113489389.4 | J22: 111194878.8 | K22: 113129885.2 | L22: =SUM(L10:L21) -> 119186821
B25: W H O L E S A L E T O T A L | N25: Period | O25: Actual | P25: Forecast | Q25: Error | R25: Absolute Value of Error | S25: Square of Error | T25: Absolute Values of Errors Divided by Actual Values.
C26: =C9 -> 2016 | D26: =D9 -> 2017 | E26: 2018 | F26: 2019 | G26: 2020 | H26: 2021 | I26: 2022 | J26: 2023 | K26: 2024 | L26: 2025 | N26: t | O26: At | P26: Ft | Q26: At -Ft | R26: | At -Ft| | S26: ( At -Ft)^2 | T26: | (At -Ft)/At|
B27: RRR excl. losses (delivery/sold) | N27: 1 | O27: =O10 -> 109654087 | P27: =Q10 -> 109161809.1 | Q27: =O27-P27 -> 492277.8944 | R27: =ABS(O27-P27) -> 492277.8944 | S27: =Q27^2 -> 2.423375254e+11 | T27: =ABS((O27-P27)/O27) -> 0.004489371148
B28: RRR Total Distribution Losses (kWh) | N28: 2 | O28: =O11 -> 107118589 | P28: =Q11 -> 107647028.3 | Q28: =O28-P28 -> -528439.29 | R28: =ABS(O28-P28) -> 528439.29 | S28: =Q28^2 -> 2.792480832e+11 | T28: =ABS((O28-P28)/O28) -> 0.004933217427
B29: Embedded Gen | N29: 3 | O29: 110214244 | P29: 111379520.6 | Q29: -1165276.576 | R29: 1165276.576 | S29: 1.357869499e+12 | T29: 0.01057283101
B30: Load Transfer | N30: 4 | O30: 108677810 | P30: 110088378.3 | Q30: -1410568.279 | R30: 1410568.279 | S30: 1.989702869e+12 | T30: 0.0129793587
B31: Total kWh Purchased | N31: 5 | O31: 108412541 | P31: 109179816.7 | Q31: -767275.6826 | R31: 767275.6826 | S31: 5.887119732e+11 | T31: 0.00707737016
B32: Difference | N32: 6 | O32: 109194031.7 | P32: 108466563.8 | Q32: 727467.9845 | R32: 727467.9845 | S32: 5.292096684e+11 | T32: 0.006662158846
N33: 7 | O33: 113489389.4 | P33: 112046959 | Q33: 1442430.419 | R33: 1442430.419 | S33: 2.080605514e+12 | T33: 0.01270982624
N34: 8 | O34: 111194878.8 | P34: 113359271.2 | Q34: -2164392.453 | R34: 2164392.453 | S34: 4.68459469e+12 | T34: 0.01946485735
B35: R E T A I L T O T A L | N35: 9 | O35: 113129885.2 | P35: 110279022.5 | Q35: 2850862.691 | R35: 2850862.691 | S35: 8.127418084e+12 | T35: 0.02519990793
B36: Retail | C36: =C9 -> 2016 | D36: 2017 | E36: 2018 | F36: 2019 | G36: 2020 | H36: 2021 | I36: 2022 | J36: 2023 | K36: 2024 | L36: 2025 | N36: 10 | O36: 119186821 | P36: 118663907.6 | Q36: 522913.3872 | R36: 522913.3872 | S36: 2.734384106e+11 | T36: 0.004387342349
B37: =Controls!B15 -> Residential | N37: 11 | O37: 118650752.9 | P37: 118650752.9 | Q37: 0 | R37: 0 | S37: 0 | T37: 0
B38: kWh | C38: ='Monthly Load & Cust Input'!C155 -> 44987762 | D38: ='Monthly Load & Cust Input'!D155 -> 43072131 | E38: ='Monthly Load & Cust Input'!E155 -> 45964868 | F38: ='Monthly Load & Cust Input'!F155 -> 45802374 | G38: ='Monthly Load & Cust Input'!G155 -> 46867868 | H38: ='Monthly Load & Cust Input'!H155 -> 47371200 | I38: ='Monthly Load & Cust Input'!I155 -> 47305071 | J38: ='Monthly Load & Cust Input'!J155 -> 46366246 | K38: ='Monthly Load & Cust Input'!K155 -> 47417572 | L38: ='Monthly Load & Cust Input'!L155 -> 49187731.18 | N38: 12 | O38: 119642007.6 | P38: 119642007.6 | Q38: 0 | R38: 0 | S38: 0 | T38: 0
S39: MAPE | T39: =AVERAGE(T27:T36) -> 0.01084762412
B40: =Controls!B16 -> General Service < 50 kW
B41: kWh | C41: ='Monthly Load & Cust Input'!C159 -> 21726966 | D41: ='Monthly Load & Cust Input'!D159 -> 21268954 | E41: ='Monthly Load & Cust Input'!E159 -> 21662128 | F41: ='Monthly Load & Cust Input'!F159 -> 21303230 | G41: ='Monthly Load & Cust Input'!G159 -> 20017067 | H41: ='Monthly Load & Cust Input'!H159 -> 19174594 | I41: ='Monthly Load & Cust Input'!I159 -> 20125754 | J41: ='Monthly Load & Cust Input'!J159 -> 21318646 | K41: ='Monthly Load & Cust Input'!K159 -> 21897687 | L41: ='Monthly Load & Cust Input'!L159 -> 21939982
B43: =Controls!B17 -> General Service > 50 to 4999 kW
B44: kWh | C44: ='Monthly Load & Cust Input'!C163 -> 42377951 | D44: ='Monthly Load & Cust Input'!D163 -> 41229870 | E44: ='Monthly Load & Cust Input'!E163 -> 40354309 | F44: ='Monthly Load & Cust Input'!F163 -> 39929663 | G44: ='Monthly Load & Cust Input'!G163 -> 39076317 | H44: ='Monthly Load & Cust Input'!H163 -> 40874963 | I44: ='Monthly Load & Cust Input'!I163 -> 43424310 | J44: ='Monthly Load & Cust Input'!J163 -> 41433788 | K44: ='Monthly Load & Cust Input'!K163 -> 41771128 | L44: ='Monthly Load & Cust Input'!L163 -> 43717520.24
B45: kW | C45: ='Monthly Load & Cust Input'!C164 -> 113671.0784 | D45: ='Monthly Load & Cust Input'!D164 -> 110383.0606 | E45: ='Monthly Load & Cust Input'!E164 -> 110809.2285 | F45: ='Monthly Load & Cust Input'!F164 -> 109453.2472 | G45: ='Monthly Load & Cust Input'!G164 -> 108558.8609 | H45: ='Monthly Load & Cust Input'!H164 -> 110610.24 | I45: ='Monthly Load & Cust Input'!I164 -> 116000.0891 | J45: ='Monthly Load & Cust Input'!J164 -> 112620.8528 | K45: ='Monthly Load & Cust Input'!K164 -> 119072.4839 | L45: ='Monthly Load & Cust Input'!L164 -> 119132.0201
B47: =Controls!B18 -> Unmetered Scattered Load
B48: kWh | C48: ='Monthly Load & Cust Input'!C168 -> 585713 | D48: ='Monthly Load & Cust Input'!D168 -> 584238 | E48: ='Monthly Load & Cust Input'!E168 -> 584377 | F48: ='Monthly Load & Cust Input'!F168 -> 582285 | G48: ='Monthly Load & Cust Input'!G168 -> 572924 | H48: ='Monthly Load & Cust Input'!H168 -> 587169 | I48: ='Monthly Load & Cust Input'!I168 -> 581138 | J48: ='Monthly Load & Cust Input'!J168 -> 591853 | K48: ='Monthly Load & Cust Input'!K168 -> 621551 | L48: ='Monthly Load & Cust Input'!L168 -> 630754.1169
B50: =Controls!B19 -> Sentinel
B51: kWh | C51: ='Monthly Load & Cust Input'!C173 -> 113970 | D51: ='Monthly Load & Cust Input'!D173 -> 106656 | E51: ='Monthly Load & Cust Input'!E173 -> 104996 | F51: ='Monthly Load & Cust Input'!F173 -> 106134 | G51: ='Monthly Load & Cust Input'!G173 -> 104583 | H51: ='Monthly Load & Cust Input'!H173 -> 95863 | I51: ='Monthly Load & Cust Input'!I173 -> 94991 | J51: ='Monthly Load & Cust Input'!J173 -> 94444 | K51: ='Monthly Load & Cust Input'!K173 -> 93750 | L51: ='Monthly Load & Cust Input'!L173 -> 90421.11849
B52: kW | C52: ='Monthly Load & Cust Input'!C174 -> 297.2773401 | D52: ='Monthly Load & Cust Input'!D174 -> 272.7362021 | E52: ='Monthly Load & Cust Input'!E174 -> 265.958697 | F52: ='Monthly Load & Cust Input'!F174 -> 271.2299411 | G52: ='Monthly Load & Cust Input'!G174 -> 267.5504924 | H52: ='Monthly Load & Cust Input'!H174 -> 245.5033568 | I52: ='Monthly Load & Cust Input'!I174 -> 242.3112619 | J52: ='Monthly Load & Cust Input'!J174 -> 241.1719469 | K52: ='Monthly Load & Cust Input'!K174 -> 240.2413618 | L52: ='Monthly Load & Cust Input'!L174 -> 252
B53: Cust Count | C53: ='Monthly Load & Cust Input'!C175 -> 73 | D53: ='Monthly Load & Cust Input'!D175 -> 71 | E53: ='Monthly Load & Cust Input'!E175 -> 72 | F53: ='Monthly Load & Cust Input'!F175 -> 74 | G53: ='Monthly Load & Cust Input'!G175 -> 73 | H53: ='Monthly Load & Cust Input'!H175 -> 70 | I53: ='Monthly Load & Cust Input'!I175 -> 70 | J53: ='Monthly Load & Cust Input'!J175 -> 70 | K53: ='Monthly Load & Cust Input'!K175 -> 70 | L53: ='Monthly Load & Cust Input'!L175 -> 70
B55: =Controls!B20 -> StreetLights
B56: kWh | C56: ='Monthly Load & Cust Input'!C178 -> 831237 | D56: ='Monthly Load & Cust Input'!D178 -> 771054 | E56: ='Monthly Load & Cust Input'!E178 -> 748634 | F56: ='Monthly Load & Cust Input'!F178 -> 748634 | G56: ='Monthly Load & Cust Input'!G178 -> 697551 | H56: ='Monthly Load & Cust Input'!H178 -> 696298 | I56: ='Monthly Load & Cust Input'!I178 -> 696019 | J56: ='Monthly Load & Cust Input'!J178 -> 698496 | K56: ='Monthly Load & Cust Input'!K178 -> 700230 | L56: ='Monthly Load & Cust Input'!L178 -> 702628.8468
B57: kW | C57: ='Monthly Load & Cust Input'!C179 -> 2037.944446 | D57: ='Monthly Load & Cust Input'!D179 -> 1921.999685 | E57: ='Monthly Load & Cust Input'!E179 -> 1909.977457 | F57: ='Monthly Load & Cust Input'!F179 -> 1881.657716 | G57: ='Monthly Load & Cust Input'!G179 -> 1734.602449 | H57: ='Monthly Load & Cust Input'!H179 -> 1742.475045 | I57: ='Monthly Load & Cust Input'!I179 -> 1736.161236 | J57: ='Monthly Load & Cust Input'!J179 -> 1741.930447 | K57: ='Monthly Load & Cust Input'!K179 -> 1743.432781 | L57: ='Monthly Load & Cust Input'!L179 -> 1752
B59: Total
B60: kWh | C60: =C38+C41+C44+C48+C51+C56 -> 110623599 | D60: 107032903 | E60: 109419312 | F60: 108472320 | G60: 107336310 | H60: 108800087 | I60: 112227283 | J60: 110503473 | K60: 112501918 | L60: 116269037.5
B61: kW | C61: =C39+C42+C45+C49+C52+C57 -> 116006.3002 | D61: 112577.7965 | E61: 112985.1647 | F61: 111606.1349 | G61: 110561.0139 | H61: 112598.2184 | I61: 117978.5616 | J61: 114603.9552 | K61: 121056.158 | L61: 121136.0201

Sheet Final LF
B7: Class | C7: C U S T O M E R F O R E C A S T | H7: Geomean | I7: Geomean | K7: Excel Forecast | L7: Excel Forecast
B8: Customer Class | C8: BOARD APPR. | D8: 2022 | E8: 2023 | F8: 2024 | G8: 2025 | H8: 2026 | I8: 2027 | K8: 2026 | L8: 2027
B9: Residential | C9: 5126 | D9: ='Monthly Load & Cust Input'!C202 -> 5214 | E9: ='Monthly Load & Cust Input'!C203 -> 5260 | F9: ='Monthly Load & Cust Input'!C204 -> 5178 | G9: ='Monthly Load & Cust Input'!C205 -> 5319.416667 | H9: ='Monthly Load & Cust Input'!C209 -> 5347.759056 | I9: ='Monthly Load & Cust Input'!C210 -> 5376.252456 | K9: =_xlfn.FORECAST.LINEAR(K$8,$D9:$G9,$D$8:$G$8) -> 5301.416667 | L9: =_xlfn.FORECAST.LINEAR(L$8,$D9:$G9,$D$8:$G$8) -> 5324.841667 | V9: =I9-C9 -> 250.2524556
B10: General Service < 50 kW | C10: 728 | D10: ='Monthly Load & Cust Input'!$E$202 -> 731 | E10: ='Monthly Load & Cust Input'!$E$203 -> 732 | F10: ='Monthly Load & Cust Input'!$E$204 -> 735 | G10: ='Monthly Load & Cust Input'!$E$205 -> 741.3333333 | H10: ='Monthly Load & Cust Input'!$E$209 -> 741.4816297 | I10: ='Monthly Load & Cust Input'!$E$210 -> 741.6299557 | K10: 743.3333333 | L10: 746.7333333 | V10: 13.62995573
B11: General Service > 50 to 4999 kW | C11: 60 | D11: ='Monthly Load & Cust Input'!$G$202 -> 59 | E11: ='Monthly Load & Cust Input'!$G$203 -> 61 | F11: ='Monthly Load & Cust Input'!$G$204 -> 62.08333333 | G11: ='Monthly Load & Cust Input'!$G$205 -> 65.58333333 | H11: ='Monthly Load & Cust Input'!$G$209 -> 65.7616597 | I11: ='Monthly Load & Cust Input'!$G$210 -> 65.94047096 | K11: 67.125 | L11: 69.20833333 | V11: 5.940470956
B12: Unmetered Scattered Load | C12: 57 | D12: ='Monthly Load & Cust Input'!$I$202 -> 57 | E12: ='Monthly Load & Cust Input'!$I$203 -> 57 | F12: ='Monthly Load & Cust Input'!$I$204 -> 57 | G12: ='Monthly Load & Cust Input'!$I$205 -> 60 | H12: ='Monthly Load & Cust Input'!$I$209 -> 60.22643655 | I12: ='Monthly Load & Cust Input'!$I$210 -> 60.45372766 | K12: 60 | L12: 60.9 | V12: 3.453727662
B13: Sentinel | C13: 69 | D13: ='Monthly Load & Cust Input'!$K$202 -> 70 | E13: ='Monthly Load & Cust Input'!$K$203 -> 70 | F13: ='Monthly Load & Cust Input'!$K$204 -> 70 | G13: ='Monthly Load & Cust Input'!$K$205 -> 70 | H13: ='Monthly Load & Cust Input'!$K$209 -> 69.67437153 | I13: ='Monthly Load & Cust Input'!$K$210 -> 69.35025782 | K13: 70 | L13: 70 | V13: 0.3502578237
B14: StreetLights | C14: 1712 | D14: ='Monthly Load & Cust Input'!$M$202 -> 1712 | E14: ='Monthly Load & Cust Input'!$M$203 -> 1713 | F14: ='Monthly Load & Cust Input'!$M$204 -> 1713 | G14: ='Monthly Load & Cust Input'!$M$205 -> 1713 | H14: ='Monthly Load & Cust Input'!$M$209 -> 1713.222366 | I14: ='Monthly Load & Cust Input'!$M$210 -> 1713.444762 | K14: 1713.5 | L14: 1713.8 | V14: 1.444761829
B15: other | C15: 0 | D15: 0 | E15: 0 | F15: 0 | G15: 0 | H15: 0 | I15: 0 | K15: 0 | L15: 0 | V15: 0
B16: other | C16: 0 | D16: 0 | E16: 0 | F16: 0 | G16: 0 | H16: 0 | I16: 0 | K16: 0 | L16: 0 | V16: 0
B17: other | C17: 0 | D17: 0 | E17: 0 | F17: 0 | G17: 0 | H17: 0 | I17: 0 | K17: 0 | L17: 0 | V17: 0
B18: T O T A L | C18: =SUM(C9:C17) -> 7752 | D18: =SUM(D9:D17) -> 7843 | E18: 7893 | F18: 7815.083333 | G18: 7969.333333 | H18: 7998.12552 | I18: 8027.07163 | K18: 7955.375 | L18: 7985.483333 | V18: 275.0716296
B21: Class | C21: C O N S U M P T I O N F O R E C A S T | H21: 10YRegr. | I21: 10YRegr. | K21: Excel Forecast | L21: Excel Forecast
B22: Customer Class | C22: BOARD APPR. | D22: =D8 -> 2022 | E22: 2023 | F22: 2024 | G22: 2025 | H22: 2026 | I22: 2027 | K22: 2026 | L22: 2027
B23: Residential | C23: 40152605 | D23: ='Weather Sensitive Forecast'!$C$18 -> 47305071 | E23: ='Weather Sensitive Forecast'!$C$19 -> 46366246 | F23: ='Weather Sensitive Forecast'!$C$20 -> 47417572 | G23: ='Weather Sensitive Forecast'!$C$21 -> 49187731.18 | H23: ='Weather Sensitive Forecast'!$G$23 -> 48966498.91 | I23: ='Weather Sensitive Forecast'!$G$24 -> 50042036.12 | K23: =_xlfn.FORECAST.LINEAR(K$8,$D23:$G23,$D$8:$G$8) -> 49243981.68 | L23: =_xlfn.FORECAST.LINEAR(L$8,$D23:$G23,$D$8:$G$8) -> 49913912.33 | V23: =I23-C23 -> 9889431.119
B24: General Service < 50 kW | C24: 18422393 | D24: ='Weather Sensitive Forecast'!$C$35 -> 20125754 | E24: ='Weather Sensitive Forecast'!$C$36 -> 21318646 | F24: ='Weather Sensitive Forecast'!$C$37 -> 21897687 | G24: ='Weather Sensitive Forecast'!$C$38 -> 21939982 | H24: ='Weather Sensitive Forecast'!$G$40 -> 22498614.7 | I24: ='Weather Sensitive Forecast'!$G$41 -> 22686576.89 | K24: =_xlfn.FORECAST.LINEAR(K$8,$D24:$G24,$D$8:$G$8) -> 22825948.5 | L24: 23428121 | V24: =I24-C24 -> 4264183.894
B25: General Service > 50 to 4999 kW | C25: 35686579 | D25: ='Weather Sensitive Forecast'!$C$52 -> 43424310 | E25: ='Weather Sensitive Forecast'!$C$53 -> 41433788 | F25: ='Weather Sensitive Forecast'!$C$54 -> 41771128 | G25: ='Weather Sensitive Forecast'!$C$55 -> 43717520.24 | H25: ='Weather Sensitive Forecast'!$G$57 -> 44268385.15 | I25: ='Weather Sensitive Forecast'!$G$58 -> 44638220.49 | K25: 42890929.24 | L25: 43012626.32 | V25: 8951641.486
B26: Unmetered Scattered Load | C26: 643596 | D26: ='Weather Sensitive Forecast'!$C$69 -> 581138 | E26: ='Weather Sensitive Forecast'!$C$70 -> 591853 | F26: ='Weather Sensitive Forecast'!$C$71 -> 621551 | G26: ='Weather Sensitive Forecast'!$C$72 -> 630754.1169 | H26: ='Weather Sensitive Forecast'!$G$74 -> 632968.8509 | I26: ='Weather Sensitive Forecast'!$G$75 -> 638256.9192 | K26: 650960.6169 | L26: 668815.252 | V26: -5339.080755
B27: Sentinel | C27: 85700 | D27: ='Non-Weather Sensitive'!D35 -> 283185 | E27: ='Non-Weather Sensitive'!D35 -> 283185 | F27: ='Non-Weather Sensitive'!D37 -> 184171.1185 | G27: ='Non-Weather Sensitive'!D38 -> 90421.11849 | H27: ='Non-Weather Sensitive'!D40 -> 157685.3185 | I27: ='Non-Weather Sensitive'!D41 -> 137576.679 | K27: 40914.17774 | L27: -26816.37486 | V27: 51876.67903
B28: StreetLights | C28: 557843 | D28: ='Non-Weather Sensitive'!D52 -> 696019 | E28: ='Non-Weather Sensitive'!D53 -> 698496 | F28: ='Non-Weather Sensitive'!D54 -> 700230 | G28: ='Non-Weather Sensitive'!D55 -> 702628.8468 | H28: ='Non-Weather Sensitive'!D57 -> 660310.5387 | I28: ='Non-Weather Sensitive'!D58 -> 647807.3304 | K28: 704734.3468 | L28: 706890.7008 | V28: 89964.33035
B29: other | C29: 0 | D29: 0 | E29: 0 | F29: 0 | G29: 0 | H29: 0 | I29: 0 | K29: 0 | L29: 0 | V29: 0
B30: other | C30: 0 | D30: 0 | E30: 0 | F30: 0 | G30: 0 | H30: 0 | I30: 0 | K30: 0 | L30: 0 | V30: 0
B31: other | C31: 0 | D31: 0 | E31: 0 | F31: 0 | G31: 0 | H31: 0 | I31: 0 | K31: 0 | L31: 0 | V31: 0
B32: T O T A L | C32: =SUM(C23:C31) -> 95548716 | D32: 112415477 | E32: 110692214 | F32: 112592339.1 | G32: 116269037.5 | H32: 117184463.5 | I32: 118790474.4 | K32: =SUM(K23:K31) -> 116357468.6 | L32: =SUM(L23:L31) -> 117703549.2 | V32: 23241758.43
B35: Class | C35: D E M A N D F O R E C A S T | H35: 10YRegr. | I35: 10YRegr. | K35: Excel Forecast | L35: Excel Forecast
B36: Customer Class | C36: BOARD APPR. | D36: =D8 -> 2022 | E36: 2023 | F36: 2024 | G36: 2025 | H36: 2026 | I36: 2027 | K36: 2026 | L36: 2027
B37: Residential | C37: 0 | D37: 0 | E37: 0 | F37: 0 | G37: 0 | H37: 0 | I37: 0 | K37: =_xlfn.FORECAST.LINEAR(K$8,$D37:$G37,$D$8:$G$8) -> 0 | L37: =_xlfn.FORECAST.LINEAR(L$8,$D37:$G37,$D$8:$G$8) -> 0
B38: General Service < 50 kW | C38: 0 | D38: 0 | E38: 0 | F38: 0 | G38: 0 | H38: 0 | I38: 0 | K38: =_xlfn.FORECAST.LINEAR(K$8,$D38:$G38,$D$8:$G$8) -> 0 | L38: 0
B39: General Service > 50 to 4999 kW | C39: 105774 | D39: ='Non-Weather Sensitive'!C18 -> 116000.0891 | E39: ='Non-Weather Sensitive'!C19 -> 112620.8528 | F39: ='Non-Weather Sensitive'!C20 -> 119072.4839 | G39: ='Non-Weather Sensitive'!C21 -> 119132.0201 | H39: ='Non-Weather Sensitive'!C23 -> 120834.3892 | I39: ='Non-Weather Sensitive'!C24 -> 121843.8868 | K39: 120668.2175 | L39: 122252.96
B40: Unmetered Scattered Load | C40: 0 | D40: 0 | E40: 0 | F40: 0 | G40: 0 | H40: 0 | I40: 0 | K40: 0 | L40: 0
B41: Sentinel | C41: 238 | D41: ='Non-Weather Sensitive'!C35 -> 242.3112619 | E41: ='Non-Weather Sensitive'!C36 -> 241.1719469 | F41: ='Non-Weather Sensitive'!C37 -> 240.2413618 | G41: ='Non-Weather Sensitive'!C38 -> 252 | H41: ='Non-Weather Sensitive'!C40 -> 174.6695654 | I41: ='Non-Weather Sensitive'!C41 -> 152.3950293 | K41: 250.96505 | L41: 253.7786129
B42: StreetLights | C42: 1746 | D42: ='Non-Weather Sensitive'!C52 -> 1736.161236 | E42: ='Non-Weather Sensitive'!C53 -> 1741.930447 | F42: ='Non-Weather Sensitive'!C54 -> 1743.432781 | G42: ='Non-Weather Sensitive'!C55 -> 1752 | H42: ='Non-Weather Sensitive'!C57 -> 1648.786047 | I42: ='Non-Weather Sensitive'!C58 -> 1620.825263 | K42: 1755.635773 | L42: 1760.537635
B43: other | C43: 0 | D43: 0 | E43: 0 | F43: 0 | G43: 0 | H43: 0 | I43: 0 | K43: 0 | L43: 0
B44: other | C44: 0 | D44: 0 | E44: 0 | F44: 0 | G44: 0 | H44: 0 | I44: 0 | K44: 0 | L44: 0
B45: other | C45: 0 | D45: 0 | E45: 0 | F45: 0 | G45: 0 | H45: 0 | I45: 0 | K45: 0 | L45: 0
B46: T O T A L | C46: =SUM(C37:C45) -> 107758 | D46: 117978.5616 | E46: 114603.9552 | F46: 121056.158 | G46: 121136.0201 | H46: 122657.8448 | I46: 123617.1071 | K46: 122674.8184 | L46: 124267.2762

Sheet DW (hidden)
A1: LOWER | B1: 2 | C1: 3 | D1: 4 | E1: 5 | F1: 6 | G1: 7 | H1: 8 | I1: 9 | J1: 10 | K1: 11 | L1: 12 | M1: 13 | N1: 14 | O1: 15 | P1: 16 | Q1: 17 | R1: 18 | S1: 19 | T1: 20 | U1: 21 | W1: UPPER | X1: 2 | Y1: 3 | Z1: 4 | AA1: 5 | AB1: 6 | AC1: 7 | AD1: 8 | AE1: 9 | AF1: 10 | AG1: 11 | AH1: 12 | AI1: 13 | AJ1: 14 | AK1: 15 | AL1: 16 | AM1: 17 | AN1: 18 | AO1: 19 | AP1: 20 | AQ1: 21
A2: 5 | B2: 0.61018 | C2: 0.46723 | D2: 0.36744 | E2: 0.29571 | F2: 0.24269 | G2: 0.20253 | H2: 0.17144 | I2: 0.14693 | J2: 0.12726 | K2: 0.11127 | L2: 0.09809 | M2: 0.08711 | N2: 0.07786 | O2: 0.07001 | P2: 0.06327 | Q2: 0.05747 | R2: 0.05242 | S2: 0.04801 | T2: 0.04413 | U2: 0.0407 | W2: 5 | X2: 1.31988 | Y2: 1.69926 | Z2: 2.12816 | AA2: 2.5881 | AB2: 2.29593 | AC2: 2.57158 | AD2: 2.84769 | AE2: 3.11121 | AF2: 3.36038 | AG2: 2.97399 | AH2: 3.1593 | AI2: 3.33481 | AJ2: 3.49566 | AK2: 3.64241 | AL2: 3.327 | AM2: 3.45402 | AN2: 3.57167 | AO2: 3.67769 | AP2: 3.77297 | AQ2: 3.52786
A3: 10 | B3: 0.87913 | C3: 0.69715 | D3: 0.52534 | E3: 0.37602 | F3: 0.24269 | G3: 0.20253 | H3: 0.17144 | I3: 0.14693 | J3: 0.12726 | K3: 0.11127 | L3: 0.09809 | M3: 0.08711 | N3: 0.07786 | O3: 0.07001 | P3: 0.06327 | Q3: 0.05747 | R3: 0.05242 | S3: 0.04801 | T3: 0.04413 | U3: 0.0407 | W3: 10 | X3: 1.31971 | Y3: 1.55066 | Z3: 1.77882 | AA3: 2.02955 | AB3: 2.29593 | AC3: 2.57158 | AD3: 2.84769 | AE3: 3.11121 | AF3: 3.36038 | AG3: 2.97399 | AH3: 3.1593 | AI3: 3.33481 | AJ3: 3.49566 | AK3: 3.64241 | AL3: 3.327 | AM3: 3.45402 | AN3: 3.57167 | AO3: 3.67769 | AP3: 3.77297 | AQ3: 3.52786
A4: 15 | B4: 1.07697 | C4: 0.94554 | D4: 0.81396 | E4: 0.68519 | F4: 0.56197 | G4: 0.44707 | H4: 0.3429 | I4: 0.2509 | J4: 0.17531 | K4: 0.11127 | L4: 0.09809 | M4: 0.08711 | N4: 0.07786 | O4: 0.07001 | P4: 0.06327 | Q4: 0.05747 | R4: 0.05242 | S4: 0.04801 | T4: 0.04413 | U4: 0.0407 | W4: 15 | X4: 1.36054 | Y4: 1.53525 | Z4: 1.68509 | AA4: 1.84815 | AB4: 2.02262 | AC4: 2.20614 | AD4: 2.39602 | AE4: 2.58939 | AF4: 2.78312 | AG4: 2.97399 | AH4: 3.1593 | AI4: 3.33481 | AJ4: 3.49566 | AK4: 3.64241 | AL4: 3.327 | AM4: 3.45402 | AN4: 3.57167 | AO4: 3.67769 | AP4: 3.77297 | AQ4: 3.52786
A5: 20 | B5: 1.20149 | C5: 1.1004 | D5: 0.99755 | E5: 0.89425 | F5: 0.79179 | G5: 0.69146 | H5: 0.59454 | I5: 0.5022 | J5: 0.41559 | K5: 0.33571 | L5: 0.26349 | M5: 0.19978 | N5: 0.14472 | O5: 0.10024 | P5: 0.06327 | Q5: 0.05747 | R5: 0.05242 | S5: 0.04801 | T5: 0.04413 | U5: 0.0407 | W5: 20 | X5: 1.41073 | Y5: 1.53668 | Z5: 1.65649 | AA5: 1.77526 | AB5: 1.90184 | AC5: 2.03522 | AD5: 2.17427 | AE5: 2.31774 | AF5: 2.46431 | AG5: 2.6126 | AH5: 2.76111 | AI5: 2.90835 | AJ5: 3.05282 | AK5: 3.19285 | AL5: 3.327 | AM5: 3.45402 | AN5: 3.57167 | AO5: 3.67769 | AP5: 3.77297 | AQ5: 3.52786
A6: 25 | B6: 1.28791 | C6: 1.20625 | D6: 1.12276 | E6: 1.03811 | F6: 0.95297 | G6: 0.86803 | H6: 0.784 | I6: 0.70154 | J6: 0.62133 | K6: 0.54401 | L6: 0.47019 | M6: 0.40046 | N6: 0.33536 | O6: 0.27536 | P6: 0.2209 | Q6: 0.17231 | R6: 0.12995 | S6: 0.09371 | T6: 0.06465 | U6: 0.0407 | W6: 25 | X6: 1.45371 | Y6: 1.54954 | Z6: 1.64987 | AA6: 1.7426 | AB6: 1.84088 | AC6: 1.9442 | AD6: 2.05196 | AE6: 2.16358 | AF6: 2.27837 | AG6: 2.39562 | AH6: 2.51459 | AI6: 2.63447 | AJ6: 2.75449 | AK6: 2.87381 | AL6: 2.9916 | AM6: 3.107 | AN6: 3.21917 | AO6: 3.32728 | AP6: 3.43042 | AQ6: 3.52786
A7: 30 | B7: 1.35204 | C7: 1.28373 | D7: 1.2138 | E7: 1.14262 | F7: 1.0706 | G7: 0.99815 | H7: 0.92564 | I7: 0.85351 | J7: 0.78217 | K7: 0.71202 | L7: 0.64345 | M7: 0.57685 | N7: 0.51259 | O7: 0.45105 | P7: 0.39255 | Q7: 0.3374 | R7: 0.2859 | S7: 0.2383 | T7: 0.19485 | U7: 0.15572 | W7: 30 | X7: 1.48936 | Y7: 1.56661 | Z7: 1.64981 | AA7: 1.7277 | AB7: 1.80758 | AC7: 1.89129 | AD7: 1.97849 | AE7: 2.06882 | AF7: 2.1619 | AG7: 2.25735 | AH7: 2.35473 | AI7: 2.45359 | AJ7: 2.55348 | AK7: 2.65392 | AL7: 2.75442 | AM7: 2.85449 | AN7: 2.95361 | AO7: 3.05127 | AP7: 3.14697 | AQ7: 3.2402
A8: 35 | B8: 1.40194 | C8: 1.34332 | D8: 1.2833 | E8: 1.22214 | F8: 1.16007 | G8: 1.09735 | H8: 1.03424 | I8: 0.97099 | J8: 0.90788 | K8: 0.84516 | L8: 0.78311 | M8: 0.72197 | N8: 0.662 | O8: 0.60346 | P8: 0.54659 | Q8: 0.49162 | R8: 0.43878 | S8: 0.38829 | T8: 0.34034 | U8: 0.29513 | W8: 35 | X8: 1.51914 | Y8: 1.58382 | Z8: 1.65282 | AA8: 1.72152 | AB8: 1.78863 | AC8: 1.8587 | AD8: 1.93153 | AE8: 2.00692 | AF8: 2.0846 | AG8: 2.16437 | AH8: 2.24594 | AI8: 2.32904 | AJ8: 2.4134 | AK8: 2.49872 | AL8: 2.58469 | AM8: 2.671 | AN8: 2.75733 | AO8: 2.84336 | AP8: 2.92876 | AQ8: 3.0132
A9: 40 | B9: 1.44214 | C9: 1.39083 | D9: 1.33835 | E9: 1.28484 | F9: 1.23047 | G9: 1.17541 | H9: 1.11983 | I9: 1.06391 | J9: 1.00782 | K9: 0.95174 | L9: 0.89585 | M9: 0.84035 | N9: 0.78539 | O9: 0.73115 | P9: 0.67782 | Q9: 0.62556 | R9: 0.57454 | S9: 0.52492 | T9: 0.47687 | U9: 0.43054 | W9: 40 | X9: 1.54436 | Y9: 1.59999 | Z9: 1.65889 | AA9: 1.71996 | AB9: 1.77772 | AC9: 1.83784 | AD9: 1.90017 | AE9: 1.9646 | AF9: 2.03095 | AG9: 2.09907 | AH9: 2.16881 | AI9: 2.23997 | AJ9: 2.31237 | AK9: 2.38581 | AL9: 2.46011 | AM9: 2.53505 | AN9: 2.61043 | AO9: 2.68601 | AP9: 2.76161 | AQ9: 2.83698
A10: 45 | B10: 1.47538 | C10: 1.4298 | D10: 1.3832 | E10: 1.33571 | F10: 1.28744 | G10: 1.23849 | H10: 1.18899 | I10: 1.13907 | J10: 1.08886 | K10: 1.03846 | L10: 0.98802 | M10: 0.93765 | N10: 0.8875 | O10: 0.83769 | P10: 0.78833 | Q10: 0.73955 | R10: 0.69149 | S10: 0.64427 | T10: 0.59801 | U10: 0.55282 | W10: 45 | X10: 1.56602 | Y10: 1.61482 | Z10: 1.66618 | AA10: 1.71999 | AB10: 1.77159 | AC10: 1.82415 | AD10: 1.87852 | AE10: 1.93463 | AF10: 1.99236 | AG10: 2.0516 | AH10: 2.11224 | AI10: 2.17415 | AJ10: 2.23723 | AK10: 2.30131 | AL10: 2.36628 | AM10: 2.43199 | AN10: 2.49829 | AO10: 2.56505 | AP10: 2.63211 | AQ10: 2.6993
A11: 50 | B11: 1.50345 | C11: 1.46246 | D11: 1.42059 | E11: 1.37793 | F11: 1.33457 | G11: 1.29059 | H11: 1.24607 | I11: 1.2011 | J11: 1.15579 | K11: 1.11021 | L11: 1.06445 | M11: 1.01862 | N11: 0.9728 | O11: 0.92709 | P11: 0.88159 | Q11: 0.83638 | R11: 0.79156 | S11: 0.74723 | T11: 0.70348 | U11: 0.6604 | W11: 50 | X11: 1.58486 | Y11: 1.62833 | Z11: 1.67385 | AA11: 1.72135 | AB11: 1.76844 | AC11: 1.81508 | AD11: 1.86324 | AE11: 1.91283 | AF11: 1.96381 | AG11: 2.01609 | AH11: 2.06959 | AI11: 2.1242 | AJ11: 2.17987 | AK11: 2.23647 | AL11: 2.29392 | AM11: 2.35213 | AN11: 2.41097 | AO11: 2.47036 | AP11: 2.53019 | AQ11: 2.59033
A12: 55 | B12: 1.52755 | C12: 1.49031 | D12: 1.45232 | E12: 1.41362 | F12: 1.37431 | G12: 1.33442 | H12: 1.29403 | I12: 1.25319 | J12: 1.21199 | K12: 1.17049 | L12: 1.12875 | M12: 1.08685 | N12: 1.04485 | O12: 1.00284 | P12: 0.96087 | Q12: 0.91902 | R12: 0.87736 | S12: 0.83597 | T12: 0.79492 | U12: 0.75427 | W12: 55 | X12: 1.60144 | Y12: 1.64062 | Z12: 1.68149 | AA12: 1.72399 | AB12: 1.7672 | AC12: 1.80908 | AD12: 1.85226 | AE12: 1.89665 | AF12: 1.94223 | AG12: 1.98893 | AH12: 2.03668 | AI12: 2.08543 | AJ12: 2.1351 | AK12: 2.18564 | AL12: 2.23698 | AM12: 2.28902 | AN12: 2.34171 | AO12: 2.39495 | AP12: 2.44869 | AQ12: 2.50283
A13: 60 | B13: 1.54853 | C13: 1.51442 | D13: 1.47965 | E13: 1.44427 | F13: 1.40832 | G13: 1.37186 | H13: 1.33493 | I13: 1.29758 | J13: 1.25987 | K13: 1.22183 | L13: 1.18354 | M13: 1.14505 | N13: 1.1064 | O13: 1.06764 | P13: 1.02885 | Q13: 0.99007 | R13: 0.95135 | S13: 0.91276 | T13: 0.87435 | U13: 0.83616 | W13: 60 | X13: 1.61617 | Y13: 1.65184 | Z13: 1.68891 | AA13: 1.72735 | AB13: 1.76708 | AC13: 1.8052 | AD13: 1.84429 | AE13: 1.88444 | AF13: 1.92561 | AG13: 1.96775 | AH13: 2.01081 | AI13: 2.05475 | AJ13: 2.09952 | AK13: 2.14507 | AL13: 2.19134 | AM13: 2.23829 | AN13: 2.28584 | AO13: 2.33395 | AP13: 2.38255 | AQ13: 2.43159
A14: 65 | B14: 1.56699 | C14: 1.53553 | D14: 1.50349 | E14: 1.47092 | F14: 1.43782 | G14: 1.40426 | H14: 1.37027 | I14: 1.33589 | J14: 1.30115 | K14: 1.26611 | L14: 1.2308 | M14: 1.19525 | N14: 1.15952 | O14: 1.12364 | P14: 1.08767 | Q14: 1.05165 | R14: 1.0156 | S14: 0.9796 | T14: 0.94367 | U14: 0.90785 | W14: 65 | X14: 1.62936 | Y14: 1.6621 | Z14: 1.69602 | AA14: 1.7311 | AB14: 1.76731 | AC14: 1.80279 | AD14: 1.83849 | AE14: 1.87512 | AF14: 1.91262 | AG14: 1.95098 | AH14: 1.99014 | AI14: 2.03009 | AJ14: 2.07078 | AK14: 2.11216 | AL14: 2.15421 | AM14: 2.19688 | AN14: 2.24012 | AO14: 2.28388 | AP14: 2.32813 | AQ14: 2.37281
A15: 70 | B15: 1.58341 | C15: 1.55422 | D15: 1.52452 | E15: 1.49434 | F15: 1.46369 | G15: 1.43262 | H15: 1.40115 | I15: 1.36932 | J15: 1.33716 | K15: 1.30469 | L15: 1.27196 | M15: 1.23899 | N15: 1.20582 | O15: 1.17249 | P15: 1.13902 | Q15: 1.10544 | R15: 1.07182 | S15: 1.03816 | T15: 1.00451 | U15: 0.97091 | W15: 70 | X15: 1.64127 | Y15: 1.67152 | Z15: 1.70278 | AA15: 1.73505 | AB15: 1.76827 | AC15: 1.80144 | AD15: 1.83429 | AE15: 1.86793 | AF15: 1.90235 | AG15: 1.93752 | AH15: 1.97341 | AI15: 2.01 | AJ15: 2.04724 | AK15: 2.08511 | AL15: 2.12359 | AM15: 2.16263 | AN15: 2.2022 | AO15: 2.24227 | AP15: 2.2828 | AQ15: 2.32375
A16: 75 | B16: 1.59813 | C16: 1.57091 | D16: 1.54323 | E16: 1.51511 | F16: 1.48659 | G16: 1.45767 | H16: 1.4284 | I16: 1.39877 | J16: 1.36884 | K16: 1.33863 | L16: 1.30815 | M16: 1.27744 | N16: 1.24652 | O16: 1.21542 | P16: 1.18418 | Q16: 1.15281 | R16: 1.12135 | S16: 1.08982 | T16: 1.05825 | U16: 1.02668 | W16: 75 | X16: 1.65209 | Y16: 1.6802 | Z16: 1.7092 | AA16: 1.73904 | AB16: 1.76975 | AC16: 1.80086 | AD16: 1.83126 | AE16: 1.86237 | AF16: 1.89416 | AG16: 1.92661 | AH16: 1.9597 | AI16: 1.99342 | AJ16: 2.02773 | AK16: 2.06261 | AL16: 2.09804 | AM16: 2.13398 | AN16: 2.17041 | AO16: 2.2073 | AP16: 2.24464 | AQ16: 2.28237
A17: 80 | B17: 1.61143 | C17: 1.58592 | D17: 1.56001 | E17: 1.5337 | F17: 1.50703 | G17: 1.47999 | H17: 1.45262 | I17: 1.42495 | J17: 1.39698 | K17: 1.36873 | L17: 1.34024 | M17: 1.31151 | N17: 1.28259 | O17: 1.25348 | P17: 1.22422 | Q17: 1.19481 | R17: 1.16529 | S17: 1.13568 | T17: 1.106 | U17: 1.07628 | W17: 80 | X17: 1.66197 | Y17: 1.68823 | Z17: 1.71526 | AA17: 1.74304 | AB17: 1.77156 | AC17: 1.80079 | AD17: 1.82912 | AE17: 1.85804 | AF17: 1.88756 | AG17: 1.91768 | AH17: 1.94837 | AI17: 1.97962 | AJ17: 2.0114 | AK17: 2.0437 | AL17: 2.07649 | AM17: 2.10976 | AN17: 2.14348 | AO17: 2.17762 | AP17: 2.21218 | AQ17: 2.24712
A18: 85 | B18: 1.6235 | C18: 1.59952 | D18: 1.57516 | E18: 1.55045 | F18: 1.5254 | G18: 1.50003 | H18: 1.47434 | I18: 1.44837 | J18: 1.42212 | K18: 1.39562 | L18: 1.36889 | M18: 1.34194 | N18: 1.31477 | O18: 1.28744 | P18: 1.25993 | Q18: 1.23229 | R18: 1.20451 | S18: 1.17664 | T18: 1.14868 | U18: 1.12064 | W18: 85 | X18: 1.67105 | Y18: 1.69568 | Z18: 1.721 | AA18: 1.74697 | AB18: 1.77361 | AC18: 1.80089 | AD18: 1.82768 | AE18: 1.85469 | AF18: 1.88223 | AG18: 1.91032 | AH18: 1.93892 | AI18: 1.96802 | AJ18: 1.9976 | AK18: 2.02766 | AL18: 2.05816 | AM18: 2.0891 | AN18: 2.12046 | AO18: 2.15221 | AP18: 2.18434 | AQ18: 2.21683
A19: 90 | B19: 1.63454 | C19: 1.6119 | D19: 1.58893 | E19: 1.56564 | F19: 1.54202 | G19: 1.51812 | H19: 1.49393 | I19: 1.46947 | J19: 1.44476 | K19: 1.41982 | L19: 1.39464 | M19: 1.36926 | N19: 1.34368 | O19: 1.31792 | P19: 1.292 | Q19: 1.26594 | R19: 1.23974 | S19: 1.21344 | T19: 1.18703 | U19: 1.16053 | W19: 90 | X19: 1.67942 | Y19: 1.70262 | Z19: 1.72642 | AA19: 1.75082 | AB19: 1.7758 | AC19: 1.80135 | AD19: 1.82675 | AE19: 1.85209 | AF19: 1.87791 | AG19: 1.90421 | AH19: 1.93097 | AI19: 1.9582 | AJ19: 1.98586 | AK19: 2.01394 | AL19: 2.04244 | AM19: 2.07134 | AN19: 2.10062 | AO19: 2.13027 | AP19: 2.16027 | AQ19: 2.19061
A20: 95 | B20: 1.64469 | C20: 1.62325 | D20: 1.60152 | E20: 1.57948 | F20: 1.55715 | G20: 1.53456 | H20: 1.51171 | I20: 1.48861 | J20: 1.46527 | K20: 1.44171 | L20: 1.41793 | M20: 1.39395 | N20: 1.3698 | O20: 1.34546 | P20: 1.32096 | Q20: 1.29632 | R20: 1.27155 | S20: 1.24666 | T20: 1.22166 | U20: 1.19657 | W20: 95 | X20: 1.68717 | Y20: 1.7091 | Z20: 1.73156 | AA20: 1.75455 | AB20: 1.77807 | AC20: 1.8021 | AD20: 1.82625 | AE20: 1.8501 | AF20: 1.87439 | AG20: 1.89911 | AH20: 1.92426 | AI20: 1.94982 | AJ20: 1.97578 | AK20: 2.00213 | AL20: 2.02886 | AM20: 2.05596 | AN20: 2.08341 | AO20: 2.1112 | AP20: 2.13931 | AQ20: 2.16774
A21: 100 | B21: 1.65404 | C21: 1.63369 | D21: 1.61306 | E21: 1.59216 | F21: 1.571 | G21: 1.54958 | H21: 1.52793 | I21: 1.50604 | J21: 1.48394 | K21: 1.46162 | L21: 1.4391 | M21: 1.41639 | N21: 1.3935 | O21: 1.37045 | P21: 1.34724 | Q21: 1.3239 | R21: 1.30041 | S21: 1.2768 | T21: 1.2531 | U21: 1.22928 | W21: 100 | X21: 1.69439 | Y21: 1.71517 | Z21: 1.73643 | AA21: 1.75818 | AB21: 1.78039 | AC21: 1.80306 | AD21: 1.82607 | AE21: 1.84859 | AF21: 1.87152 | AG21: 1.89484 | AH21: 1.91855 | AI21: 1.94263 | AJ21: 1.96709 | AK21: 1.9919 | AL21: 2.01706 | AM21: 2.04255 | AN21: 2.06836 | AO21: 2.0945 | AP21: 2.12095 | AQ21: 2.14768
A22: 105 | B22: 1.66271 | C22: 1.64334 | D22: 1.62371 | E22: 1.60383 | F22: 1.58372 | G22: 1.56336 | H22: 1.54279 | I22: 1.522 | J22: 1.50101 | K22: 1.47981 | L22: 1.45843 | M22: 1.43687 | N22: 1.41514 | O22: 1.39325 | P22: 1.3712 | Q22: 1.34903 | R22: 1.32672 | S22: 1.30428 | T22: 1.28174 | U22: 1.2591 | W22: 105 | X22: 1.70111 | Y22: 1.72087 | Z22: 1.74106 | AA22: 1.76168 | AB22: 1.78273 | AC22: 1.80419 | AD22: 1.82606 | AE22: 1.84749 | AF22: 1.86919 | AG22: 1.89126 | AH22: 1.91368 | AI22: 1.93644 | AJ22: 1.95954 | AK22: 1.98298 | AL22: 2.00672 | AM22: 2.03079 | AN22: 2.05515 | AO22: 2.07981 | AP22: 2.10475 | AQ22: 2.12997
A23: 110 | B23: 1.67076 | C23: 1.65228 | D23: 1.63357 | E23: 1.61462 | F23: 1.59545 | G23: 1.57606 | H23: 1.55647 | I23: 1.53667 | J23: 1.51668 | K23: 1.49651 | L23: 1.47617 | M23: 1.45564 | N23: 1.43496 | O23: 1.41412 | P23: 1.39315 | Q23: 1.37203 | R23: 1.35079 | S23: 1.32943 | T23: 1.30796 | U23: 1.28639 | W23: 110 | X23: 1.70741 | Y23: 1.72623 | Z23: 1.74545 | AA23: 1.76506 | AB23: 1.78506 | AC23: 1.80543 | AD23: 1.82618 | AE23: 1.84669 | AF23: 1.8673 | AG23: 1.88824 | AH23: 1.9095 | AI23: 1.93108 | AJ23: 1.95297 | AK23: 1.97516 | AL23: 1.99765 | AM23: 2.02042 | AN23: 2.04348 | AO23: 2.06681 | AP23: 2.0904 | AQ23: 2.11426
A24: 115 | B24: 1.67828 | C24: 1.66061 | D24: 1.64272 | E24: 1.62462 | F24: 1.60632 | G24: 1.58781 | H24: 1.56911 | I24: 1.55022 | J24: 1.53115 | K24: 1.5119 | L24: 1.4925 | M24: 1.47293 | N24: 1.4532 | O24: 1.43333 | P24: 1.41332 | Q24: 1.39318 | R24: 1.37291 | S24: 1.35254 | T24: 1.33205 | U24: 1.31146 | W24: 115 | X24: 1.71333 | Y24: 1.73129 | Z24: 1.74963 | AA24: 1.76832 | AB24: 1.78737 | AC24: 1.80676 | AD24: 1.8265 | AE24: 1.84616 | AF24: 1.86577 | AG24: 1.88569 | AH24: 1.90591 | AI24: 1.92641 | AJ24: 1.94721 | AK24: 1.96828 | AL24: 1.98963 | AM24: 2.01124 | AN24: 2.03312 | AO24: 2.05525 | AP24: 2.07763 | AQ24: 2.10024
A25: 120 | B25: 1.68531 | C25: 1.66839 | D25: 1.65126 | E25: 1.63394 | F25: 1.61642 | G25: 1.59872 | H25: 1.58083 | I25: 1.56276 | J25: 1.54454 | K25: 1.52615 | L25: 1.50759 | M25: 1.48889 | N25: 1.47004 | O25: 1.45106 | P25: 1.43193 | Q25: 1.41269 | R25: 1.39332 | S25: 1.37385 | T25: 1.35425 | U25: 1.33457 | W25: 120 | X25: 1.71889 | Y25: 1.73608 | Z25: 1.75361 | AA25: 1.77146 | AB25: 1.78964 | AC25: 1.80815 | AD25: 1.82696 | AE25: 1.84584 | AF25: 1.86455 | AG25: 1.88354 | AH25: 1.90281 | AI25: 1.92234 | AJ25: 1.94215 | AK25: 1.96221 | AL25: 1.98252 | AM25: 2.00308 | AN25: 2.02388 | AO25: 2.04493 | AP25: 2.0662 | AQ25: 2.0877
A26: 125 | B26: 1.69191 | C26: 1.67567 | D26: 1.65924 | E26: 1.64263 | F26: 1.62584 | G26: 1.60887 | H26: 1.59173 | I26: 1.57443 | J26: 1.55697 | K26: 1.53936 | L26: 1.5216 | M26: 1.50369 | N26: 1.48565 | O26: 1.46747 | P26: 1.44916 | Q26: 1.43074 | R26: 1.4122 | S26: 1.39355 | T26: 1.3748 | U26: 1.35595 | W26: 125 | X26: 1.72413 | Y26: 1.74061 | Z26: 1.7574 | AA26: 1.7745 | AB26: 1.79189 | AC26: 1.80958 | AD26: 1.82755 | AE26: 1.84571 | AF26: 1.86359 | AG26: 1.88173 | AH26: 1.90013 | AI26: 1.91878 | AJ26: 1.93768 | AK26: 1.95682 | AL26: 1.97619 | AM26: 1.99579 | AN26: 2.01562 | AO26: 2.03568 | AP26: 2.05594 | AQ26: 2.07642
A27: 130 | B27: 1.69811 | C27: 1.6825 | D27: 1.66672 | E27: 1.65076 | F27: 1.63464 | G27: 1.61836 | H27: 1.60191 | I27: 1.58531 | J27: 1.56856 | K27: 1.55166 | L27: 1.53462 | M27: 1.51745 | N27: 1.50015 | O27: 1.48272 | P27: 1.46516 | Q27: 1.4475 | R27: 1.42972 | S27: 1.41184 | T27: 1.39386 | U27: 1.37577 | W27: 130 | X27: 1.72909 | Y27: 1.74492 | Z27: 1.76103 | AA27: 1.77743 | AB27: 1.79409 | AC27: 1.81103 | AD27: 1.82823 | AE27: 1.84569 | AF27: 1.86285 | AG27: 1.88021 | AH27: 1.89782 | AI27: 1.91565 | AJ27: 1.93372 | AK27: 1.95201 | AL27: 1.97053 | AM27: 1.98925 | AN27: 2.0082 | AO27: 2.02734 | AP27: 2.04669 | AQ27: 2.06623
A28: 135 | B28: 1.70397 | C28: 1.68894 | D28: 1.67375 | E28: 1.6584 | F28: 1.6429 | G28: 1.62723 | H28: 1.61142 | I28: 1.59547 | J28: 1.57937 | K28: 1.56315 | L28: 1.54677 | M28: 1.53028 | N28: 1.51367 | O28: 1.49692 | P28: 1.48007 | Q28: 1.4631 | R28: 1.44604 | S28: 1.42885 | T28: 1.41158 | U28: 1.39422 | W28: 135 | X28: 1.73379 | Y28: 1.74902 | Z28: 1.7645 | AA28: 1.78024 | AB28: 1.79624 | AC28: 1.8125 | AD28: 1.82899 | AE28: 1.84573 | AF28: 1.86228 | AG28: 1.87893 | AH28: 1.89581 | AI28: 1.91291 | AJ28: 1.93022 | AK28: 1.94773 | AL28: 1.96545 | AM28: 1.98337 | AN28: 2.0015 | AO28: 2.01981 | AP28: 2.03832 | AQ28: 2.05701
A29: 140 | B29: 1.7095 | C29: 1.69501 | D29: 1.68038 | E29: 1.66559 | F29: 1.65066 | G29: 1.63557 | H29: 1.62036 | I29: 1.605 | J29: 1.58951 | K29: 1.57389 | L29: 1.55815 | M29: 1.54228 | N29: 1.52629 | O29: 1.5102 | P29: 1.49399 | Q29: 1.47767 | R29: 1.46125 | S29: 1.44473 | T29: 1.42813 | U29: 1.41143 | W29: 140 | X29: 1.73824 | Y29: 1.75291 | Z29: 1.76782 | AA29: 1.78297 | AB29: 1.79836 | AC29: 1.81397 | AD29: 1.82981 | AE29: 1.84589 | AF29: 1.86188 | AG29: 1.87787 | AH29: 1.89408 | AI29: 1.91048 | AJ29: 1.92709 | AK29: 1.94389 | AL29: 1.96089 | AM29: 1.97808 | AN29: 1.99544 | AO29: 2.01299 | AP29: 2.03073 | AQ29: 2.04864
A30: 145 | B30: 1.71473 | C30: 1.70075 | D30: 1.68663 | E30: 1.67236 | F30: 1.65796 | G30: 1.64343 | H30: 1.62875 | I30: 1.61395 | J30: 1.59902 | K30: 1.58398 | L30: 1.56881 | M30: 1.55352 | N30: 1.53813 | O30: 1.52263 | P30: 1.50702 | Q30: 1.49131 | R30: 1.4755 | S30: 1.45959 | T30: 1.44359 | U30: 1.42751 | W30: 145 | X30: 1.74247 | Y30: 1.75663 | Z30: 1.771 | AA30: 1.78559 | AB30: 1.8004 | AC30: 1.81544 | AD30: 1.83069 | AE30: 1.84615 | AF30: 1.8616 | AG30: 1.87699 | AH30: 1.89257 | AI30: 1.90834 | AJ30: 1.9243 | AK30: 1.94044 | AL30: 1.95677 | AM30: 1.97327 | AN30: 1.98995 | AO30: 2.0068 | AP30: 2.02382 | AQ30: 2.041
A31: 150 | B31: 1.7197 | C31: 1.70619 | D31: 1.69255 | E31: 1.67877 | F31: 1.66486 | G31: 1.65082 | H31: 1.63666 | I31: 1.62238 | J31: 1.60799 | K31: 1.59346 | L31: 1.57883 | M31: 1.56409 | N31: 1.54925 | O31: 1.5343 | P31: 1.51925 | Q31: 1.5041 | R31: 1.48885 | S31: 1.47352 | T31: 1.45809 | U31: 1.44259 | W31: 150 | X31: 1.74652 | Y31: 1.76018 | Z31: 1.77406 | AA31: 1.78814 | AB31: 1.80242 | AC31: 1.8169 | AD31: 1.83159 | AE31: 1.84648 | AF31: 1.86144 | AG31: 1.87627 | AH31: 1.89127 | AI31: 1.90645 | AJ31: 1.92182 | AK31: 1.93735 | AL31: 1.95305 | AM31: 1.96892 | AN31: 1.98496 | AO31: 2.00116 | AP31: 2.01751 | AQ31: 2.03402
A32: 155 | B32: 1.72442 | C32: 1.71135 | D32: 1.69815 | E32: 1.68483 | F32: 1.67139 | G32: 1.65782 | H32: 1.64413 | I32: 1.63034 | J32: 1.61643 | K32: 1.60241 | L32: 1.58827 | M32: 1.57404 | N32: 1.55971 | O32: 1.54527 | P32: 1.53074 | Q32: 1.51612 | R32: 1.50139 | S32: 1.48659 | T32: 1.47171 | U32: 1.45674 | W32: 155 | X32: 1.75036 | Y32: 1.76358 | Z32: 1.77698 | AA32: 1.79058 | AB32: 1.80437 | AC32: 1.81836 | AD32: 1.83253 | AE32: 1.84688 | AF32: 1.86138 | AG32: 1.87568 | AH32: 1.89015 | AI32: 1.90478 | AJ32: 1.91959 | AK32: 1.93455 | AL32: 1.94968 | AM32: 1.96497 | AN32: 1.9804 | AO32: 1.996 | AP32: 2.01174 | AQ32: 2.02763
A33: 160 | B33: 1.7289 | C33: 1.71625 | D33: 1.70348 | E33: 1.69058 | F33: 1.67756 | G33: 1.66444 | H33: 1.65121 | I33: 1.63786 | J33: 1.62441 | K33: 1.61084 | L33: 1.59718 | M33: 1.58343 | N33: 1.56957 | O33: 1.55562 | P33: 1.54158 | Q33: 1.52744 | R33: 1.51322 | S33: 1.49892 | T33: 1.48452 | U33: 1.47006 | W33: 160 | X33: 1.75405 | Y33: 1.76683 | Z33: 1.7798 | AA33: 1.79296 | AB33: 1.80629 | AC33: 1.8198 | AD33: 1.83348 | AE33: 1.84734 | AF33: 1.86138 | AG33: 1.8752 | AH33: 1.88918 | AI33: 1.90331 | AJ33: 1.91759 | AK33: 1.93204 | AL33: 1.94662 | AM33: 1.96136 | AN33: 1.97624 | AO33: 1.99127 | AP33: 2.00644 | AQ33: 2.02175
A34: 165 | B34: 1.73319 | C34: 1.72092 | D34: 1.70854 | E34: 1.69604 | F34: 1.68344 | G34: 1.67073 | H34: 1.65791 | I34: 1.64498 | J34: 1.63195 | K34: 1.61883 | L34: 1.60561 | M34: 1.5923 | N34: 1.57889 | O34: 1.56539 | P34: 1.5518 | Q34: 1.53813 | R34: 1.52437 | S34: 1.51053 | T34: 1.49661 | U34: 1.48262 | W34: 165 | X34: 1.75756 | Y34: 1.76995 | Z34: 1.78251 | AA34: 1.79525 | AB34: 1.80815 | AC34: 1.82122 | AD34: 1.83445 | AE34: 1.84785 | AF34: 1.86141 | AG34: 1.87484 | AH34: 1.88835 | AI34: 1.902 | AJ34: 1.91581 | AK34: 1.92975 | AL34: 1.94383 | AM34: 1.95806 | AN34: 1.97244 | AO34: 1.98694 | AP34: 2.00158 | AQ34: 2.01635
A35: 170 | B35: 1.73728 | C35: 1.72537 | D35: 1.71336 | E35: 1.70124 | F35: 1.68902 | G35: 1.67669 | H35: 1.66427 | I35: 1.65174 | J35: 1.63912 | K35: 1.62641 | L35: 1.61359 | M35: 1.60069 | N35: 1.5877 | O35: 1.57464 | P35: 1.56147 | Q35: 1.54823 | R35: 1.53491 | S35: 1.52151 | T35: 1.50803 | U35: 1.49449 | W35: 170 | X35: 1.76093 | Y35: 1.77295 | Z35: 1.78512 | AA35: 1.79747 | AB35: 1.80997 | AC35: 1.82262 | AD35: 1.83543 | AE35: 1.84839 | AF35: 1.86151 | AG35: 1.87456 | AH35: 1.88764 | AI35: 1.90085 | AJ35: 1.91419 | AK35: 1.92768 | AL35: 1.9413 | AM35: 1.95506 | AN35: 1.96894 | AO35: 1.98296 | AP35: 1.9971 | AQ35: 2.01136
A36: 175 | B36: 1.74119 | C36: 1.72963 | D36: 1.71796 | E36: 1.7062 | F36: 1.69433 | G36: 1.68237 | H36: 1.67031 | I36: 1.65817 | J36: 1.64593 | K36: 1.63359 | L36: 1.62117 | M36: 1.60867 | N36: 1.59607 | O36: 1.58339 | P36: 1.57064 | Q36: 1.5578 | R36: 1.54489 | S36: 1.5319 | T36: 1.51885 | U36: 1.50572 | W36: 175 | X36: 1.76416 | Y36: 1.77583 | Z36: 1.78765 | AA36: 1.79961 | AB36: 1.81174 | AC36: 1.824 | AD36: 1.83641 | AE36: 1.84898 | AF36: 1.86168 | AG36: 1.87437 | AH36: 1.88703 | AI36: 1.89982 | AJ36: 1.91275 | AK36: 1.9258 | AL36: 1.93899 | AM36: 1.95229 | AN36: 1.96573 | AO36: 1.97928 | AP36: 1.99296 | AQ36: 2.00675
A37: 180 | B37: 1.74493 | C37: 1.73369 | D37: 1.72236 | E37: 1.71092 | F37: 1.6994 | G37: 1.68779 | H37: 1.67608 | I37: 1.66428 | J37: 1.65239 | K37: 1.64043 | L37: 1.62837 | M37: 1.61623 | N37: 1.60401 | O37: 1.59171 | P37: 1.57934 | Q37: 1.56688 | R37: 1.55436 | S37: 1.54176 | T37: 1.5291 | U37: 1.51636 | W37: 180 | X37: 1.76726 | Y37: 1.7786 | Z37: 1.79007 | AA37: 1.8017 | AB37: 1.81346 | AC37: 1.82536 | AD37: 1.8374 | AE37: 1.84959 | AF37: 1.8619 | AG37: 1.87425 | AH37: 1.88652 | AI37: 1.89892 | AJ37: 1.91145 | AK37: 1.9241 | AL37: 1.93687 | AM37: 1.94976 | AN37: 1.96276 | AO37: 1.97588 | AP37: 1.98912 | AQ37: 2.00248
A38: 185 | B38: 1.74851 | C38: 1.73759 | D38: 1.72656 | E38: 1.71545 | F38: 1.70424 | G38: 1.69295 | H38: 1.68157 | I38: 1.6701 | J38: 1.65856 | K38: 1.64693 | L38: 1.63522 | M38: 1.62343 | N38: 1.61156 | O38: 1.59962 | P38: 1.5876 | Q38: 1.57551 | R38: 1.56335 | S38: 1.55112 | T38: 1.53882 | U38: 1.52646 | W38: 185 | X38: 1.77024 | Y38: 1.78127 | Z38: 1.79242 | AA38: 1.80371 | AB38: 1.81514 | AC38: 1.8267 | AD38: 1.83838 | AE38: 1.85021 | AF38: 1.86215 | AG38: 1.87419 | AH38: 1.8861 | AI38: 1.89813 | AJ38: 1.91028 | AK38: 1.92255 | AL38: 1.93493 | AM38: 1.94743 | AN38: 1.96003 | AO38: 1.97275 | AP38: 1.98558 | AQ38: 1.99852
A39: 190 | B39: 1.75196 | C39: 1.74132 | D39: 1.73059 | E39: 1.71977 | F39: 1.70887 | G39: 1.69789 | H39: 1.68682 | I39: 1.67567 | J39: 1.66444 | K39: 1.65313 | L39: 1.64175 | M39: 1.63028 | N39: 1.61875 | O39: 1.60714 | P39: 1.59547 | Q39: 1.58372 | R39: 1.5719 | S39: 1.56001 | T39: 1.54807 | U39: 1.53605 | W39: 190 | X39: 1.77311 | Y39: 1.78383 | Z39: 1.79468 | AA39: 1.80567 | AB39: 1.81678 | AC39: 1.82801 | AD39: 1.83937 | AE39: 1.85086 | AF39: 1.86246 | AG39: 1.87417 | AH39: 1.88575 | AI39: 1.89743 | AJ39: 1.90923 | AK39: 1.92114 | AL39: 1.93315 | AM39: 1.94529 | AN39: 1.95752 | AO39: 1.96985 | AP39: 1.9823 | AQ39: 1.99484
A40: 195 | B40: 1.75526 | C40: 1.7449 | D40: 1.73445 | E40: 1.72392 | F40: 1.7133 | G40: 1.70261 | H40: 1.69183 | I40: 1.68099 | J40: 1.67005 | K40: 1.65905 | L40: 1.64798 | M40: 1.63683 | N40: 1.62561 | O40: 1.61432 | P40: 1.60296 | Q40: 1.59154 | R40: 1.58005 | S40: 1.56849 | T40: 1.55687 | U40: 1.5452 | W40: 195 | X40: 1.77586 | Y40: 1.78632 | Z40: 1.79688 | AA40: 1.80757 | AB40: 1.81838 | AC40: 1.8293 | AD40: 1.84035 | AE40: 1.85151 | AF40: 1.86279 | AG40: 1.87418 | AH40: 1.88547 | AI40: 1.89683 | AJ40: 1.90828 | AK40: 1.91985 | AL40: 1.93152 | AM40: 1.9433 | AN40: 1.95518 | AO40: 1.96716 | AP40: 1.97923 | AQ40: 1.99141
A41: 200 | B41: 1.75844 | C41: 1.74833 | D41: 1.73815 | E41: 1.72789 | F41: 1.71755 | G41: 1.70713 | H41: 1.69663 | I41: 1.68607 | J41: 1.67543 | K41: 1.66471 | L41: 1.65394 | M41: 1.64308 | N41: 1.63216 | O41: 1.62117 | P41: 1.61011 | Q41: 1.599 | R41: 1.58781 | S41: 1.57657 | T41: 1.56527 | U41: 1.5539 | W41: 200 | X41: 1.77852 | Y41: 1.78871 | Z41: 1.79901 | AA41: 1.80942 | AB41: 1.81994 | AC41: 1.83057 | AD41: 1.84133 | AE41: 1.85219 | AF41: 1.86316 | AG41: 1.87423 | AH41: 1.88541 | AI41: 1.89671 | AJ41: 1.9081 | AK41: 1.91961 | AL41: 1.93122 | AM41: 1.94292 | AN41: 1.95473 | AO41: 1.96665 | AP41: 1.97865 | AQ41: 1.99075
A42: 210 | B42: 1.76445 | C42: 1.75483 | D42: 1.74513 | E42: 1.73537 | F42: 1.72554 | G42: 1.71563 | H42: 1.70566 | I42: 1.69561 | J42: 1.6855 | K42: 1.67532 | L42: 1.66508 | M42: 1.65478 | N42: 1.64441 | O42: 1.63398 | P42: 1.62348 | Q42: 1.61293 | R42: 1.60232 | S42: 1.59165 | T42: 1.58094 | U42: 1.57015 | W42: 210 | X42: 1.78358 | Y42: 1.79326 | Z42: 1.80305 | AA42: 1.81295 | AB42: 1.82294 | AC42: 1.83305 | AD42: 1.84325 | AE42: 1.85355 | AF42: 1.86394 | AG42: 1.87445 | AH42: 1.88505 | AI42: 1.89574 | AJ42: 1.90653 | AK42: 1.91742 | AL42: 1.92839 | AM42: 1.93947 | AN42: 1.95063 | AO42: 1.96188 | AP42: 1.97323 | AQ42: 1.98467
A43: 220 | B43: 1.77003 | C43: 1.76086 | D43: 1.75161 | E43: 1.74229 | F43: 1.73292 | G43: 1.72348 | H43: 1.71398 | I43: 1.70441 | J43: 1.69477 | K43: 1.68509 | L43: 1.67533 | M43: 1.66552 | N43: 1.65566 | O43: 1.64573 | P43: 1.63575 | Q43: 1.62571 | R43: 1.61562 | S43: 1.60547 | T43: 1.59527 | U43: 1.58503 | W43: 220 | X43: 1.78829 | Y43: 1.79753 | Z43: 1.80686 | AA43: 1.81628 | AB43: 1.82581 | AC43: 1.83543 | AD43: 1.84513 | AE43: 1.85492 | AF43: 1.86482 | AG43: 1.87479 | AH43: 1.88486 | AI43: 1.89502 | AJ43: 1.90526 | AK43: 1.91559 | AL43: 1.92601 | AM43: 1.93651 | AN43: 1.9471 | AO43: 1.95776 | AP43: 1.96852 | AQ43: 1.97935
A44: 230 | B44: 1.77525 | C44: 1.76647 | D44: 1.75763 | E44: 1.74873 | F44: 1.73977 | G44: 1.73075 | H44: 1.72168 | I44: 1.71254 | J44: 1.70335 | K44: 1.6941 | L44: 1.68479 | M44: 1.67544 | N44: 1.66602 | O44: 1.65655 | P44: 1.64703 | Q44: 1.63746 | R44: 1.62784 | S44: 1.61816 | T44: 1.60844 | U44: 1.59868 | W44: 230 | X44: 1.7927 | Y44: 1.80154 | Z44: 1.81045 | AA44: 1.81945 | AB44: 1.82854 | AC44: 1.83771 | AD44: 1.84697 | AE44: 1.85632 | AF44: 1.86574 | AG44: 1.87524 | AH44: 1.88483 | AI44: 1.8945 | AJ44: 1.90424 | AK44: 1.91407 | AL44: 1.92398 | AM44: 1.93397 | AN44: 1.94403 | AO44: 1.95417 | AP44: 1.96439 | AQ44: 1.97467
A45: 240 | B45: 1.78012 | C45: 1.77171 | D45: 1.76325 | E45: 1.75473 | F45: 1.74616 | G45: 1.73752 | H45: 1.72883 | I45: 1.72009 | J45: 1.71129 | K45: 1.70245 | L45: 1.69356 | M45: 1.6846 | N45: 1.67561 | O45: 1.66656 | P45: 1.65746 | Q45: 1.64832 | R45: 1.63913 | S45: 1.62988 | T45: 1.6206 | U45: 1.61128 | W45: 240 | X45: 1.79685 | Y45: 1.8053 | Z45: 1.81384 | AA45: 1.82246 | AB45: 1.83115 | AC45: 1.83992 | AD45: 1.84876 | AE45: 1.85769 | AF45: 1.86669 | AG45: 1.87576 | AH45: 1.88492 | AI45: 1.89415 | AJ45: 1.90345 | AK45: 1.91282 | AL45: 1.92226 | AM45: 1.93178 | AN45: 1.94137 | AO45: 1.95102 | AP45: 1.96075 | AQ45: 1.97055
A46: 250 | B46: 1.78469 | C46: 1.77662 | D46: 1.76851 | E46: 1.76033 | F46: 1.75211 | G46: 1.74383 | H46: 1.7355 | I46: 1.72713 | J46: 1.7187 | K46: 1.71022 | L46: 1.7017 | M46: 1.69312 | N46: 1.68451 | O46: 1.67584 | P46: 1.66714 | Q46: 1.65838 | R46: 1.64959 | S46: 1.64074 | T46: 1.63186 | U46: 1.62293 | W46: 250 | X46: 1.80075 | Y46: 1.80887 | Z46: 1.81706 | AA46: 1.82531 | AB46: 1.83364 | AC46: 1.84204 | AD46: 1.85051 | AE46: 1.85906 | AF46: 1.86768 | AG46: 1.87636 | AH46: 1.88511 | AI46: 1.89393 | AJ46: 1.90282 | AK46: 1.91178 | AL46: 1.9208 | AM46: 1.92989 | AN46: 1.93904 | AO46: 1.94827 | AP46: 1.95755 | AQ46: 1.9669
A47: 260 | B47: 1.789 | C47: 1.78125 | D47: 1.77344 | E47: 1.76558 | F47: 1.75768 | G47: 1.74973 | H47: 1.74173 | I47: 1.73369 | J47: 1.72561 | K47: 1.71747 | L47: 1.70928 | M47: 1.70107 | N47: 1.6928 | O47: 1.68449 | P47: 1.67613 | Q47: 1.66774 | R47: 1.6593 | S47: 1.65082 | T47: 1.64231 | U47: 1.63375 | W47: 260 | X47: 1.80444 | Y47: 1.81223 | Z47: 1.8201 | AA47: 1.82803 | AB47: 1.83603 | AC47: 1.84409 | AD47: 1.85222 | AE47: 1.86041 | AF47: 1.86867 | AG47: 1.87699 | AH47: 1.88538 | AI47: 1.89383 | AJ47: 1.90234 | AK47: 1.91092 | AL47: 1.91956 | AM47: 1.92826 | AN47: 1.93702 | AO47: 1.94583 | AP47: 1.95471 | AQ47: 1.96366
A48: 270 | B48: 1.79306 | C48: 1.7856 | D48: 1.77808 | E48: 1.77052 | F48: 1.76292 | G48: 1.75528 | H48: 1.74758 | I48: 1.73984 | J48: 1.73207 | K48: 1.72425 | L48: 1.71638 | M48: 1.70849 | N48: 1.70054 | O48: 1.69256 | P48: 1.68453 | Q48: 1.67647 | R48: 1.66836 | S48: 1.66022 | T48: 1.65204 | U48: 1.64382 | W48: 270 | X48: 1.80792 | Y48: 1.81543 | Z48: 1.823 | AA48: 1.83062 | AB48: 1.83831 | AC48: 1.84606 | AD48: 1.85387 | AE48: 1.86174 | AF48: 1.86967 | AG48: 1.87767 | AH48: 1.88572 | AI48: 1.89382 | AJ48: 1.902 | AK48: 1.91023 | AL48: 1.91851 | AM48: 1.92684 | AN48: 1.93524 | AO48: 1.94369 | AP48: 1.9522 | AQ48: 1.96077
A49: 280 | B49: 1.7969 | C49: 1.7897 | D49: 1.78245 | E49: 1.77517 | F49: 1.76784 | G49: 1.76048 | H49: 1.75307 | I49: 1.74563 | J49: 1.73814 | K49: 1.73061 | L49: 1.72304 | M49: 1.71543 | N49: 1.70778 | O49: 1.70011 | P49: 1.69238 | Q49: 1.68463 | R49: 1.67682 | S49: 1.669 | T49: 1.66113 | U49: 1.65323 | W49: 280 | X49: 1.81123 | Y49: 1.81846 | Z49: 1.82575 | AA49: 1.83309 | AB49: 1.84051 | AC49: 1.84797 | AD49: 1.85549 | AE49: 1.86305 | AF49: 1.87068 | AG49: 1.87837 | AH49: 1.88611 | AI49: 1.8939 | AJ49: 1.90175 | AK49: 1.90965 | AL49: 1.91761 | AM49: 1.92562 | AN49: 1.93368 | AO49: 1.9418 | AP49: 1.94996 | AQ49: 1.95819
A50: 290 | B50: 1.80053 | C50: 1.79358 | D50: 1.7866 | E50: 1.77956 | F50: 1.7725 | G50: 1.76539 | H50: 1.75825 | I50: 1.75106 | J50: 1.74384 | K50: 1.73659 | L50: 1.72929 | M50: 1.72196 | N50: 1.71459 | O50: 1.70718 | P50: 1.69975 | Q50: 1.69227 | R50: 1.68477 | S50: 1.67722 | T50: 1.66964 | U50: 1.66204 | W50: 290 | X50: 1.81436 | Y50: 1.82134 | Z50: 1.82838 | AA50: 1.83546 | AB50: 1.84261 | AC50: 1.8498 | AD50: 1.85704 | AE50: 1.86434 | AF50: 1.87169 | AG50: 1.87909 | AH50: 1.88655 | AI50: 1.89405 | AJ50: 1.90161 | AK50: 1.90921 | AL50: 1.91686 | AM50: 1.92456 | AN50: 1.93232 | AO50: 1.94012 | AP50: 1.94798 | AQ50: 1.95587
A51: 300 | B51: 1.80398 | C51: 1.79726 | D51: 1.79051 | E51: 1.78371 | F51: 1.77689 | G51: 1.77003 | H51: 1.76313 | I51: 1.75619 | J51: 1.74921 | K51: 1.74222 | L51: 1.73518 | M51: 1.7281 | N51: 1.72099 | O51: 1.71385 | P51: 1.70667 | Q51: 1.69946 | R51: 1.69221 | S51: 1.68494 | T51: 1.67764 | U51: 1.6703 | W51: 300 | X51: 1.81735 | Y51: 1.8241 | Z51: 1.83088 | AA51: 1.83773 | AB51: 1.84463 | AC51: 1.85157 | AD51: 1.85856 | AE51: 1.8656 | AF51: 1.87269 | AG51: 1.87983 | AH51: 1.88702 | AI51: 1.89425 | AJ51: 1.90152 | AK51: 1.90885 | AL51: 1.91623 | AM51: 1.92365 | AN51: 1.93111 | AO51: 1.93863 | AP51: 1.94619 | AQ51: 1.95379
A52: 310 | B52: 1.80725 | C52: 1.80076 | D52: 1.79422 | E52: 1.78766 | F52: 1.78105 | G52: 1.77441 | H52: 1.76774 | I52: 1.76104 | J52: 1.7543 | K52: 1.74753 | L52: 1.74072 | M52: 1.73389 | N52: 1.72703 | O52: 1.72012 | P52: 1.71319 | Q52: 1.70622 | R52: 1.69923 | S52: 1.69221 | T52: 1.68516 | U52: 1.67807 | W52: 310 | X52: 1.82019 | Y52: 1.82672 | Z52: 1.83329 | AA52: 1.83991 | AB52: 1.84657 | AC52: 1.85328 | AD52: 1.86003 | AE52: 1.86683 | AF52: 1.87368 | AG52: 1.88058 | AH52: 1.88751 | AI52: 1.89449 | AJ52: 1.90152 | AK52: 1.90859 | AL52: 1.91571 | AM52: 1.92286 | AN52: 1.93006 | AO52: 1.93731 | AP52: 1.94459 | AQ52: 1.95192
A53: 320 | B53: 1.81037 | C53: 1.80408 | D53: 1.79775 | E53: 1.79139 | F53: 1.785 | G53: 1.77857 | H53: 1.77211 | I53: 1.76563 | J53: 1.75911 | K53: 1.75256 | L53: 1.74598 | M53: 1.73937 | N53: 1.73272 | O53: 1.72605 | P53: 1.71935 | Q53: 1.71262 | R53: 1.70585 | S53: 1.69906 | T53: 1.69225 | U53: 1.6854 | W53: 320 | X53: 1.82291 | Y53: 1.82922 | Z53: 1.83559 | AA53: 1.84199 | AB53: 1.84844 | AC53: 1.85494 | AD53: 1.86147 | AE53: 1.86804 | AF53: 1.87466 | AG53: 1.88133 | AH53: 1.88804 | AI53: 1.89478 | AJ53: 1.90156 | AK53: 1.9084 | AL53: 1.91527 | AM53: 1.92218 | AN53: 1.92913 | AO53: 1.93613 | AP53: 1.94316 | AQ53: 1.95024
A54: 330 | B54: 1.81335 | C54: 1.80724 | D54: 1.80111 | E54: 1.79495 | F54: 1.78876 | G54: 1.78252 | H54: 1.77627 | I54: 1.76999 | J54: 1.76367 | K54: 1.75733 | L54: 1.75095 | M54: 1.74455 | N54: 1.73812 | O54: 1.73165 | P54: 1.72517 | Q54: 1.71865 | R54: 1.7121 | S54: 1.70554 | T54: 1.69893 | U54: 1.69231 | W54: 330 | X54: 1.8255 | Y54: 1.83162 | Z54: 1.83779 | AA54: 1.844 | AB54: 1.85024 | AC54: 1.85653 | AD54: 1.86286 | AE54: 1.86923 | AF54: 1.87563 | AG54: 1.88209 | AH54: 1.88857 | AI54: 1.8951 | AJ54: 1.90167 | AK54: 1.90827 | AL54: 1.91492 | AM54: 1.92159 | AN54: 1.92832 | AO54: 1.93507 | AP54: 1.94187 | AQ54: 1.9487
A55: 340 | B55: 1.81618 | C55: 1.81026 | D55: 1.80432 | E55: 1.79834 | F55: 1.79233 | G55: 1.78629 | H55: 1.78022 | I55: 1.77413 | J55: 1.768 | K55: 1.76185 | L55: 1.75567 | M55: 1.74947 | N55: 1.74323 | O55: 1.73697 | P55: 1.73068 | Q55: 1.72437 | R55: 1.71803 | S55: 1.71166 | T55: 1.70527 | U55: 1.69885 | W55: 340 | X55: 1.82799 | Y55: 1.83392 | Z55: 1.8399 | AA55: 1.84592 | AB55: 1.85198 | AC55: 1.85808 | AD55: 1.8642 | AE55: 1.87038 | AF55: 1.87659 | AG55: 1.88284 | AH55: 1.88913 | AI55: 1.89545 | AJ55: 1.9018 | AK55: 1.90819 | AL55: 1.91463 | AM55: 1.92109 | AN55: 1.9276 | AO55: 1.93414 | AP55: 1.94072 | AQ55: 1.94732
A56: 350 | B56: 1.8189 | C56: 1.81315 | D56: 1.80737 | E56: 1.80157 | F56: 1.79573 | G56: 1.78987 | H56: 1.78398 | I56: 1.77806 | J56: 1.77211 | K56: 1.76615 | L56: 1.76015 | M56: 1.75414 | N56: 1.74808 | O56: 1.74201 | P56: 1.73592 | Q56: 1.72979 | R56: 1.72364 | S56: 1.71747 | T56: 1.71127 | U56: 1.70505 | W56: 350 | X56: 1.83036 | Y56: 1.83613 | Z56: 1.84193 | AA56: 1.84778 | AB56: 1.85366 | AC56: 1.85957 | AD56: 1.86553 | AE56: 1.87151 | AF56: 1.87753 | AG56: 1.88359 | AH56: 1.88969 | AI56: 1.89581 | AJ56: 1.90198 | AK56: 1.90818 | AL56: 1.91441 | AM56: 1.92068 | AN56: 1.92698 | AO56: 1.93331 | AP56: 1.93967 | AQ56: 1.94608
A57: 360 | B57: 1.8215 | C57: 1.81591 | D57: 1.81029 | E57: 1.80465 | F57: 1.79898 | G57: 1.79328 | H57: 1.78756 | I57: 1.78182 | J57: 1.77604 | K57: 1.77025 | L57: 1.76442 | M57: 1.75858 | N57: 1.7527 | O57: 1.74681 | P57: 1.74089 | Q57: 1.73494 | R57: 1.72898 | S57: 1.72299 | T57: 1.71697 | U57: 1.71094 | W57: 360 | X57: 1.83264 | Y57: 1.83825 | Z57: 1.84389 | AA57: 1.84957 | AB57: 1.85527 | AC57: 1.86102 | AD57: 1.86681 | AE57: 1.87261 | AF57: 1.87846 | AG57: 1.88434 | AH57: 1.89026 | AI57: 1.8962 | AJ57: 1.90218 | AK57: 1.90819 | AL57: 1.91424 | AM57: 1.92032 | AN57: 1.92643 | AO57: 1.93257 | AP57: 1.93874 | AQ57: 1.94494
A58: 370 | B58: 1.82399 | C58: 1.81855 | D58: 1.81309 | E58: 1.8076 | F58: 1.80209 | G58: 1.79655 | H58: 1.79098 | I58: 1.7854 | J58: 1.77978 | K58: 1.77415 | L58: 1.76849 | M58: 1.76281 | N58: 1.75711 | O58: 1.75137 | P58: 1.74562 | Q58: 1.73985 | R58: 1.73406 | S58: 1.72824 | T58: 1.7224 | U58: 1.71653 | W58: 370 | X58: 1.83483 | Y58: 1.84029 | Z58: 1.84577 | AA58: 1.85129 | AB58: 1.85685 | AC58: 1.86242 | AD58: 1.86805 | AE58: 1.87369 | AF58: 1.87938 | AG58: 1.88509 | AH58: 1.89083 | AI58: 1.8966 | AJ58: 1.90241 | AK58: 1.90825 | AL58: 1.91412 | AM58: 1.92002 | AN58: 1.92595 | AO58: 1.93191 | AP58: 1.93789 | AQ58: 1.94392
A59: 380 | B59: 1.82639 | C59: 1.82109 | D59: 1.81577 | E59: 1.81043 | F59: 1.80506 | G59: 1.79967 | H59: 1.79426 | I59: 1.78883 | J59: 1.78336 | K59: 1.77788 | L59: 1.77238 | M59: 1.76685 | N59: 1.7613 | O59: 1.75573 | P59: 1.75014 | Q59: 1.74452 | R59: 1.73889 | S59: 1.73323 | T59: 1.72755 | U59: 1.72186 | W59: 380 | X59: 1.83694 | Y59: 1.84225 | Z59: 1.84758 | AA59: 1.85296 | AB59: 1.85836 | AC59: 1.86379 | AD59: 1.86925 | AE59: 1.87475 | AF59: 1.88027 | AG59: 1.88582 | AH59: 1.89141 | AI59: 1.89702 | AJ59: 1.90266 | AK59: 1.90834 | AL59: 1.91404 | AM59: 1.91977 | AN59: 1.92553 | AO59: 1.93132 | AP59: 1.93714 | AQ59: 1.94298
A60: 390 | B60: 1.82868 | C60: 1.82352 | D60: 1.81834 | E60: 1.81314 | F60: 1.80791 | G60: 1.80266 | H60: 1.79739 | I60: 1.7921 | J60: 1.78678 | K60: 1.78145 | L60: 1.77609 | M60: 1.77071 | N60: 1.76532 | O60: 1.75989 | P60: 1.75445 | Q60: 1.74898 | R60: 1.74351 | S60: 1.738 | T60: 1.73248 | U60: 1.72693 | W60: 390 | X60: 1.83896 | Y60: 1.84413 | Z60: 1.84933 | AA60: 1.85457 | AB60: 1.85982 | AC60: 1.86512 | AD60: 1.87043 | AE60: 1.87578 | AF60: 1.88115 | AG60: 1.88656 | AH60: 1.892 | AI60: 1.89746 | AJ60: 1.90294 | AK60: 1.90846 | AL60: 1.91401 | AM60: 1.91957 | AN60: 1.92517 | AO60: 1.9308 | AP60: 1.93646 | AQ60: 1.94213
A61: 400 | B61: 1.83089 | C61: 1.82586 | D61: 1.82081 | E61: 1.81574 | F61: 1.81064 | G61: 1.80553 | H61: 1.80039 | I61: 1.79524 | J61: 1.79006 | K61: 1.78486 | L61: 1.77964 | M61: 1.7744 | N61: 1.76915 | O61: 1.76387 | P61: 1.75856 | Q61: 1.75324 | R61: 1.74791 | S61: 1.74255 | T61: 1.73717 | U61: 1.73177 | W61: 400 | X61: 1.84091 | Y61: 1.84596 | Z61: 1.85103 | AA61: 1.85612 | AB61: 1.86124 | AC61: 1.8664 | AD61: 1.87158 | AE61: 1.87678 | AF61: 1.88202 | AG61: 1.88728 | AH61: 1.89258 | AI61: 1.89789 | AJ61: 1.90323 | AK61: 1.9086 | AL61: 1.914 | AM61: 1.91942 | AN61: 1.92486 | AO61: 1.93034 | AP61: 1.93584 | AQ61: 1.94136
A62: 410 | B62: 1.83301 | C62: 1.82811 | D62: 1.82318 | E62: 1.81824 | F62: 1.81327 | G62: 1.80828 | H62: 1.80327 | I62: 1.79825 | J62: 1.7932 | K62: 1.78814 | L62: 1.78305 | M62: 1.77794 | N62: 1.77281 | O62: 1.76767 | P62: 1.7625 | Q62: 1.75732 | R62: 1.75212 | S62: 1.7469 | T62: 1.74166 | U62: 1.7364 | W62: 410 | X62: 1.84279 | Y62: 1.84771 | Z62: 1.85265 | AA62: 1.85763 | AB62: 1.86263 | AC62: 1.86765 | AD62: 1.87269 | AE62: 1.87777 | AF62: 1.88287 | AG62: 1.888 | AH62: 1.89315 | AI62: 1.89833 | AJ62: 1.90354 | AK62: 1.90877 | AL62: 1.91401 | AM62: 1.9193 | AN62: 1.9246 | AO62: 1.92993 | AP62: 1.93528 | AQ62: 1.94066
A63: 420 | B63: 1.83507 | C63: 1.83028 | D63: 1.82546 | E63: 1.82064 | F63: 1.81579 | G63: 1.81093 | H63: 1.80604 | I63: 1.80114 | J63: 1.79621 | K63: 1.79127 | L63: 1.78631 | M63: 1.78133 | N63: 1.77633 | O63: 1.77132 | P63: 1.76628 | Q63: 1.76122 | R63: 1.75615 | S63: 1.75107 | T63: 1.74596 | U63: 1.74083 | W63: 420 | X63: 1.84461 | Y63: 1.84941 | Z63: 1.85423 | AA63: 1.85908 | AB63: 1.86396 | AC63: 1.86886 | AD63: 1.87379 | AE63: 1.87874 | AF63: 1.88371 | AG63: 1.88871 | AH63: 1.89373 | AI63: 1.89878 | AJ63: 1.90385 | AK63: 1.90895 | AL63: 1.91407 | AM63: 1.91922 | AN63: 1.92438 | AO63: 1.92957 | AP63: 1.93478 | AQ63: 1.94003
A64: 430 | B64: 1.83704 | C64: 1.83236 | D64: 1.82767 | E64: 1.82296 | F64: 1.81823 | G64: 1.81348 | H64: 1.80871 | I64: 1.80392 | J64: 1.79911 | K64: 1.79429 | L64: 1.78944 | M64: 1.78458 | N64: 1.77971 | O64: 1.77481 | P64: 1.7699 | Q64: 1.76497 | R64: 1.76002 | S64: 1.75506 | T64: 1.75007 | U64: 1.74508 | W64: 430 | X64: 1.84636 | Y64: 1.85105 | Z64: 1.85576 | AA64: 1.8605 | AB64: 1.86525 | AC64: 1.87004 | AD64: 1.87484 | AE64: 1.87967 | AF64: 1.88453 | AG64: 1.88941 | AH64: 1.89431 | AI64: 1.89923 | AJ64: 1.90417 | AK64: 1.90915 | AL64: 1.91414 | AM64: 1.91915 | AN64: 1.9242 | AO64: 1.92925 | AP64: 1.93433 | AQ64: 1.93944
A65: 440 | B65: 1.83895 | C65: 1.83438 | D65: 1.82979 | E65: 1.82518 | F65: 1.82056 | G65: 1.81592 | H65: 1.81126 | I65: 1.80659 | J65: 1.80189 | K65: 1.79718 | L65: 1.79245 | M65: 1.7877 | N65: 1.78295 | O65: 1.77817 | P65: 1.77337 | Q65: 1.76856 | R65: 1.76373 | S65: 1.75888 | T65: 1.75403 | U65: 1.74914 | W65: 440 | X65: 1.84805 | Y65: 1.85264 | Z65: 1.85724 | AA65: 1.86187 | AB65: 1.86651 | AC65: 1.87119 | AD65: 1.87588 | AE65: 1.8806 | AF65: 1.88533 | AG65: 1.8901 | AH65: 1.89488 | AI65: 1.89968 | AJ65: 1.90451 | AK65: 1.90937 | AL65: 1.91424 | AM65: 1.91913 | AN65: 1.92404 | AO65: 1.92898 | AP65: 1.93393 | AQ65: 1.93891
A66: 450 | B66: 1.84079 | C66: 1.83632 | D66: 1.83184 | E66: 1.82734 | F66: 1.82282 | G66: 1.81828 | H66: 1.81373 | I66: 1.80916 | J66: 1.80457 | K66: 1.79997 | L66: 1.79535 | M66: 1.79071 | N66: 1.78607 | O66: 1.78139 | P66: 1.77671 | Q66: 1.77201 | R66: 1.7673 | S66: 1.76256 | T66: 1.75781 | U66: 1.75305 | W66: 450 | X66: 1.8497 | Y66: 1.85418 | Z66: 1.85867 | AA66: 1.8632 | AB66: 1.86774 | AC66: 1.8723 | AD66: 1.87688 | AE66: 1.8815 | AF66: 1.88612 | AG66: 1.89077 | AH66: 1.89545 | AI66: 1.90014 | AJ66: 1.90485 | AK66: 1.90959 | AL66: 1.91434 | AM66: 1.91912 | AN66: 1.92392 | AO66: 1.92874 | AP66: 1.93358 | AQ66: 1.93844
A67: 460 | B67: 1.84257 | C67: 1.8382 | D67: 1.83381 | E67: 1.82941 | F67: 1.82499 | G67: 1.82056 | H67: 1.81611 | I67: 1.81163 | J67: 1.80716 | K67: 1.80265 | L67: 1.79813 | M67: 1.79361 | N67: 1.78906 | O67: 1.7845 | P67: 1.77992 | Q67: 1.77532 | R67: 1.77072 | S67: 1.7661 | T67: 1.76145 | U67: 1.7568 | W67: 460 | X67: 1.85128 | Y67: 1.85567 | Z67: 1.86007 | AA67: 1.86449 | AB67: 1.86893 | AC67: 1.87339 | AD67: 1.87787 | AE67: 1.88238 | AF67: 1.8869 | AG67: 1.89144 | AH67: 1.89601 | AI67: 1.9006 | AJ67: 1.9052 | AK67: 1.90983 | AL67: 1.91447 | AM67: 1.91914 | AN67: 1.92382 | AO67: 1.92853 | AP67: 1.93325 | AQ67: 1.938
A68: 470 | B68: 1.84429 | C68: 1.84002 | D68: 1.83572 | E68: 1.83142 | F68: 1.82709 | G68: 1.82275 | H68: 1.8184 | I68: 1.81403 | J68: 1.80964 | K68: 1.80524 | L68: 1.80083 | M68: 1.7964 | N68: 1.79195 | O68: 1.78749 | P68: 1.78301 | Q68: 1.77852 | R68: 1.77401 | S68: 1.76949 | T68: 1.76496 | U68: 1.76041 | W68: 470 | X68: 1.85282 | Y68: 1.85711 | Z68: 1.86141 | AA68: 1.86574 | AB68: 1.87009 | AC68: 1.87445 | AD68: 1.87883 | AE68: 1.88324 | AF68: 1.88767 | AG68: 1.89211 | AH68: 1.89657 | AI68: 1.90105 | AJ68: 1.90556 | AK68: 1.91008 | AL68: 1.91461 | AM68: 1.91918 | AN68: 1.92376 | AO68: 1.92835 | AP68: 1.93296 | AQ68: 1.9376
A69: 480 | B69: 1.84596 | C69: 1.84177 | D69: 1.83757 | E69: 1.83336 | F69: 1.82912 | G69: 1.82488 | H69: 1.82061 | I69: 1.81634 | J69: 1.81205 | K69: 1.80774 | L69: 1.80341 | M69: 1.79908 | N69: 1.79473 | O69: 1.79036 | P69: 1.78599 | Q69: 1.78159 | R69: 1.77719 | S69: 1.77276 | T69: 1.76833 | U69: 1.76388 | W69: 480 | X69: 1.85431 | Y69: 1.85851 | Z69: 1.86272 | AA69: 1.86695 | AB69: 1.87121 | AC69: 1.87548 | AD69: 1.87977 | AE69: 1.88408 | AF69: 1.88841 | AG69: 1.89276 | AH69: 1.89712 | AI69: 1.90151 | AJ69: 1.90591 | AK69: 1.91034 | AL69: 1.91477 | AM69: 1.91923 | AN69: 1.92371 | AO69: 1.9282 | AP69: 1.93271 | AQ69: 1.93725
A70: 490 | B70: 1.84758 | C70: 1.84348 | D70: 1.83937 | E70: 1.83523 | F70: 1.83109 | G70: 1.82693 | H70: 1.82275 | I70: 1.81857 | J70: 1.81437 | K70: 1.81015 | L70: 1.80592 | M70: 1.80167 | N70: 1.79741 | O70: 1.79314 | P70: 1.78885 | Q70: 1.78456 | R70: 1.78024 | S70: 1.77592 | T70: 1.77157 | U70: 1.76722 | W70: 490 | X70: 1.85576 | Y70: 1.85987 | Z70: 1.86399 | AA70: 1.86814 | AB70: 1.87231 | AC70: 1.87649 | AD70: 1.88069 | AE70: 1.88491 | AF70: 1.88915 | AG70: 1.8934 | AH70: 1.89767 | AI70: 1.90197 | AJ70: 1.90628 | AK70: 1.91059 | AL70: 1.91494 | AM70: 1.9193 | AN70: 1.92368 | AO70: 1.92807 | AP70: 1.93249 | AQ70: 1.93692
A71: 500 | B71: 1.84914 | C71: 1.84513 | D71: 1.8411 | E71: 1.83705 | F71: 1.83298 | G71: 1.82892 | H71: 1.82482 | I71: 1.82072 | J71: 1.81661 | K71: 1.81247 | L71: 1.80834 | M71: 1.80417 | N71: 1.80001 | O71: 1.79582 | P71: 1.79163 | Q71: 1.78742 | R71: 1.78319 | S71: 1.77896 | T71: 1.77471 | U71: 1.77044 | W71: 500 | X71: 1.85716 | Y71: 1.86119 | Z71: 1.86523 | AA71: 1.86929 | AB71: 1.87337 | AC71: 1.87747 | AD71: 1.88158 | AE71: 1.88572 | AF71: 1.88986 | AG71: 1.89403 | AH71: 1.89821 | AI71: 1.90242 | AJ71: 1.90663 | AK71: 1.91087 | AL71: 1.91512 | AM71: 1.91938 | AN71: 1.92368 | AO71: 1.92798 | AP71: 1.93229 | AQ71: 1.93663
A72: 550 | B72: 1.85632 | C72: 1.85267 | D72: 1.84901 | E72: 1.84533 | F72: 1.84165 | G72: 1.83794 | H72: 1.83423 | I72: 1.83051 | J72: 1.82678 | K72: 1.82303 | L72: 1.81928 | M72: 1.81551 | N72: 1.81173 | O72: 1.80794 | P72: 1.80414 | Q72: 1.80033 | R72: 1.79651 | S72: 1.79268 | T72: 1.78883 | U72: 1.78497 | W72: 550 | X72: 1.86361 | Y72: 1.86727 | Z72: 1.87094 | AA72: 1.87462 | AB72: 1.87833 | AC72: 1.88204 | AD72: 1.88578 | AE72: 1.88952 | AF72: 1.89327 | AG72: 1.89705 | AH72: 1.90084 | AI72: 1.90464 | AJ72: 1.90845 | AK72: 1.91228 | AL72: 1.91613 | AM72: 1.91998 | AN72: 1.92386 | AO72: 1.92774 | AP72: 1.93164 | AQ72: 1.93555
A73: 600 | B73: 1.86257 | C73: 1.85922 | D73: 1.85587 | E73: 1.8525 | F73: 1.84913 | G73: 1.84574 | H73: 1.84235 | I73: 1.83894 | J73: 1.83552 | K73: 1.8321 | L73: 1.82866 | M73: 1.82522 | N73: 1.82177 | O73: 1.8183 | P73: 1.81483 | Q73: 1.81134 | R73: 1.80785 | S73: 1.80435 | T73: 1.80085 | U73: 1.79733 | W73: 600 | X73: 1.86925 | Y73: 1.87259 | Z73: 1.87596 | AA73: 1.87934 | AB73: 1.88273 | AC73: 1.88612 | AD73: 1.88954 | AE73: 1.89296 | AF73: 1.8964 | AG73: 1.89984 | AH73: 1.90331 | AI73: 1.90677 | AJ73: 1.91026 | AK73: 1.91375 | AL73: 1.91727 | AM73: 1.92078 | AN73: 1.92431 | AO73: 1.92786 | AP73: 1.93141 | AQ73: 1.93497
A74: 650 | B74: 1.86807 | C74: 1.86498 | D74: 1.86189 | E74: 1.85878 | F74: 1.85567 | G74: 1.85254 | H74: 1.84942 | I74: 1.84627 | J74: 1.84313 | K74: 1.83997 | L74: 1.83681 | M74: 1.83364 | N74: 1.83045 | O74: 1.82727 | P74: 1.82408 | Q74: 1.82087 | R74: 1.81766 | S74: 1.81444 | T74: 1.8112 | U74: 1.80797 | W74: 650 | X74: 1.87423 | Y74: 1.87733 | Z74: 1.88043 | AA74: 1.88354 | AB74: 1.88667 | AC74: 1.8898 | AD74: 1.89295 | AE74: 1.8961 | AF74: 1.89926 | AG74: 1.90244 | AH74: 1.90562 | AI74: 1.90882 | AJ74: 1.91202 | AK74: 1.91523 | AL74: 1.91846 | AM74: 1.92169 | AN74: 1.92494 | AO74: 1.92819 | AP74: 1.93145 | AQ74: 1.93473
A75: 700 | B75: 1.87297 | C75: 1.8701 | D75: 1.86722 | E75: 1.86435 | F75: 1.86145 | G75: 1.85856 | H75: 1.85566 | I75: 1.85274 | J75: 1.84982 | K75: 1.8469 | L75: 1.84397 | M75: 1.84102 | N75: 1.83808 | O75: 1.83513 | P75: 1.83217 | Q75: 1.8292 | R75: 1.82622 | S75: 1.82324 | T75: 1.82025 | U75: 1.81726 | W75: 700 | X75: 1.87869 | Y75: 1.88156 | Z75: 1.88443 | AA75: 1.88732 | AB75: 1.89022 | AC75: 1.89313 | AD75: 1.89604 | AE75: 1.89897 | AF75: 1.9019 | AG75: 1.90484 | AH75: 1.90779 | AI75: 1.91074 | AJ75: 1.91371 | AK75: 1.91669 | AL75: 1.91967 | AM75: 1.92267 | AN75: 1.92567 | AO75: 1.92868 | AP75: 1.93169 | AQ75: 1.93473
A76: 750 | B76: 1.87736 | C76: 1.87468 | D76: 1.872 | E76: 1.86931 | F76: 1.86662 | G76: 1.86391 | H76: 1.86121 | I76: 1.8585 | J76: 1.85578 | K76: 1.85305 | L76: 1.85031 | M76: 1.84758 | N76: 1.84483 | O76: 1.84208 | P76: 1.83933 | Q76: 1.83656 | R76: 1.83378 | S76: 1.83102 | T76: 1.82823 | U76: 1.82545 | W76: 750 | X76: 1.8827 | Y76: 1.88537 | Z76: 1.88806 | AA76: 1.89076 | AB76: 1.89346 | AC76: 1.89616 | AD76: 1.89888 | AE76: 1.90161 | AF76: 1.90434 | AG76: 1.90708 | AH76: 1.90982 | AI76: 1.91258 | AJ76: 1.91534 | AK76: 1.91811 | AL76: 1.92088 | AM76: 1.92367 | AN76: 1.92647 | AO76: 1.92927 | AP76: 1.93207 | AQ76: 1.93489
A77: 800 | B77: 1.88132 | C77: 1.87882 | D77: 1.8763 | E77: 1.87379 | F77: 1.87126 | G77: 1.86873 | H77: 1.86619 | I77: 1.86365 | J77: 1.8611 | K77: 1.85855 | L77: 1.85599 | M77: 1.85343 | N77: 1.85086 | O77: 1.84829 | P77: 1.84571 | Q77: 1.84312 | R77: 1.84053 | S77: 1.83794 | T77: 1.83533 | U77: 1.83273 | W77: 800 | X77: 1.88633 | Y77: 1.88884 | Z77: 1.89135 | AA77: 1.89388 | AB77: 1.89641 | AC77: 1.89894 | AD77: 1.90149 | AE77: 1.90404 | AF77: 1.9066 | AG77: 1.90916 | AH77: 1.91174 | AI77: 1.91431 | AJ77: 1.9169 | AK77: 1.91948 | AL77: 1.92208 | AM77: 1.92468 | AN77: 1.9273 | AO77: 1.92991 | AP77: 1.93253 | AQ77: 1.93516
A78: 850 | B78: 1.88494 | C78: 1.88258 | D78: 1.88021 | E78: 1.87784 | F78: 1.87546 | G78: 1.87308 | H78: 1.8707 | I78: 1.86831 | J78: 1.86591 | K78: 1.86351 | L78: 1.86111 | M78: 1.8587 | N78: 1.85629 | O78: 1.85387 | P78: 1.85144 | Q78: 1.84901 | R78: 1.84657 | S78: 1.84414 | T78: 1.8417 | U78: 1.83925 | W78: 850 | X78: 1.88964 | Y78: 1.89201 | Z78: 1.89437 | AA78: 1.89675 | AB78: 1.89912 | AC78: 1.90151 | AD78: 1.90391 | AE78: 1.9063 | AF78: 1.90871 | AG78: 1.91112 | AH78: 1.91353 | AI78: 1.91595 | AJ78: 1.91838 | AK78: 1.92081 | AL78: 1.92325 | AM78: 1.9257 | AN78: 1.92814 | AO78: 1.9306 | AP78: 1.93306 | AQ78: 1.93553
A79: 900 | B79: 1.88823 | C79: 1.88601 | D79: 1.88377 | E79: 1.88153 | F79: 1.87929 | G79: 1.87705 | H79: 1.8748 | I79: 1.87254 | J79: 1.87028 | K79: 1.86802 | L79: 1.86575 | M79: 1.86347 | N79: 1.8612 | O79: 1.85892 | P79: 1.85663 | Q79: 1.85434 | R79: 1.85204 | S79: 1.84974 | T79: 1.84744 | U79: 1.84513 | W79: 900 | X79: 1.89268 | Y79: 1.89491 | Z79: 1.89714 | AA79: 1.89939 | AB79: 1.90163 | AC79: 1.90389 | AD79: 1.90614 | AE79: 1.9084 | AF79: 1.91067 | AG79: 1.91294 | AH79: 1.91522 | AI79: 1.9175 | AJ79: 1.91979 | AK79: 1.92209 | AL79: 1.92438 | AM79: 1.92668 | AN79: 1.929 | AO79: 1.93131 | AP79: 1.93363 | AQ79: 1.93596
A80: 950 | B80: 1.89127 | C80: 1.88915 | D80: 1.88704 | E80: 1.88492 | F80: 1.88279 | G80: 1.88067 | H80: 1.87854 | I80: 1.8764 | J80: 1.87426 | K80: 1.87212 | L80: 1.86998 | M80: 1.86782 | N80: 1.86567 | O80: 1.86351 | P80: 1.86135 | Q80: 1.85919 | R80: 1.85701 | S80: 1.85483 | T80: 1.85266 | U80: 1.85048 | W80: 950 | X80: 1.89548 | Y80: 1.8976 | Z80: 1.89971 | AA80: 1.90184 | AB80: 1.90396 | AC80: 1.90609 | AD80: 1.90823 | AE80: 1.91036 | AF80: 1.91251 | AG80: 1.91466 | AH80: 1.91682 | AI80: 1.91897 | AJ80: 1.92115 | AK80: 1.92331 | AL80: 1.92548 | AM80: 1.92766 | AN80: 1.92984 | AO80: 1.93203 | AP80: 1.93423 | AQ80: 1.93642
A81: 1000 | B81: 1.89407 | C81: 1.89206 | D81: 1.89005 | E81: 1.88804 | F81: 1.88602 | G81: 1.884 | H81: 1.88198 | I81: 1.87995 | J81: 1.87792 | K81: 1.87589 | L81: 1.87386 | M81: 1.87181 | N81: 1.86976 | O81: 1.86772 | P81: 1.86567 | Q81: 1.86361 | R81: 1.86155 | S81: 1.85949 | T81: 1.85742 | U81: 1.85535 | W81: 1000 | X81: 1.89807 | Y81: 1.90008 | Z81: 1.90209 | AA81: 1.9041 | AB81: 1.90612 | AC81: 1.90815 | AD81: 1.91018 | AE81: 1.91221 | AF81: 1.91424 | AG81: 1.91628 | AH81: 1.91832 | AI81: 1.92037 | AJ81: 1.92243 | AK81: 1.92448 | AL81: 1.92655 | AM81: 1.92861 | AN81: 1.93069 | AO81: 1.93276 | AP81: 1.93483 | AQ81: 1.93692
A82: 1050 | B82: 1.89666 | C82: 1.89475 | D82: 1.89284 | E82: 1.89093 | F82: 1.889 | G82: 1.88708 | H82: 1.88516 | I82: 1.88322 | J82: 1.8813 | K82: 1.87936 | L82: 1.87741 | M82: 1.87548 | N82: 1.87353 | O82: 1.87158 | P82: 1.86963 | Q82: 1.86768 | R82: 1.86571 | S82: 1.86376 | T82: 1.86179 | U82: 1.85982 | W82: 1050 | X82: 1.90048 | Y82: 1.90238 | Z82: 1.9043 | AA82: 1.90621 | AB82: 1.90814 | AC82: 1.91007 | AD82: 1.912 | AE82: 1.91393 | AF82: 1.91587 | AG82: 1.91781 | AH82: 1.91975 | AI82: 1.9217 | AJ82: 1.92366 | AK82: 1.92562 | AL82: 1.92758 | AM82: 1.92954 | AN82: 1.93151 | AO82: 1.93348 | AP82: 1.93546 | AQ82: 1.93743
A83: 1100 | B83: 1.89907 | C83: 1.89725 | D83: 1.89543 | E83: 1.8936 | F83: 1.89177 | G83: 1.88993 | H83: 1.88809 | I83: 1.88625 | J83: 1.88441 | K83: 1.88256 | L83: 1.88071 | M83: 1.87886 | N83: 1.877 | O83: 1.87514 | P83: 1.87328 | Q83: 1.87143 | R83: 1.86956 | S83: 1.86769 | T83: 1.86581 | U83: 1.86394 | W83: 1100 | X83: 1.90271 | Y83: 1.90454 | Z83: 1.90636 | AA83: 1.9082 | AB83: 1.91003 | AC83: 1.91187 | AD83: 1.91371 | AE83: 1.91555 | AF83: 1.91741 | AG83: 1.91926 | AH83: 1.92111 | AI83: 1.92297 | AJ83: 1.92483 | AK83: 1.92669 | AL83: 1.92856 | AM83: 1.93043 | AN83: 1.93232 | AO83: 1.9342 | AP83: 1.93608 | AQ83: 1.93796
A84: 1150 | B84: 1.90133 | C84: 1.89959 | D84: 1.89784 | E84: 1.89609 | F84: 1.89435 | G84: 1.89259 | H84: 1.89083 | I84: 1.88907 | J84: 1.88731 | K84: 1.88554 | L84: 1.88378 | M84: 1.882 | N84: 1.88023 | O84: 1.87846 | P84: 1.87667 | Q84: 1.87489 | R84: 1.87311 | S84: 1.87132 | T84: 1.86953 | U84: 1.86774 | W84: 1150 | X84: 1.90481 | Y84: 1.90655 | Z84: 1.90831 | AA84: 1.91005 | AB84: 1.9118 | AC84: 1.91356 | AD84: 1.91533 | AE84: 1.91709 | AF84: 1.91885 | AG84: 1.92062 | AH84: 1.92239 | AI84: 1.92417 | AJ84: 1.92595 | AK84: 1.92773 | AL84: 1.92952 | AM84: 1.93131 | AN84: 1.9331 | AO84: 1.93489 | AP84: 1.9367 | AQ84: 1.9385
A85: 1200 | B85: 1.90344 | C85: 1.90177 | D85: 1.90009 | E85: 1.89842 | F85: 1.89674 | G85: 1.89507 | H85: 1.89338 | I85: 1.8917 | J85: 1.89001 | K85: 1.88832 | L85: 1.88662 | M85: 1.88492 | N85: 1.88323 | O85: 1.88152 | P85: 1.87983 | Q85: 1.87811 | R85: 1.87641 | S85: 1.87471 | T85: 1.87299 | U85: 1.87128 | W85: 1200 | X85: 1.90678 | Y85: 1.90844 | Z85: 1.91012 | AA85: 1.9118 | AB85: 1.91348 | AC85: 1.91516 | AD85: 1.91684 | AE85: 1.91854 | AF85: 1.92023 | AG85: 1.92192 | AH85: 1.92362 | AI85: 1.92532 | AJ85: 1.92702 | AK85: 1.92873 | AL85: 1.93044 | AM85: 1.93215 | AN85: 1.93387 | AO85: 1.93559 | AP85: 1.9373 | AQ85: 1.93902
A86: 1250 | B86: 1.90542 | C86: 1.90382 | D86: 1.90221 | E86: 1.90061 | F86: 1.89899 | G86: 1.89739 | H86: 1.89577 | I86: 1.89415 | J86: 1.89253 | K86: 1.89091 | L86: 1.88928 | M86: 1.88766 | N86: 1.88602 | O86: 1.8844 | P86: 1.88276 | Q86: 1.88113 | R86: 1.87948 | S86: 1.87785 | T86: 1.87621 | U86: 1.87456 | W86: 1250 | X86: 1.90862 | Y86: 1.91023 | Z86: 1.91183 | AA86: 1.91344 | AB86: 1.91506 | AC86: 1.91667 | AD86: 1.91828 | AE86: 1.91991 | AF86: 1.92153 | AG86: 1.92316 | AH86: 1.92478 | AI86: 1.92642 | AJ86: 1.92805 | AK86: 1.92969 | AL86: 1.93132 | AM86: 1.93297 | AN86: 1.93462 | AO86: 1.93626 | AP86: 1.93791 | AQ86: 1.93957
A87: 1300 | B87: 1.90729 | C87: 1.90574 | D87: 1.9042 | E87: 1.90266 | F87: 1.90111 | G87: 1.89955 | H87: 1.898 | I87: 1.89645 | J87: 1.89489 | K87: 1.89333 | L87: 1.89177 | M87: 1.89021 | N87: 1.88864 | O87: 1.88708 | P87: 1.88551 | Q87: 1.88394 | R87: 1.88236 | S87: 1.88079 | T87: 1.87921 | U87: 1.87763 | W87: 1300 | X87: 1.91036 | Y87: 1.91191 | Z87: 1.91345 | AA87: 1.915 | AB87: 1.91655 | AC87: 1.9181 | AD87: 1.91966 | AE87: 1.92121 | AF87: 1.92277 | AG87: 1.92433 | AH87: 1.9259 | AI87: 1.92747 | AJ87: 1.92903 | AK87: 1.93061 | AL87: 1.93218 | AM87: 1.93376 | AN87: 1.93534 | AO87: 1.93692 | AP87: 1.93851 | AQ87: 1.94009
A88: 1350 | B88: 1.90905 | C88: 1.90756 | D88: 1.90607 | E88: 1.90459 | F88: 1.90309 | G88: 1.9016 | H88: 1.90011 | I88: 1.89861 | J88: 1.89711 | K88: 1.89561 | L88: 1.89411 | M88: 1.8926 | N88: 1.8911 | O88: 1.88959 | P88: 1.88808 | Q88: 1.88657 | R88: 1.88505 | S88: 1.88354 | T88: 1.88201 | U88: 1.88049 | W88: 1350 | X88: 1.91201 | Y88: 1.91349 | Z88: 1.91498 | AA88: 1.91648 | AB88: 1.91796 | AC88: 1.91946 | AD88: 1.92095 | AE88: 1.92246 | AF88: 1.92395 | AG88: 1.92546 | AH88: 1.92696 | AI88: 1.92847 | AJ88: 1.92998 | AK88: 1.9315 | AL88: 1.93301 | AM88: 1.93453 | AN88: 1.93605 | AO88: 1.93757 | AP88: 1.93909 | AQ88: 1.94062
A89: 1400 | B89: 1.9107 | C89: 1.90927 | D89: 1.90784 | E89: 1.90641 | F89: 1.90497 | G89: 1.90353 | H89: 1.90209 | I89: 1.90065 | J89: 1.8992 | K89: 1.89776 | L89: 1.89631 | M89: 1.89486 | N89: 1.89341 | O89: 1.89195 | P89: 1.8905 | Q89: 1.88904 | R89: 1.88758 | S89: 1.88612 | T89: 1.88466 | U89: 1.88319 | W89: 1400 | X89: 1.91357 | Y89: 1.915 | Z89: 1.91643 | AA89: 1.91787 | AB89: 1.9193 | AC89: 1.92074 | AD89: 1.92219 | AE89: 1.92364 | AF89: 1.92509 | AG89: 1.92653 | AH89: 1.92799 | AI89: 1.92944 | AJ89: 1.93089 | AK89: 1.93235 | AL89: 1.93381 | AM89: 1.93527 | AN89: 1.93674 | AO89: 1.9382 | AP89: 1.93967 | AQ89: 1.94114
A90: 1450 | B90: 1.91229 | C90: 1.9109 | D90: 1.90952 | E90: 1.90813 | F90: 1.90675 | G90: 1.90535 | H90: 1.90396 | I90: 1.90257 | J90: 1.90118 | K90: 1.89979 | L90: 1.89838 | M90: 1.89699 | N90: 1.89559 | O90: 1.89419 | P90: 1.89277 | Q90: 1.89137 | R90: 1.88996 | S90: 1.88856 | T90: 1.88715 | U90: 1.88573 | W90: 1450 | X90: 1.91505 | Y90: 1.91643 | Z90: 1.91781 | AA90: 1.9192 | AB90: 1.92059 | AC90: 1.92197 | AD90: 1.92337 | AE90: 1.92476 | AF90: 1.92616 | AG90: 1.92755 | AH90: 1.92895 | AI90: 1.93035 | AJ90: 1.93177 | AK90: 1.93317 | AL90: 1.93458 | AM90: 1.93599 | AN90: 1.9374 | AO90: 1.93882 | AP90: 1.94023 | AQ90: 1.94165
A91: 1500 | B91: 1.91378 | C91: 1.91244 | D91: 1.9111 | E91: 1.90976 | F91: 1.90842 | G91: 1.90708 | H91: 1.90574 | I91: 1.9044 | J91: 1.90305 | K91: 1.9017 | L91: 1.90035 | M91: 1.89899 | N91: 1.89764 | O91: 1.89629 | P91: 1.89493 | Q91: 1.89357 | R91: 1.89221 | S91: 1.89085 | T91: 1.88948 | U91: 1.88812 | W91: 1500 | X91: 1.91645 | Y91: 1.91779 | Z91: 1.91912 | AA91: 1.92046 | AB91: 1.92181 | AC91: 1.92314 | AD91: 1.92449 | AE91: 1.92584 | AF91: 1.92718 | AG91: 1.92854 | AH91: 1.9299 | AI91: 1.93124 | AJ91: 1.9326 | AK91: 1.93397 | AL91: 1.93532 | AM91: 1.93669 | AN91: 1.93805 | AO91: 1.93941 | AP91: 1.94079 | AQ91: 1.94215
A92: 1550 | B92: 1.9152 | C92: 1.91391 | D92: 1.91261 | E92: 1.91132 | F92: 1.91002 | G92: 1.90872 | H92: 1.90742 | I92: 1.90612 | J92: 1.90482 | K92: 1.90352 | L92: 1.90221 | M92: 1.9009 | N92: 1.89959 | O92: 1.89828 | P92: 1.89696 | Q92: 1.89565 | R92: 1.89433 | S92: 1.89302 | T92: 1.8917 | U92: 1.89038 | W92: 1550 | X92: 1.91778 | Y92: 1.91908 | Z92: 1.92037 | AA92: 1.92167 | AB92: 1.92297 | AC92: 1.92426 | AD92: 1.92556 | AE92: 1.92687 | AF92: 1.92818 | AG92: 1.92948 | AH92: 1.93079 | AI92: 1.9321 | AJ92: 1.93341 | AK92: 1.93473 | AL92: 1.93604 | AM92: 1.93736 | AN92: 1.93868 | AO92: 1.94 | AP92: 1.94132 | AQ92: 1.94265
A93: 1600 | B93: 1.91655 | C93: 1.91531 | D93: 1.91405 | E93: 1.91279 | F93: 1.91154 | G93: 1.91028 | H93: 1.90902 | I93: 1.90776 | J93: 1.9065 | K93: 1.90523 | L93: 1.90397 | M93: 1.9027 | N93: 1.90143 | O93: 1.90016 | P93: 1.89889 | Q93: 1.89762 | R93: 1.89634 | S93: 1.89507 | T93: 1.8938 | U93: 1.89252 | W93: 1600 | X93: 1.91905 | Y93: 1.92031 | Z93: 1.92156 | AA93: 1.92282 | AB93: 1.92407 | AC93: 1.92534 | AD93: 1.92659 | AE93: 1.92786 | AF93: 1.92912 | AG93: 1.93038 | AH93: 1.93165 | AI93: 1.93293 | AJ93: 1.93419 | AK93: 1.93547 | AL93: 1.93674 | AM93: 1.93801 | AN93: 1.93929 | AO93: 1.94057 | AP93: 1.94185 | AQ93: 1.94314
A94: 1650 | B94: 1.91785 | C94: 1.91663 | D94: 1.91542 | E94: 1.9142 | F94: 1.91298 | G94: 1.91176 | H94: 1.91054 | I94: 1.90932 | J94: 1.9081 | K94: 1.90687 | L94: 1.90565 | M94: 1.90442 | N94: 1.90319 | O94: 1.90196 | P94: 1.90073 | Q94: 1.89949 | R94: 1.89826 | S94: 1.89702 | T94: 1.89578 | U94: 1.89455 | W94: 1650 | X94: 1.92028 | Y94: 1.92149 | Z94: 1.9227 | AA94: 1.92392 | AB94: 1.92514 | AC94: 1.92636 | AD94: 1.92758 | AE94: 1.92881 | AF94: 1.93003 | AG94: 1.93126 | AH94: 1.93249 | AI94: 1.93371 | AJ94: 1.93495 | AK94: 1.93618 | AL94: 1.93741 | AM94: 1.93865 | AN94: 1.93989 | AO94: 1.94113 | AP94: 1.94237 | AQ94: 1.94361
A95: 1700 | B95: 1.91908 | C95: 1.9179 | D95: 1.91672 | E95: 1.91554 | F95: 1.91436 | G95: 1.91318 | H95: 1.91199 | I95: 1.91081 | J95: 1.90962 | K95: 1.90843 | L95: 1.90724 | M95: 1.90605 | N95: 1.90486 | O95: 1.90366 | P95: 1.90247 | Q95: 1.90127 | R95: 1.90007 | S95: 1.89887 | T95: 1.89767 | U95: 1.89647 | W95: 1700 | X95: 1.92143 | Y95: 1.92261 | Z95: 1.9238 | AA95: 1.92498 | AB95: 1.92616 | AC95: 1.92734 | AD95: 1.92853 | AE95: 1.92971 | AF95: 1.9309 | AG95: 1.9321 | AH95: 1.93329 | AI95: 1.93448 | AJ95: 1.93567 | AK95: 1.93687 | AL95: 1.93807 | AM95: 1.93926 | AN95: 1.94047 | AO95: 1.94167 | AP95: 1.94287 | AQ95: 1.94407
A96: 1750 | B96: 1.92026 | C96: 1.91912 | D96: 1.91797 | E96: 1.91682 | F96: 1.91568 | G96: 1.91452 | H96: 1.91337 | I96: 1.91222 | J96: 1.91107 | K96: 1.90991 | L96: 1.90876 | M96: 1.90761 | N96: 1.90644 | O96: 1.90528 | P96: 1.90413 | Q96: 1.90297 | R96: 1.9018 | S96: 1.90064 | T96: 1.89947 | U96: 1.89831 | W96: 1750 | X96: 1.92255 | Y96: 1.92369 | Z96: 1.92483 | AA96: 1.92598 | AB96: 1.92714 | AC96: 1.92829 | AD96: 1.92944 | AE96: 1.93059 | AF96: 1.93174 | AG96: 1.9329 | AH96: 1.93406 | AI96: 1.93522 | AJ96: 1.93637 | AK96: 1.93753 | AL96: 1.9387 | AM96: 1.93987 | AN96: 1.94103 | AO96: 1.9422 | AP96: 1.94336 | AQ96: 1.94453
A97: 1800 | B97: 1.92139 | C97: 1.92028 | D97: 1.91916 | E97: 1.91805 | F97: 1.91693 | G97: 1.91582 | H97: 1.9147 | I97: 1.91358 | J97: 1.91245 | K97: 1.91133 | L97: 1.91021 | M97: 1.90909 | N97: 1.90796 | O97: 1.90683 | P97: 1.9057 | Q97: 1.90458 | R97: 1.90345 | S97: 1.90232 | T97: 1.90118 | U97: 1.90005 | W97: 1800 | X97: 1.92361 | Y97: 1.92473 | Z97: 1.92584 | AA97: 1.92695 | AB97: 1.92807 | AC97: 1.92919 | AD97: 1.93031 | AE97: 1.93144 | AF97: 1.93255 | AG97: 1.93367 | AH97: 1.9348 | AI97: 1.93593 | AJ97: 1.93706 | AK97: 1.93818 | AL97: 1.93931 | AM97: 1.94044 | AN97: 1.94158 | AO97: 1.94271 | AP97: 1.94384 | AQ97: 1.94498
A98: 1850 | B98: 1.92247 | C98: 1.92139 | D98: 1.92031 | E98: 1.91922 | F98: 1.91814 | G98: 1.91705 | H98: 1.91596 | I98: 1.91487 | J98: 1.91378 | K98: 1.91269 | L98: 1.9116 | M98: 1.91051 | N98: 1.90941 | O98: 1.90831 | P98: 1.90722 | Q98: 1.90612 | R98: 1.90502 | S98: 1.90392 | T98: 1.90282 | U98: 1.90171 | W98: 1850 | X98: 1.92463 | Y98: 1.92572 | Z98: 1.92681 | AA98: 1.92789 | AB98: 1.92897 | AC98: 1.93006 | AD98: 1.93115 | AE98: 1.93225 | AF98: 1.93334 | AG98: 1.93443 | AH98: 1.93552 | AI98: 1.93661 | AJ98: 1.93772 | AK98: 1.93881 | AL98: 1.93991 | AM98: 1.94101 | AN98: 1.94211 | AO98: 1.94321 | AP98: 1.94432 | AQ98: 1.94542
A99: 1900 | B99: 1.92352 | C99: 1.92246 | D99: 1.92141 | E99: 1.92035 | F99: 1.91929 | G99: 1.91823 | H99: 1.91717 | I99: 1.91611 | J99: 1.91505 | K99: 1.91399 | L99: 1.91292 | M99: 1.91186 | N99: 1.91079 | O99: 1.90973 | P99: 1.90866 | Q99: 1.9076 | R99: 1.90652 | S99: 1.90546 | T99: 1.90438 | U99: 1.90331 | W99: 1900 | X99: 1.92562 | Y99: 1.92668 | Z99: 1.92773 | AA99: 1.92878 | AB99: 1.92985 | AC99: 1.9309 | AD99: 1.93196 | AE99: 1.93303 | AF99: 1.93409 | AG99: 1.93515 | AH99: 1.93622 | AI99: 1.93728 | AJ99: 1.93835 | AK99: 1.93942 | AL99: 1.94048 | AM99: 1.94156 | AN99: 1.94263 | AO99: 1.9437 | AP99: 1.94478 | AQ99: 1.94585
A100: 1950 | B100: 1.92451 | C100: 1.92349 | D100: 1.92246 | E100: 1.92142 | F100: 1.9204 | G100: 1.91937 | H100: 1.91833 | I100: 1.9173 | J100: 1.91627 | K100: 1.91523 | L100: 1.91419 | M100: 1.91316 | N100: 1.91212 | O100: 1.91108 | P100: 1.91005 | Q100: 1.909 | R100: 1.90796 | S100: 1.90692 | T100: 1.90588 | U100: 1.90483 | W100: 1950 | X100: 1.92656 | Y100: 1.92759 | Z100: 1.92862 | AA100: 1.92965 | AB100: 1.93068 | AC100: 1.93171 | AD100: 1.93274 | AE100: 1.93377 | AF100: 1.93482 | AG100: 1.93585 | AH100: 1.93688 | AI100: 1.93793 | AJ100: 1.93896 | AK100: 1.94 | AL100: 1.94105 | AM100: 1.94209 | AN100: 1.94313 | AO100: 1.94418 | AP100: 1.94522 | AQ100: 1.94627
A101: 2000 | B101: 1.92548 | C101: 1.92447 | D101: 1.92347 | E101: 1.92246 | F101: 1.92146 | G101: 1.92046 | H101: 1.91945 | I101: 1.91844 | J101: 1.91744 | K101: 1.91643 | L101: 1.91542 | M101: 1.91441 | N101: 1.9134 | O101: 1.91239 | P101: 1.91137 | Q101: 1.91036 | R101: 1.90934 | S101: 1.90833 | T101: 1.90731 | U101: 1.90629 | W101: 2000 | X101: 1.92747 | Y101: 1.92847 | Z101: 1.92947 | AA101: 1.93049 | AB101: 1.93149 | AC101: 1.93249 | AD101: 1.9335 | AE101: 1.93451 | AF101: 1.93552 | AG101: 1.93652 | AH101: 1.93753 | AI101: 1.93854 | AJ101: 1.93957 | AK101: 1.94058 | AL101: 1.94159 | AM101: 1.94261 | AN101: 1.94363 | AO101: 1.94464 | AP101: 1.94566 | AQ101: 1.94668
